Workbook

Sheet 使用法
F2: 予測実施日 | H2: 2019-03-21
B3: 播種期 | C3: から予測
B5: 予測地域 | F5: 予測値
B6: 水戸 | F6: 播 種 期: | H6: 2002-11-05
F7: 出 芽 期: | H7: 2002-11-15
B8: 播種期 | F8: 茎 立 期: | H8: 2003-03-28 | L8: 平年比
B9: 月 | C9: 日 | F9: 出 穂 期: | H9: 2003-04-25 | L9: 0 | M9: ℃
B10: 11 | C10: 5 | F10: 成 熟 期: | H10: 2003-06-12 | L10: で推移した場合
B12: 月･日 | C12: 播種期後日数 | D12: 判 定 | H12: 平年平均 気温(℃) (水戸地方気象台1981-2010) | I12: 本年平均 気温 (℃) | J12: 予測に用いるデータ
D13: 出芽期 | E13: 茎立期 | F13: 出穂期 | G13: 成熟期
B14: 2002-10-15 | C14: 0 | D14: - | E14: - | F14: - | G14: - | H14: 16.2 | L14: 使用方法：※入力が必要なのは黄色の部分です。 ①予測の起点としたい生育ステージ(播種期，出芽期，茎立期，出穂期)を選択してください。 ②予測地域を選択してください。予測したい圃場の最寄の気象観測地点を選びます。 ③起点としたい生育ステージ(播種期，茎立期，出穂期)に達した日付を選択してください。予測できるのは10/15以降です。 ④判明している範囲の本年の日平均気温を入力してください。本年データが多いほうが，予測精度が増します。未入力部分は平年値を用いて自動的に計算されます。予測起点以前のデータも自動的に除外されて計算されます。｢クリア｣ボタンを押すと入力した気温データが消去されます｡ ⑤青い欄に予測結果が表示されます。 ⑥気温が平年より高く(低く)推移した場合を予測するには，平年比の欄に数値を入力することで，数値を反映した平年値で計算されます。 使用上の注意点: ①圃場が気温測定地点から離れていたり，気象経過が平年と大きく異なる，あるいは倒伏・湿害等による生育への影響が大きい場合には，予測の精度が劣る可能性があります。 ②予測日以降の気温が平年と異なる場合は誤差が拡大していくので，後日再度予測することで精度が高まります｡ ③出穂期，成熟期等の対平年値遅速は予測モデルに頼りすぎず，現地の状況や研究所発行の生育状況などを勘案し，総合的に判断してください｡ ④うるう年には対応していません。うるう年で，予測結果が3月1日以降で表示された場合は，表示された日から1日引いた日が正しい予測日となります。
B15: 2002-10-16 | C15: 0 | D15: - | E15: - | F15: - | G15: - | H15: 16
B16: 2002-10-17 | C16: 0 | D16: - | E16: - | F16: - | G16: - | H16: 15.8
B17: 2002-10-18 | C17: 0 | D17: - | E17: - | F17: - | G17: - | H17: 15.6
B18: 2002-10-19 | C18: 0 | D18: - | E18: - | F18: - | G18: - | H18: 15.3
B19: 2002-10-20 | C19: 0 | D19: - | E19: - | F19: - | G19: - | H19: 15.1
B20: 2002-10-21 | C20: 0 | D20: - | E20: - | F20: - | G20: - | H20: 14.9
B21: 2002-10-22 | C21: 0 | D21: - | E21: - | F21: - | G21: - | H21: 14.6
B22: 2002-10-23 | C22: 0 | D22: - | E22: - | F22: - | G22: - | H22: 14.4
B23: 2002-10-24 | C23: 0 | D23: - | E23: - | F23: - | G23: - | H23: 14.2
B24: 2002-10-25 | C24: 0 | D24: - | E24: - | F24: - | G24: - | H24: 14
B25: 2002-10-26 | C25: 0 | D25: - | E25: - | F25: - | G25: - | H25: 13.9
B26: 2002-10-27 | C26: 0 | D26: - | E26: - | F26: - | G26: - | H26: 13.7
B27: 2002-10-28 | C27: 0 | D27: - | E27: - | F27: - | G27: - | H27: 13.5
B28: 2002-10-29 | C28: 0 | D28: - | E28: - | F28: - | G28: - | H28: 13.4
B29: 2002-10-30 | C29: 0 | D29: - | E29: - | F29: - | G29: - | H29: 13.2
B30: 2002-10-31 | C30: 0 | D30: - | E30: - | F30: - | G30: - | H30: 13
B31: 2002-11-01 | C31: 0 | D31: - | E31: - | F31: - | G31: - | H31: 12.9
B32: 2002-11-02 | C32: 0 | D32: - | E32: - | F32: - | G32: - | H32: 12.7
B33: 2002-11-03 | C33: 0 | D33: - | E33: - | F33: - | G33: - | H33: 12.6
B34: 2002-11-04 | C34: 0 | D34: - | E34: - | F34: - | G34: - | H34: 12.4
B35: 2002-11-05 | C35: 0 | D35: - | E35: - | F35: - | G35: - | H35: 12.2
B36: 2002-11-06 | C36: 1 | D36: - | E36: - | F36: - | G36: - | H36: 12.1 | J36: 12.1
B37: 2002-11-07 | C37: 2 | D37: - | E37: - | F37: - | G37: - | H37: 11.9 | J37: 11.9
B38: 2002-11-08 | C38: 3 | D38: - | E38: - | F38: - | G38: - | H38: 11.7 | J38: 11.7
B39: 2002-11-09 | C39: 4 | D39: - | E39: - | F39: - | G39: - | H39: 11.5 | J39: 11.5
B40: 2002-11-10 | C40: 5 | D40: - | E40: - | F40: - | G40: - | H40: 11.3 | J40: 11.3
B41: 2002-11-11 | C41: 6 | D41: - | E41: - | F41: - | G41: - | H41: 11.1 | J41: 11.1
B42: 2002-11-12 | C42: 7 | D42: - | E42: - | F42: - | G42: - | H42: 10.9 | J42: 10.9
B43: 2002-11-13 | C43: 8 | D43: - | E43: - | F43: - | G43: - | H43: 10.6 | J43: 10.6
B44: 2002-11-14 | C44: 9 | D44: - | E44: - | F44: - | G44: - | H44: 10.4 | J44: 10.4
B45: 2002-11-15 | C45: 10 | D45: ◎ | E45: - | F45: - | G45: - | H45: 10.2 | J45: 10.2
B46: 2002-11-16 | C46: 11 | D46: - | E46: - | F46: - | G46: - | H46: 9.9 | J46: 9.9
B47: 2002-11-17 | C47: 12 | D47: - | E47: - | F47: - | G47: - | H47: 9.7 | J47: 9.7
B48: 2002-11-18 | C48: 13 | D48: - | E48: - | F48: - | G48: - | H48: 9.4 | J48: 9.4
B49: 2002-11-19 | C49: 14 | D49: - | E49: - | F49: - | G49: - | H49: 9.2 | J49: 9.2
B50: 2002-11-20 | C50: 15 | D50: - | E50: - | F50: - | G50: - | H50: 9 | J50: 9
B51: 2002-11-21 | C51: 16 | D51: - | E51: - | F51: - | G51: - | H51: 8.8 | J51: 8.8
B52: 2002-11-22 | C52: 17 | D52: - | E52: - | F52: - | G52: - | H52: 8.6 | J52: 8.6
B53: 2002-11-23 | C53: 18 | D53: - | E53: - | F53: - | G53: - | H53: 8.4 | J53: 8.4
B54: 2002-11-24 | C54: 19 | D54: - | E54: - | F54: - | G54: - | H54: 8.2 | J54: 8.2
B55: 2002-11-25 | C55: 20 | D55: - | E55: - | F55: - | G55: - | H55: 8 | J55: 8
B56: 2002-11-26 | C56: 21 | D56: - | E56: - | F56: - | G56: - | H56: 7.9 | J56: 7.9
B57: 2002-11-27 | C57: 22 | D57: - | E57: - | F57: - | G57: - | H57: 7.7 | J57: 7.7
B58: 2002-11-28 | C58: 23 | D58: - | E58: - | F58: - | G58: - | H58: 7.6 | J58: 7.6
B59: 2002-11-29 | C59: 24 | D59: - | E59: - | F59: - | G59: - | H59: 7.4 | J59: 7.4
B60: 2002-11-30 | C60: 25 | D60: - | E60: - | F60: - | G60: - | H60: 7.3 | J60: 7.3
B61: 2002-12-01 | C61: 26 | D61: - | E61: - | F61: - | G61: - | H61: 7.1 | J61: 7.1
B62: 2002-12-02 | C62: 27 | D62: - | E62: - | F62: - | G62: - | H62: 7 | J62: 7
B63: 2002-12-03 | C63: 28 | D63: - | E63: - | F63: - | G63: - | H63: 6.8 | J63: 6.8
B64: 2002-12-04 | C64: 29 | D64: - | E64: - | F64: - | G64: - | H64: 6.7 | J64: 6.7
B65: 2002-12-05 | C65: 30 | D65: - | E65: - | F65: - | G65: - | H65: 6.5 | J65: 6.5
B66: 2002-12-06 | C66: 31 | D66: - | E66: - | F66: - | G66: - | H66: 6.4 | J66: 6.4
B67: 2002-12-07 | C67: 32 | D67: - | E67: - | F67: - | G67: - | H67: 6.2 | J67: 6.2
B68: 2002-12-08 | C68: 33 | D68: - | E68: - | F68: - | G68: - | H68: 6.1 | J68: 6.1
B69: 2002-12-09 | C69: 34 | D69: - | E69: - | F69: - | G69: - | H69: 5.9 | J69: 5.9
B70: 2002-12-10 | C70: 35 | D70: - | E70: - | F70: - | G70: - | H70: 5.8 | J70: 5.8
B71: 2002-12-11 | C71: 36 | D71: - | E71: - | F71: - | G71: - | H71: 5.6 | J71: 5.6
B72: 2002-12-12 | C72: 37 | D72: - | E72: - | F72: - | G72: - | H72: 5.4 | J72: 5.4
B73: 2002-12-13 | C73: 38 | D73: - | E73: - | F73: - | G73: - | H73: 5.3 | J73: 5.3
B74: 2002-12-14 | C74: 39 | D74: - | E74: - | F74: - | G74: - | H74: 5.1 | J74: 5.1
B75: 2002-12-15 | C75: 40 | D75: - | E75: - | F75: - | G75: - | H75: 4.9 | J75: 4.9
B76: 2002-12-16 | C76: 41 | D76: - | E76: - | F76: - | G76: - | H76: 4.8 | J76: 4.8
B77: 2002-12-17 | C77: 42 | D77: - | E77: - | F77: - | G77: - | H77: 4.6 | J77: 4.6
B78: 2002-12-18 | C78: 43 | D78: - | E78: - | F78: - | G78: - | H78: 4.5 | J78: 4.5
B79: 2002-12-19 | C79: 44 | D79: - | E79: - | F79: - | G79: - | H79: 4.4 | J79: 4.4
B80: 2002-12-20 | C80: 45 | D80: - | E80: - | F80: - | G80: - | H80: 4.3 | J80: 4.3
B81: 2002-12-21 | C81: 46 | D81: - | E81: - | F81: - | G81: - | H81: 4.2 | J81: 4.2
B82: 2002-12-22 | C82: 47 | D82: - | E82: - | F82: - | G82: - | H82: 4.1 | J82: 4.1
B83: 2002-12-23 | C83: 48 | D83: - | E83: - | F83: - | G83: - | H83: 4 | J83: 4
B84: 2002-12-24 | C84: 49 | D84: - | E84: - | F84: - | G84: - | H84: 3.9 | J84: 3.9
B85: 2002-12-25 | C85: 50 | D85: - | E85: - | F85: - | G85: - | H85: 3.8 | J85: 3.8
B86: 2002-12-26 | C86: 51 | D86: - | E86: - | F86: - | G86: - | H86: 3.7 | J86: 3.7
B87: 2002-12-27 | C87: 52 | D87: - | E87: - | F87: - | G87: - | H87: 3.7 | J87: 3.7
B88: 2002-12-28 | C88: 53 | D88: - | E88: - | F88: - | G88: - | H88: 3.6 | J88: 3.6
B89: 2002-12-29 | C89: 54 | D89: - | E89: - | F89: - | G89: - | H89: 3.5 | J89: 3.5
B90: 2002-12-30 | C90: 55 | D90: - | E90: - | F90: - | G90: - | H90: 3.4 | J90: 3.4
B91: 2002-12-31 | C91: 56 | D91: - | E91: - | F91: - | G91: - | H91: 3.3 | J91: 3.3
B92: 2003-01-01 | C92: 57 | D92: - | E92: - | F92: - | G92: - | H92: 3.3 | J92: 3.3
B93: 2003-01-02 | C93: 58 | D93: - | E93: - | F93: - | G93: - | H93: 3.2 | J93: 3.2
B94: 2003-01-03 | C94: 59 | D94: - | E94: - | F94: - | G94: - | H94: 3.1 | J94: 3.1
B95: 2003-01-04 | C95: 60 | D95: - | E95: - | F95: - | G95: - | H95: 3.1 | J95: 3.1
B96: 2003-01-05 | C96: 61 | D96: - | E96: - | F96: - | G96: - | H96: 3 | J96: 3
B97: 2003-01-06 | C97: 62 | D97: - | E97: - | F97: - | G97: - | H97: 3 | J97: 3
B98: 2003-01-07 | C98: 63 | D98: - | E98: - | F98: - | G98: - | H98: 2.9 | J98: 2.9
B99: 2003-01-08 | C99: 64 | D99: - | E99: - | F99: - | G99: - | H99: 2.9 | J99: 2.9
B100: 2003-01-09 | C100: 65 | D100: - | E100: - | F100: - | G100: - | H100: 2.8 | J100: 2.8
B101: 2003-01-10 | C101: 66 | D101: - | E101: - | F101: - | G101: - | H101: 2.8 | J101: 2.8
B102: 2003-01-11 | C102: 67 | D102: - | E102: - | F102: - | G102: - | H102: 2.8 | J102: 2.8
B103: 2003-01-12 | C103: 68 | D103: - | E103: - | F103: - | G103: - | H103: 2.8 | J103: 2.8
B104: 2003-01-13 | C104: 69 | D104: - | E104: - | F104: - | G104: - | H104: 2.7 | J104: 2.7
B105: 2003-01-14 | C105: 70 | D105: - | E105: - | F105: - | G105: - | H105: 2.7 | J105: 2.7
B106: 2003-01-15 | C106: 71 | D106: - | E106: - | F106: - | G106: - | H106: 2.7 | J106: 2.7
B107: 2003-01-16 | C107: 72 | D107: - | E107: - | F107: - | G107: - | H107: 2.7 | J107: 2.7
B108: 2003-01-17 | C108: 73 | D108: - | E108: - | F108: - | G108: - | H108: 2.7 | J108: 2.7
B109: 2003-01-18 | C109: 74 | D109: - | E109: - | F109: - | G109: - | H109: 2.6 | J109: 2.6
B110: 2003-01-19 | C110: 75 | D110: - | E110: - | F110: - | G110: - | H110: 2.6 | J110: 2.6
B111: 2003-01-20 | C111: 76 | D111: - | E111: - | F111: - | G111: - | H111: 2.6 | J111: 2.6
B112: 2003-01-21 | C112: 77 | D112: - | E112: - | F112: - | G112: - | H112: 2.6 | J112: 2.6
B113: 2003-01-22 | C113: 78 | D113: - | E113: - | F113: - | G113: - | H113: 2.6 | J113: 2.6
B114: 2003-01-23 | C114: 79 | D114: - | E114: - | F114: - | G114: - | H114: 2.6 | J114: 2.6
B115: 2003-01-24 | C115: 80 | D115: - | E115: - | F115: - | G115: - | H115: 2.6 | J115: 2.6
B116: 2003-01-25 | C116: 81 | D116: - | E116: - | F116: - | G116: - | H116: 2.6 | J116: 2.6
B117: 2003-01-26 | C117: 82 | D117: - | E117: - | F117: - | G117: - | H117: 2.5 | J117: 2.5
B118: 2003-01-27 | C118: 83 | D118: - | E118: - | F118: - | G118: - | H118: 2.5 | J118: 2.5
B119: 2003-01-28 | C119: 84 | D119: - | E119: - | F119: - | G119: - | H119: 2.5 | J119: 2.5
B120: 2003-01-29 | C120: 85 | D120: - | E120: - | F120: - | G120: - | H120: 2.5 | J120: 2.5
B121: 2003-01-30 | C121: 86 | D121: - | E121: - | F121: - | G121: - | H121: 2.6 | J121: 2.6
B122: 2003-01-31 | C122: 87 | D122: - | E122: - | F122: - | G122: - | H122: 2.6 | J122: 2.6
B123: 2003-02-01 | C123: 88 | D123: - | E123: - | F123: - | G123: - | H123: 2.6 | J123: 2.6
B124: 2003-02-02 | C124: 89 | D124: - | E124: - | F124: - | G124: - | H124: 2.7 | J124: 2.7
B125: 2003-02-03 | C125: 90 | D125: - | E125: - | F125: - | G125: - | H125: 2.7 | J125: 2.7
B126: 2003-02-04 | C126: 91 | D126: - | E126: - | F126: - | G126: - | H126: 2.8 | J126: 2.8
B127: 2003-02-05 | C127: 92 | D127: - | E127: - | F127: - | G127: - | H127: 2.9 | J127: 2.9
B128: 2003-02-06 | C128: 93 | D128: - | E128: - | F128: - | G128: - | H128: 3 | J128: 3
B129: 2003-02-07 | C129: 94 | D129: - | E129: - | F129: - | G129: - | H129: 3.1 | J129: 3.1
B130: 2003-02-08 | C130: 95 | D130: - | E130: - | F130: - | G130: - | H130: 3.2 | J130: 3.2
B131: 2003-02-09 | C131: 96 | D131: - | E131: - | F131: - | G131: - | H131: 3.3 | J131: 3.3
B132: 2003-02-10 | C132: 97 | D132: - | E132: - | F132: - | G132: - | H132: 3.5 | J132: 3.5
B133: 2003-02-11 | C133: 98 | D133: - | E133: - | F133: - | G133: - | H133: 3.6 | J133: 3.6
B134: 2003-02-12 | C134: 99 | D134: - | E134: - | F134: - | G134: - | H134: 3.6 | J134: 3.6
B135: 2003-02-13 | C135: 100 | D135: - | E135: - | F135: - | G135: - | H135: 3.7 | J135: 3.7
B136: 2003-02-14 | C136: 101 | D136: - | E136: - | F136: - | G136: - | H136: 3.8 | J136: 3.8
B137: 2003-02-15 | C137: 102 | D137: - | E137: - | F137: - | G137: - | H137: 3.8 | J137: 3.8
B138: 2003-02-16 | C138: 103 | D138: - | E138: - | F138: - | G138: - | H138: 3.9 | J138: 3.9
B139: 2003-02-17 | C139: 104 | D139: - | E139: - | F139: - | G139: - | H139: 3.9 | J139: 3.9
B140: 2003-02-18 | C140: 105 | D140: - | E140: - | F140: - | G140: - | H140: 4 | J140: 4
B141: 2003-02-19 | C141: 106 | D141: - | E141: - | F141: - | G141: - | H141: 4 | J141: 4
B142: 2003-02-20 | C142: 107 | D142: - | E142: - | F142: - | G142: - | H142: 4.1 | J142: 4.1
B143: 2003-02-21 | C143: 108 | D143: - | E143: - | F143: - | G143: - | H143: 4.2 | J143: 4.2
B144: 2003-02-22 | C144: 109 | D144: - | E144: - | F144: - | G144: - | H144: 4.2 | J144: 4.2
B145: 2003-02-23 | C145: 110 | D145: - | E145: - | F145: - | G145: - | H145: 4.3 | J145: 4.3
B146: 2003-02-24 | C146: 111 | D146: - | E146: - | F146: - | G146: - | H146: 4.4 | J146: 4.4
B147: 2003-02-25 | C147: 112 | D147: - | E147: - | F147: - | G147: - | H147: 4.5 | J147: 4.5
B148: 2003-02-26 | C148: 113 | D148: - | E148: - | F148: - | G148: - | H148: 4.6 | J148: 4.6
B149: 2003-02-27 | C149: 114 | D149: - | E149: - | F149: - | G149: - | H149: 4.7 | J149: 4.7
B150: 2003-02-28 | C150: 115 | D150: - | E150: - | F150: - | G150: - | H150: 4.8 | J150: 4.8
B151: 2003-03-01 | C151: 116 | D151: - | E151: - | F151: - | G151: - | H151: 5 | J151: 5
B152: 2003-03-02 | C152: 117 | D152: - | E152: - | F152: - | G152: - | H152: 5.1 | J152: 5.1
B153: 2003-03-03 | C153: 118 | D153: - | E153: - | F153: - | G153: - | H153: 5.2 | J153: 5.2
B154: 2003-03-04 | C154: 119 | D154: - | E154: - | F154: - | G154: - | H154: 5.3 | J154: 5.3
B155: 2003-03-05 | C155: 120 | D155: - | E155: - | F155: - | G155: - | H155: 5.5 | J155: 5.5
B156: 2003-03-06 | C156: 121 | D156: - | E156: - | F156: - | G156: - | H156: 5.6 | J156: 5.6
B157: 2003-03-07 | C157: 122 | D157: - | E157: - | F157: - | G157: - | H157: 5.7 | J157: 5.7
B158: 2003-03-08 | C158: 123 | D158: - | E158: - | F158: - | G158: - | H158: 5.9 | J158: 5.9
B159: 2003-03-09 | C159: 124 | D159: - | E159: - | F159: - | G159: - | H159: 6 | J159: 6
B160: 2003-03-10 | C160: 125 | D160: - | E160: - | F160: - | G160: - | H160: 6.2 | J160: 6.2
B161: 2003-03-11 | C161: 126 | D161: - | E161: - | F161: - | G161: - | H161: 6.4 | J161: 6.4
B162: 2003-03-12 | C162: 127 | D162: - | E162: - | F162: - | G162: - | H162: 6.5 | J162: 6.5
B163: 2003-03-13 | C163: 128 | D163: - | E163: - | F163: - | G163: - | H163: 6.7 | J163: 6.7
B164: 2003-03-14 | C164: 129 | D164: - | E164: - | F164: - | G164: - | H164: 6.9 | J164: 6.9
B165: 2003-03-15 | C165: 130 | D165: - | E165: - | F165: - | G165: - | H165: 7 | J165: 7
B166: 2003-03-16 | C166: 131 | D166: - | E166: - | F166: - | G166: - | H166: 7.2 | J166: 7.2
B167: 2003-03-17 | C167: 132 | D167: - | E167: - | F167: - | G167: - | H167: 7.3 | J167: 7.3
B168: 2003-03-18 | C168: 133 | D168: - | E168: - | F168: - | G168: - | H168: 7.5 | J168: 7.5
B169: 2003-03-19 | C169: 134 | D169: - | E169: - | F169: - | G169: - | H169: 7.6 | J169: 7.6
B170: 2003-03-20 | C170: 135 | D170: - | E170: - | F170: - | G170: - | H170: 7.7 | J170: 7.7
B171: 2003-03-21 | C171: 136 | D171: - | E171: - | F171: - | G171: - | H171: 7.8 | J171: 7.8
B172: 2003-03-22 | C172: 137 | D172: - | E172: - | F172: - | G172: - | H172: 8 | J172: 8
B173: 2003-03-23 | C173: 138 | D173: - | E173: - | F173: - | G173: - | H173: 8.1 | J173: 8.1
B174: 2003-03-24 | C174: 139 | D174: - | E174: - | F174: - | G174: - | H174: 8.2 | J174: 8.2
B175: 2003-03-25 | C175: 140 | D175: - | E175: - | F175: - | G175: - | H175: 8.3 | J175: 8.3
B176: 2003-03-26 | C176: 141 | D176: - | E176: - | F176: - | G176: - | H176: 8.5 | J176: 8.5
B177: 2003-03-27 | C177: 142 | D177: - | E177: - | F177: - | G177: - | H177: 8.6 | J177: 8.6
B178: 2003-03-28 | C178: 143 | D178: - | E178: ◎ | F178: - | G178: - | H178: 8.8 | J178: 8.8
B179: 2003-03-29 | C179: 144 | D179: - | E179: - | F179: - | G179: - | H179: 9 | J179: 9
B180: 2003-03-30 | C180: 145 | D180: - | E180: - | F180: - | G180: - | H180: 9.2 | J180: 9.2
B181: 2003-03-31 | C181: 146 | D181: - | E181: - | F181: - | G181: - | H181: 9.4 | J181: 9.4
B182: 2003-04-01 | C182: 147 | D182: - | E182: - | F182: - | G182: - | H182: 9.6 | J182: 9.6
B183: 2003-04-02 | C183: 148 | D183: - | E183: - | F183: - | G183: - | H183: 9.8 | J183: 9.8
B184: 2003-04-03 | C184: 149 | D184: - | E184: - | F184: - | G184: - | H184: 10.1 | J184: 10.1
B185: 2003-04-04 | C185: 150 | D185: - | E185: - | F185: - | G185: - | H185: 10.3 | J185: 10.3
B186: 2003-04-05 | C186: 151 | D186: - | E186: - | F186: - | G186: - | H186: 10.6 | J186: 10.6
B187: 2003-04-06 | C187: 152 | D187: - | E187: - | F187: - | G187: - | H187: 10.8 | J187: 10.8
B188: 2003-04-07 | C188: 153 | D188: - | E188: - | F188: - | G188: - | H188: 11 | J188: 11
B189: 2003-04-08 | C189: 154 | D189: - | E189: - | F189: - | G189: - | H189: 11.2 | J189: 11.2
B190: 2003-04-09 | C190: 155 | D190: - | E190: - | F190: - | G190: - | H190: 11.4 | J190: 11.4
B191: 2003-04-10 | C191: 156 | D191: - | E191: - | F191: - | G191: - | H191: 11.6 | J191: 11.6
B192: 2003-04-11 | C192: 157 | D192: - | E192: - | F192: - | G192: - | H192: 11.8 | J192: 11.8
B193: 2003-04-12 | C193: 158 | D193: - | E193: - | F193: - | G193: - | H193: 12 | J193: 12
B194: 2003-04-13 | C194: 159 | D194: - | E194: - | F194: - | G194: - | H194: 12.1 | J194: 12.1
B195: 2003-04-14 | C195: 160 | D195: - | E195: - | F195: - | G195: - | H195: 12.3 | J195: 12.3
B196: 2003-04-15 | C196: 161 | D196: - | E196: - | F196: - | G196: - | H196: 12.5 | J196: 12.5
B197: 2003-04-16 | C197: 162 | D197: - | E197: - | F197: - | G197: - | H197: 12.6 | J197: 12.6
B198: 2003-04-17 | C198: 163 | D198: - | E198: - | F198: - | G198: - | H198: 12.8 | J198: 12.8
B199: 2003-04-18 | C199: 164 | D199: - | E199: - | F199: - | G199: - | H199: 13 | J199: 13
B200: 2003-04-19 | C200: 165 | D200: - | E200: - | F200: - | G200: - | H200: 13.1 | J200: 13.1
B201: 2003-04-20 | C201: 166 | D201: - | E201: - | F201: - | G201: - | H201: 13.3 | J201: 13.3
B202: 2003-04-21 | C202: 167 | D202: - | E202: - | F202: - | G202: - | H202: 13.5 | J202: 13.5
B203: 2003-04-22 | C203: 168 | D203: - | E203: - | F203: - | G203: - | H203: 13.6 | J203: 13.6
... 80 more rows

Sheet 予測
F1: 予測始期 | G1: 予測終期 | H1: G | I1: A | J1: Th | K1: B | L1: Lc
F2: 播種期 | G2: 出芽期 | H2: 5.229127 | I2: 0.2994618 | J2: 10.82931 | K2: － | L2: － | AC2: 予測実施日 | AF2: =TODAY() -> 2022-04-15
B3: 播種期 | C3: から予測 | F3: 播種期 | G3: 茎立期 | H3: 43.31629 | I3: 0.5156321 | J3: 7.327092 | K3: 415.2555 | L3: 9.555035
F4: 播種期 | G4: 出穂期 | H4: 40.15454 | I4: 0.1849291 | J4: 10.57463 | K4: 1.168636 | L4: 9.334076
B5: 予測地域 | D5: 地名コード | F5: 播種期 | G5: 成熟期 | H5: 86.98924 | I5: 0.1283081 | J5: 8.389306 | K5: 1.649445 | L5: 9.514409 | AC5: 予測値
B6: 水戸 | D6: =HLOOKUP(B6,気象データ!$B$4:$O$5,2,FALSE) -> G | F6: 出芽期 | G6: 茎立期 | H6: 40.09436 | I6: 0.7482048 | J6: 6.510882 | K6: 338.2795 | L6: 9.555035 | AC6: 播 種 期: | AE6: =VLOOKUP("◎",Z14:AE283,6,FALSE) -> 2002-11-05 | AF6: =+IF(COUNT(AE6)=1,AE6,"*月 *日") -> 2002-11-05
F7: 出芽期 | G7: 出穂期 | H7: 39.81683 | I7: 0.2351144 | J7: 9.55309 | K7: 1.114359 | L7: 9.248196 | AC7: 出 芽 期: | AE7: =VLOOKUP("◎",AA14:AE283,5,FALSE) -> 2002-11-15 | AF7: =+IF(COUNT(AE7)=1,AE7,"*月 *日") -> 2002-11-15
B8: =B3 -> 播種期 | F8: 出芽期 | G8: 成熟期 | H8: 100.8356 | I8: 0.3652904 | J8: 6.446698 | K8: 1.560709 | L8: 9.510242 | AC8: 茎 立 期: | AE8: =VLOOKUP("◎",AB14:AE283,4,FALSE) -> 2003-03-22 | AF8: =+IF(COUNT(AE8)=1,AE8,"*月 *日") -> 2003-03-22 | AJ8: 平年比
B9: 月 | C9: 日 | F9: 茎立期 | G9: 出穂期 | H9: 7.561468 | I9: 0.3145722 | J9: 15.6003 | K9: － | L9: － | AC9: 出 穂 期: | AE9: =VLOOKUP("◎",AC14:AE283,3,FALSE) -> 2003-04-24 | AF9: =+IF(COUNT(AE9)=1,AE9,"*月 *日") -> 2003-04-24 | AJ9: 0 | AK9: ℃
B10: 11 | C10: 5 | F10: 茎立期 | G10: 成熟期 | H10: 33.4768 | I10: 0.2403366 | J10: 17.12967 | K10: － | L10: － | AC10: 成 熟 期: | AE10: =VLOOKUP("◎",AD14:AE283,2,FALSE) -> 2003-06-12 | AF10: =+IF(COUNT(AE10)=1,AE10,"*月 *日") -> 2003-06-12 | AJ10: で推移した場合
F11: 出穂期 | G11: 成熟期 | H11: 31.01567 | I11: 0.09689587 | J11: 12.34668 | K11: － | L11: －
B12: 月･日 | C12: =B3&"後日数" -> 播種期後日数 | D12: 予測日判定 | E12: 日長(時間) | F12: DVR | AA12: 判 定 | AE12: 月･日 | AF12: 平年平均 気温(℃) (水戸地方気象台1981-2010) | AG12: 本年平均 気温 (℃) | AH12: 予測に用いるデータ
F13: 播種出芽 | G13: 積算 | H13: 播種茎立 | I13: 積算 | J13: 播種出穂 | K13: 積算 | L13: 播種成熟 | M13: 積算 | N13: 出芽茎立 | O13: 積算 | P13: 出芽出穂 | Q13: 積算 | R13: 出芽成熟 | S13: 積算 | T13: 茎立出穂 | U13: 積算 | V13: 茎立成熟 | W13: 積算 | X13: 出穂成熟 | Y13: 積算 | Z13: 播種期 | AA13: 出芽期 | AB13: 茎立期 | AC13: 出穂期 | AD13: 成熟期
B14: 2002-10-15 | C14: =+C13+D14 -> 0 | D14: =+IF((COUNT(AH14))=1,1)+IF((COUNT(AH14=0)),0) -> 0 | E14: =INDIRECT("気象データ!"&$D$6&ROW()+320) -> 11.11387507 | F14: =1/(1+EXP(-$I$2*($AH14-$J$2)))/$H$2 ->  | G14: =IF($D14=0,0,G13+F14) -> 0 | H14: =MAX((1-EXP(-$K$3*($E14-$L$3)))/(1+EXP(-$I$3*($AH14-$J$3)))/$H$3,0) ->  | I14: =IF($D14=0,0,I13+H14) -> 0 | J14: =MAX((1-EXP(-$K$4*($E14-$L$4)))/(1+EXP(-$I$4*($AH14-$J$4)))/$H$4,0) ->  | K14: =IF($D14=0,0,K13+J14) -> 0 | L14: =MAX((1-EXP(-$K$5*($E14-$L$5)))/(1+EXP(-$I$5*($AH14-$J$5)))/$H$5,0) ->  | M14: =IF($D14=0,0,M13+L14) -> 0 | N14: =MAX((1-EXP(-$K$6*($E14-$L$6)))/(1+EXP(-$I$6*($AH14-$J$6)))/$H$6,0) ->  | O14: =IF($D14=0,0,O13+N14) -> 0 | P14: =MAX((1-EXP(-$K$7*($E14-$L$7)))/(1+EXP(-$I$7*($AH14-$J$7)))/$H$7,0) ->  | Q14: =IF($D14=0,0,Q13+P14) -> 0 | R14: =MAX((1-EXP(-$K$8*($E14-$L$8)))/(1+EXP(-$I$8*($AH14-$J$8)))/$H$8,0) ->  | S14: =IF($D14=0,0,S13+R14) -> 0 | T14: =1/(1+EXP(-$I$9*($AH14-$J$9)))/$H$9 ->  | U14: =IF($D14=0,0,U13+T14) -> 0 | V14: =1/(1+EXP(-$I$10*($AH14-$J$10)))/$H$10 ->  | W14: =IF($D14=0,0,W13+V14) -> 0 | X14: =1/(1+EXP(-$I$11*($AH14-$J$11)))/$H$11 ->  | Y14: =IF($D14=0,0,Y13+X14) -> 0 | Z14: =IF($B$3="播種期",IF($C15=1,"◎","-"),"-") -> - | AA14: =IF($B$3="播種期",IF(AND(G14>=1,G13<1),"◎","-"),IF($B$3="出芽期",IF($C15=1,"◎","-"),"-")) -> - | AB14: =IF($B$3="播種期",IF(AND(I14>=1,I13<1),"◎","-"),IF($B$3="出芽期",IF(AND(O14>=1,O13<1),"◎","-"),IF($B$3="茎立期",IF($C15=1,"◎","-"),"-"))) -> - | AC14: =IF($B$3="播種期",IF(AND(K14>=1,K13<1),"◎","-"),IF($B$3="出芽期",IF(AND(Q14>=1,Q13<1),"◎","-"),IF($B$3="茎立期",IF(AND(U14>=1,U13<1),"◎","-"),IF($B$3="出穂期",IF($C15=1,"◎","-"),"-")))) -> - | AD14: =IF($B$3="播種期",IF(AND(M14>=1,M13<1),"◎","-"),IF($B$3="出芽期",IF(AND(S14>=1,S13<1),"◎","-"),IF($B$3="茎立期",IF(AND(W14>=1,W13<1),"◎","-"),IF($B$3="出穂期",IF(AND(Y14>=1,Y13<1),"◎","-"),IF($C15=1,"◎","-"))))) -> - | AE14: 2002-10-15 | AF14: =INDIRECT("気象データ!"&$D$6&ROW()-8) -> 16.7 | AH14: =IF(DATE(IF($B$10>=10,2002,2003),$B$10,$C$10)>=B14,"",IF(AG14="",AF14+$AJ$9,AG14)) -> 
B15: 2002-10-16 | C15: 0 | D15: 0 | E15: =INDIRECT("気象データ!"&$D$6&ROW()+320) -> 11.07664422 | G15: =IF($D15=0,0,G14+F15) -> 0 | I15: =IF($D15=0,0,I14+H15) -> 0 | K15: =IF($D15=0,0,K14+J15) -> 0 | M15: =IF($D15=0,0,M14+L15) -> 0 | O15: =IF($D15=0,0,O14+N15) -> 0 | Q15: =IF($D15=0,0,Q14+P15) -> 0 | R15: =MAX((1-EXP(-$K$8*($E15-$L$8)))/(1+EXP(-$I$8*($AH15-$J$8)))/$H$8,0) ->  | S15: =IF($D15=0,0,S14+R15) -> 0 | U15: =IF($D15=0,0,U14+T15) -> 0 | W15: =IF($D15=0,0,W14+V15) -> 0 | Y15: =IF($D15=0,0,Y14+X15) -> 0 | Z15: =IF($B$3="播種期",IF($C16=1,"◎","-"),"-") -> - | AA15: =IF($B$3="播種期",IF(AND(G15>=1,G14<1),"◎","-"),IF($B$3="出芽期",IF($C16=1,"◎","-"),"-")) -> - | AB15: =IF($B$3="播種期",IF(AND(I15>=1,I14<1),"◎","-"),IF($B$3="出芽期",IF(AND(O15>=1,O14<1),"◎","-"),IF($B$3="茎立期",IF($C16=1,"◎","-"),"-"))) -> - | AC15: =IF($B$3="播種期",IF(AND(K15>=1,K14<1),"◎","-"),IF($B$3="出芽期",IF(AND(Q15>=1,Q14<1),"◎","-"),IF($B$3="茎立期",IF(AND(U15>=1,U14<1),"◎","-"),IF($B$3="出穂期",IF($C16=1,"◎","-"),"-")))) -> - | AD15: =IF($B$3="播種期",IF(AND(M15>=1,M14<1),"◎","-"),IF($B$3="出芽期",IF(AND(S15>=1,S14<1),"◎","-"),IF($B$3="茎立期",IF(AND(W15>=1,W14<1),"◎","-"),IF($B$3="出穂期",IF(AND(Y15>=1,Y14<1),"◎","-"),IF($C16=1,"◎","-"))))) -> - | AE15: 2002-10-16 | AF15: =INDIRECT("気象データ!"&$D$6&ROW()-8) -> 16.5
B16: 2002-10-17 | C16: 0 | D16: 0 | E16: 11.03958619 | G16: 0 | I16: 0 | K16: 0 | M16: 0 | O16: 0 | Q16: 0 | S16: 0 | U16: 0 | W16: 0 | Y16: 0 | Z16: - | AA16: - | AB16: - | AC16: - | AD16: - | AE16: 2002-10-17 | AF16: 16.3
B17: 2002-10-18 | C17: 0 | D17: 0 | E17: 11.00270964 | G17: 0 | I17: 0 | K17: 0 | M17: 0 | O17: 0 | Q17: 0 | S17: 0 | U17: 0 | W17: 0 | Y17: 0 | Z17: - | AA17: - | AB17: - | AC17: - | AD17: - | AE17: 2002-10-18 | AF17: 16.1
B18: 2002-10-19 | C18: 0 | D18: 0 | E18: 10.9660234 | G18: 0 | I18: 0 | K18: 0 | M18: 0 | O18: 0 | Q18: 0 | S18: 0 | U18: 0 | W18: 0 | Y18: 0 | Z18: - | AA18: - | AB18: - | AC18: - | AD18: - | AE18: 2002-10-19 | AF18: 15.9
B19: 2002-10-20 | C19: 0 | D19: 0 | E19: 10.92953645 | G19: 0 | I19: 0 | K19: 0 | M19: 0 | O19: 0 | Q19: 0 | S19: 0 | U19: 0 | W19: 0 | Y19: 0 | Z19: - | AA19: - | AB19: - | AC19: - | AD19: - | AE19: 2002-10-20 | AF19: 15.7
B20: 2002-10-21 | C20: 0 | D20: 0 | E20: 10.89325795 | G20: 0 | I20: 0 | K20: 0 | M20: 0 | O20: 0 | Q20: 0 | S20: 0 | U20: 0 | W20: 0 | Y20: 0 | Z20: - | AA20: - | AB20: - | AC20: - | AD20: - | AE20: 2002-10-21 | AF20: 15.5
B21: 2002-10-22 | C21: 0 | D21: 0 | E21: 10.85719724 | G21: 0 | I21: 0 | K21: 0 | M21: 0 | O21: 0 | Q21: 0 | S21: 0 | U21: 0 | W21: 0 | Y21: 0 | Z21: - | AA21: - | AB21: - | AC21: - | AD21: - | AE21: 2002-10-22 | AF21: 15.3
B22: 2002-10-23 | C22: 0 | D22: 0 | E22: 10.82136382 | G22: 0 | I22: 0 | K22: 0 | M22: 0 | O22: 0 | Q22: 0 | S22: 0 | U22: 0 | W22: 0 | Y22: 0 | Z22: - | AA22: - | AB22: - | AC22: - | AD22: - | AE22: 2002-10-23 | AF22: 15.1
B23: 2002-10-24 | C23: 0 | D23: 0 | E23: 10.78576737 | G23: 0 | I23: 0 | K23: 0 | M23: 0 | O23: 0 | Q23: 0 | S23: 0 | U23: 0 | W23: 0 | Y23: 0 | Z23: - | AA23: - | AB23: - | AC23: - | AD23: - | AE23: 2002-10-24 | AF23: 15
B24: 2002-10-25 | C24: 0 | D24: 0 | E24: 10.75041776 | G24: 0 | I24: 0 | K24: 0 | M24: 0 | O24: 0 | Q24: 0 | S24: 0 | U24: 0 | W24: 0 | Y24: 0 | Z24: - | AA24: - | AB24: - | AC24: - | AD24: - | AE24: 2002-10-25 | AF24: 14.8
B25: 2002-10-26 | C25: 0 | D25: 0 | E25: 10.71532501 | G25: 0 | I25: 0 | K25: 0 | M25: 0 | O25: 0 | Q25: 0 | S25: 0 | U25: 0 | W25: 0 | Y25: 0 | Z25: - | AA25: - | AB25: - | AC25: - | AD25: - | AE25: 2002-10-26 | AF25: 14.6
B26: 2002-10-27 | C26: 0 | D26: 0 | E26: 10.68049935 | G26: 0 | I26: 0 | K26: 0 | M26: 0 | O26: 0 | Q26: 0 | S26: 0 | U26: 0 | W26: 0 | Y26: 0 | Z26: - | AA26: - | AB26: - | AC26: - | AD26: - | AE26: 2002-10-27 | AF26: 14.4
B27: 2002-10-28 | C27: 0 | D27: 0 | E27: 10.64595117 | G27: 0 | I27: 0 | K27: 0 | M27: 0 | O27: 0 | Q27: 0 | S27: 0 | U27: 0 | W27: 0 | Y27: 0 | Z27: - | AA27: - | AB27: - | AC27: - | AD27: - | AE27: 2002-10-28 | AF27: 14.2
B28: 2002-10-29 | C28: 0 | D28: 0 | E28: 10.61169103 | G28: 0 | I28: 0 | K28: 0 | M28: 0 | O28: 0 | Q28: 0 | S28: 0 | U28: 0 | W28: 0 | Y28: 0 | Z28: - | AA28: - | AB28: - | AC28: - | AD28: - | AE28: 2002-10-29 | AF28: 14
B29: 2002-10-30 | C29: 0 | D29: 0 | E29: 10.57772968 | G29: 0 | I29: 0 | K29: 0 | M29: 0 | O29: 0 | Q29: 0 | S29: 0 | U29: 0 | W29: 0 | Y29: 0 | Z29: - | AA29: - | AB29: - | AC29: - | AD29: - | AE29: 2002-10-30 | AF29: 13.9
B30: 2002-10-31 | C30: 0 | D30: 0 | E30: 10.54407802 | G30: 0 | I30: 0 | K30: 0 | M30: 0 | O30: 0 | Q30: 0 | S30: 0 | U30: 0 | W30: 0 | Y30: 0 | Z30: - | AA30: - | AB30: - | AC30: - | AD30: - | AE30: 2002-10-31 | AF30: 13.7
B31: 2002-11-01 | C31: 0 | D31: 0 | E31: 10.51074716 | G31: 0 | I31: 0 | K31: 0 | M31: 0 | O31: 0 | Q31: 0 | S31: 0 | U31: 0 | W31: 0 | Y31: 0 | Z31: - | AA31: - | AB31: - | AC31: - | AD31: - | AE31: 2002-11-01 | AF31: 13.5
B32: 2002-11-02 | C32: 0 | D32: 0 | E32: 10.47774833 | G32: 0 | I32: 0 | K32: 0 | M32: 0 | O32: 0 | Q32: 0 | S32: 0 | U32: 0 | W32: 0 | Y32: 0 | Z32: - | AA32: - | AB32: - | AC32: - | AD32: - | AE32: 2002-11-02 | AF32: 13.3
B33: 2002-11-03 | C33: 0 | D33: 0 | E33: 10.44509294 | G33: 0 | I33: 0 | K33: 0 | M33: 0 | O33: 0 | Q33: 0 | S33: 0 | U33: 0 | W33: 0 | Y33: 0 | Z33: - | AA33: - | AB33: - | AC33: - | AD33: - | AE33: 2002-11-03 | AF33: 13.2
B34: 2002-11-04 | C34: 0 | D34: 0 | E34: 10.41279256 | G34: 0 | I34: 0 | K34: 0 | M34: 0 | O34: 0 | Q34: 0 | S34: 0 | U34: 0 | W34: 0 | Y34: 0 | Z34: - | AA34: - | AB34: - | AC34: - | AD34: - | AE34: 2002-11-04 | AF34: 13
B35: 2002-11-05 | C35: 0 | D35: 0 | E35: 10.38085892 | G35: 0 | I35: 0 | K35: 0 | M35: 0 | O35: 0 | Q35: 0 | S35: 0 | U35: 0 | W35: 0 | Y35: 0 | Z35: ◎ | AA35: - | AB35: - | AC35: - | AD35: - | AE35: 2002-11-05 | AF35: 12.8
B36: 2002-11-06 | C36: 1 | D36: 1 | E36: 10.34930385 | F36: 0.1203914831 | G36: 0.1203914831 | H36: 0.02165770883 | I36: 0.02165770883 | J36: 0.01025151384 | K36: 0.01025151384 | L36: 0.005431116806 | M36: 0.005431116806 | N36: 0.0246818815 | O36: 0.0246818815 | P36: 0.01192609046 | Q36: 0.01192609046 | R36: 0.006548291983 | S36: 0.006548291983 | T36: 0.03704719602 | U36: 0.03704719602 | V36: 0.007523820313 | W36: 0.007523820313 | X36: 0.01631872235 | Y36: 0.01631872235 | Z36: - | AA36: - | AB36: - | AC36: - | AD36: - | AE36: 2002-11-06 | AF36: 12.6 | AH36: 12.6
B37: 2002-11-07 | C37: 2 | D37: 1 | E37: 10.31813937 | F37: 0.1190507843 | G37: 0.2394422674 | H37: 0.02158703692 | I37: 0.04324474575 | J37: 0.01000829013 | K37: 0.02025980397 | L37: 0.005309206081 | M37: 0.01074032289 | N37: 0.02466196319 | O37: 0.04934384469 | P37: 0.01166025363 | Q37: 0.0235863441 | R37: 0.006404844243 | S37: 0.01295313623 | T37: 0.03621409046 | U37: 0.07326128648 | V37: 0.00738934875 | W37: 0.01491316906 | X37: 0.01624062773 | Y37: 0.03255935009 | Z37: - | AA37: - | AB37: - | AC37: - | AD37: - | AE37: 2002-11-07 | AF37: 12.5 | AH37: 12.5
B38: 2002-11-08 | C38: 3 | D38: 1 | E38: 10.2873776 | F38: 0.1163402659 | G38: 0.3557825333 | H38: 0.02143584117 | I38: 0.06468058692 | J38: 0.009688187888 | K38: 0.02994799186 | L38: 0.005159486923 | M38: 0.01589980981 | N38: 0.0246174803 | O38: 0.07396132499 | P38: 0.01130163128 | Q38: 0.03488797538 | R38: 0.006233613464 | S38: 0.01918674969 | T38: 0.03458333865 | U38: 0.1078446251 | V38: 0.007125283022 | W38: 0.02203845208 | X38: 0.0160844253 | Y38: 0.04864377538 | Z38: - | AA38: - | AB38: - | AC38: - | AD38: - | AE38: 2002-11-08 | AF38: 12.3 | AH38: 12.3
B39: 2002-11-09 | C39: 4 | D39: 1 | E39: 10.25703079 | F39: 0.1135943467 | G39: 0.4693768801 | H39: 0.02127067729 | I39: 0.08595126421 | J39: 0.00936872606 | K39: 0.03931671792 | L39: 0.005007692692 | M39: 0.0209075025 | N39: 0.0245660181 | O39: 0.09852734309 | P39: 0.01094242006 | Q39: 0.04583039544 | R39: 0.006057264689 | S39: 0.02524401438 | T39: 0.03300078671 | U39: 0.1408454118 | V39: 0.006867771262 | W39: 0.02890622335 | X39: 0.0159282297 | Y39: 0.06457200509 | Z39: - | AA39: - | AB39: - | AC39: - | AD39: - | AE39: 2002-11-09 | AF39: 12.1 | AH39: 12.1
B40: 2002-11-10 | C40: 5 | D40: 1 | E40: 10.22711128 | F40: 0.1108173437 | G40: 0.5801942238 | H40: 0.02109052113 | I40: 0.1070417853 | J40: 0.009050323206 | K40: 0.04836704112 | L40: 0.004853962066 | M40: 0.02576146457 | N40: 0.02450651842 | O40: 0.1230338615 | P40: 0.01058318189 | Q40: 0.05641357733 | R40: 0.005875982203 | S40: 0.03111999658 | T40: 0.03146732049 | U40: 0.1723127323 | V40: 0.006616858825 | W40: 0.03552308217 | X40: 0.01577207028 | Y40: 0.08034407537 | Z40: - | AA40: - | AB40: - | AC40: - | AD40: - | AE40: 2002-11-10 | AF40: 11.9 | AH40: 11.9
B41: 2002-11-11 | C41: 6 | D41: 1 | E41: 10.19763153 | F41: 0.1080137845 | G41: 0.6882080083 | H41: 0.02089432816 | I41: 0.1279361135 | J41: 0.008733404807 | K41: 0.05710044593 | L41: 0.004698448781 | M41: 0.03045991335 | N41: 0.02443777522 | O41: 0.1474716367 | P41: 0.01022449188 | Q41: 0.06663806921 | R41: 0.005689990921 | S41: 0.0368099875 | T41: 0.02998358373 | U41: 0.2022963161 | V41: 0.006372573926 | W41: 0.0418956561 | X41: 0.01561597632 | Y41: 0.09596005169 | Z41: - | AA41: - | AB41: - | AC41: - | AD41: - | AE41: 2002-11-11 | AF41: 11.7 | AH41: 11.7
B42: 2002-11-12 | C42: 7 | D42: 1 | E42: 10.16860409 | F42: 0.1051883796 | G42: =IF($D42=0,0,G41+F42) -> 0.793396388 | H42: 0.02068104536 | I42: =IF($D42=0,0,I41+H42) -> 0.1486171589 | J42: 0.008418401671 | K42: =IF($D42=0,0,K41+J42) -> 0.0655188476 | L42: 0.004541321911 | M42: =IF($D42=0,0,M41+L42) -> 0.03500123526 | N42: 0.02435841818 | O42: =IF($D42=0,0,O41+N42) -> 0.1718300549 | P42: 0.009866935562 | Q42: =IF($D42=0,0,Q41+P42) -> 0.07650500477 | R42: 0.005499558238 | S42: =IF($D42=0,0,S41+R42) -> 0.04230954574 | T42: 0.02854998889 | U42: =IF($D42=0,0,U41+T42) -> 0.230846305 | V42: 0.00613492841 | W42: =IF($D42=0,0,W41+V42) -> 0.04803058451 | X42: 0.01545997707 | Y42: =IF($D42=0,0,Y41+X42) -> 0.1114200288 | Z42: - | AA42: - | AB42: - | AC42: - | AD42: - | AE42: 2002-11-12 | AF42: 11.5 | AH42: 11.5
B43: 2002-11-13 | C43: =+C42+D43 -> 8 | D43: 1 | E43: 10.14004158 | F43: 0.1023459923 | G43: 0.8957423802 | H43: 0.02044962581 | I43: 0.1690667847 | J43: 0.008105748225 | K43: 0.07362459583 | L43: 0.004382766045 | M43: 0.0393840013 | N43: 0.02426689602 | O43: 0.1960969509 | P43: 0.009511105857 | Q43: 0.08601611063 | R43: 0.005304995527 | S43: 0.04761454127 | T43: 0.02716672946 | U43: 0.2580130344 | V43: 0.005903918574 | W43: 0.05393450308 | X43: 0.01530410171 | Y43: 0.1267241305 | Z43: - | AA43: - | AB43: - | AC43: - | AD43: - | AE43: 2002-11-13 | AF43: 11.3 | AH43: 11.3
B44: 2002-11-14 | C44: 9 | D44: 1 | E44: 10.11195667 | F44: 0.09949160521 | G44: 0.9952339854 | H44: 0.02019904625 | I44: 0.1892658309 | J44: 0.007795880721 | K44: 0.08142047655 | L44: 0.004222981358 | M44: 0.04360698266 | N44: 0.0241614601 | O44: 0.220258411 | P44: 0.009157599915 | Q44: 0.09517371054 | R44: 0.005106659223 | S44: 0.05272120049 | T44: 0.02583379352 | U44: 0.2838468279 | V44: 0.005679526022 | W44: 0.0596140291 | X44: 0.01514837931 | Y44: 0.1418725098 | Z44: - | AA44: - | AB44: - | AC44: - | AD44: - | AE44: 2002-11-14 | AF44: 11.1 | AH44: 11.1
B45: 2002-11-15 | C45: 10 | D45: 1 | E45: 10.08436211 | F45: 0.09663028667 | G45: 1.091864272 | H45: 0.01992832748 | I45: 0.2091941584 | J45: 0.007489235356 | K45: 0.08890971191 | L45: 0.004062183558 | M45: 0.04766916622 | N45: 0.02404014921 | O45: 0.2442985602 | P45: 0.008807015782 | Q45: 0.1039807263 | R45: 0.004904951406 | S45: 0.0576261519 | T45: 0.02455097827 | U45: 0.3083978062 | V45: 0.005461718553 | W45: 0.06507574766 | X45: 0.01499283886 | Y45: 0.1568653486 | Z45: - | AA45: ◎ | AB45: - | AC45: - | AD45: - | AE45: 2002-11-15 | AF45: 10.9 | AH45: 10.9
B46: 2002-11-16 | C46: 11 | D46: 1 | E46: 10.05727067 | F46: 0.09376715428 | G46: 1.185631426 | H46: 0.01963655784 | I46: 0.2288307162 | J46: 0.007186246317 | K46: 0.09609595822 | L46: 0.003900603711 | M46: 0.05156976993 | N46: 0.02390077679 | O46: 0.268199337 | P46: 0.008459948955 | Q46: 0.1124406753 | R46: 0.00470031981 | S46: 0.06232647171 | T46: 0.02331790509 | U46: 0.3317157113 | V46: 0.005250451069 | W46: 0.07032619873 | X46: 0.01483750917 | Y46: 0.1717028578 | Z46: - | AA46: - | AB46: - | AC46: - | AD46: - | AE46: 2002-11-16 | AF46: 10.7 | AH46: 10.7
B47: 2002-11-17 | C47: 12 | D47: 1 | E47: 10.03069514 | F47: 0.09090733871 | G47: 1.276538765 | H47: 0.01932291944 | I47: 0.2481536357 | J47: 0.006887343771 | K47: 0.102983302 | L47: 0.003738487926 | M47: 0.05530825786 | N47: 0.02374092205 | O47: 0.2919402591 | P47: 0.00811698885 | Q47: 0.1205576641 | R47: 0.004493257176 | S47: 0.06681972888 | T47: 0.02213403502 | U47: 0.3538497463 | V47: 0.005045666486 | W47: 0.07537186521 | X47: 0.01468241893 | Y47: 0.1863852767 | Z47: - | AA47: - | AB47: - | AC47: - | AD47: - | AE47: 2002-11-17 | AF47: 10.5 | AH47: 10.5
B48: 2002-11-18 | C48: 13 | D48: 1 | E48: 10.00464832 | F48: 0.08805594686 | G48: 1.364594712 | H48: 0.01898671691 | I48: 0.2671403526 | J48: 0.0065929518 | K48: 0.1095762538 | L48: 0.003576096882 | M48: 0.05888435474 | N48: 0.02355792722 | O48: 0.3154981863 | P48: 0.007778715221 | Q48: 0.1283363793 | R48: 0.004284299885 | S48: 0.07110402877 | T48: 0.02099868443 | U48: 0.3748484308 | V48: 0.00484729666 | W48: 0.08021916187 | X48: 0.01452759663 | Y48: 0.2009128734 | Z48: - | AA48: - | AB48: - | AC48: - | AD48: - | AE48: 2002-11-18 | AF48: 10.3 | AH48: 10.3
B49: 2002-11-19 | C49: 14 | D49: 1 | E49: 9.979143005 | F49: 0.08521802556 | G49: 1.449812738 | H49: 0.01862740807 | I49: 0.2857677607 | J49: 0.006303486314 | K49: 0.1158797401 | L49: 0.003413705216 | M49: 0.06229805995 | N49: 0.0233489033 | O49: 0.3388470896 | P49: 0.007445694569 | Q49: 0.1357820739 | R49: 0.004074025797 | S49: 0.07517805456 | T49: 0.01991104049 | U49: 0.3947594712 | V49: 0.004655263294 | W49: 0.08487442517 | X49: 0.01437307057 | Y49: 0.2152859439 | Z49: - | AA49: - | AB49: - | AC49: - | AD49: - | AE49: 2002-11-19 | AF49: 10.1 | AH49: 10.1
B50: 2002-11-20 | C50: 15 | D50: 1 | E50: 9.954191949 | F50: 0.08239852606 | G50: 1.532211264 | H50: 0.01824463581 | I50: 0.3040123965 | J50: 0.006019352938 | K50: 0.121899093 | L50: 0.003251600736 | M50: 0.06554966069 | N50: 0.02311074752 | O50: 0.3619578371 | P50: 0.00711847657 | Q50: 0.1429005505 | R50: 0.00386305125 | S50: 0.07904110581 | T50: 0.01887017642 | U50: 0.4136296477 | V50: 0.004469478848 | W50: 0.08934390401 | X50: 0.01421886883 | Y50: 0.2295048127 | Z50: - | AA50: - | AB50: - | AC50: - | AD50: - | AE50: 2002-11-20 | AF50: 9.9 | AH50: 9.9
B51: 2002-11-21 | C51: 16 | D51: 1 | E51: 9.929807874 | F51: 0.07960227006 | G51: 1.611813534 | H51: 0.01783826009 | I51: 0.3218506566 | J51: 0.005740944909 | K51: 0.127640038 | L51: 0.003090083478 | M51: 0.06863974417 | N51: 0.02284017584 | O51: 0.384798013 | P51: 0.006797590579 | Q51: 0.1496981411 | R51: 0.003652027189 | S51: 0.082693133 | T51: 0.01787506636 | U51: 0.431504714 | V51: 0.004289847421 | W51: 0.09363375144 | X51: 0.01406501925 | Y51: 0.243569832 | Z51: - | AA51: - | AB51: - | AC51: - | AD51: - | AE51: 2002-11-21 | AF51: 9.7 | AH51: 9.7
B52: 2002-11-22 | C52: 17 | D52: 1 | E52: 9.906003434 | F52: 0.07683391759 | G52: 1.688647451 | H52: 0.01740838887 | I52: 0.3392590454 | J52: 0.005468640986 | K52: 0.1331086789 | L52: 0.002929464582 | M52: 0.07156920875 | N52: 0.02253377459 | O52: 0.4073317876 | P52: 0.006483542241 | Q52: 0.1561816833 | R52: 0.003441634393 | S52: 0.0861347674 | T52: 0.01692459956 | U52: 0.4484293136 | V52: 0.004116265617 | W52: 0.09775001705 | X52: 0.01391154941 | Y52: 0.2574813814 | Z52: - | AA52: - | AB52: - | AC52: - | AD52: - | AE52: 2002-11-22 | AF52: 9.5 | AH52: 9.5
B53: 2002-11-23 | C53: 18 | D53: 1 | E53: 9.882791204 | F53: 0.07546160985 | G53: 1.764109061 | H53: 0.01718475106 | I53: 0.3564437965 | J53: 0.005256611465 | K53: 0.1383652904 | L53: 0.002786792521 | M53: 0.07435600127 | N53: 0.02236605346 | O53: 0.429697841 | P53: 0.006251605582 | Q53: 0.1624332889 | R53: 0.003263093047 | S53: 0.08939786044 | T53: 0.01646574042 | U53: 0.464895054 | V53: 0.00403170917 | W53: 0.1017817262 | X53: 0.01383496543 | Y53: 0.2713163468 | Z53: - | AA53: - | AB53: - | AC53: - | AD53: - | AE53: 2002-11-23 | AF53: 9.4 | AH53: 9.4
B54: 2002-11-24 | C54: 19 | D54: 1 | E54: 9.860183656 | F54: 0.07274342404 | G54: 1.836852485 | H54: 0.01672045032 | I54: 0.3731642468 | J54: 0.00499574646 | K54: 0.1433610369 | L54: 0.002628204073 | M54: 0.07698420535 | N54: 0.02199941335 | O54: 0.4516972544 | P54: 0.005950660707 | Q54: 0.1683839496 | R54: 0.003055726268 | S54: 0.09245358671 | T54: 0.01558000342 | U54: 0.4804750574 | V54: 0.003866993595 | W54: 0.1056487198 | X54: 0.01368211631 | Y54: 0.2849984631 | Z54: - | AA54: - | AB54: - | AC54: - | AD54: - | AE54: 2002-11-24 | AF54: 9.2 | AH54: 9.2
B55: 2002-11-25 | C55: 20 | D55: 1 | E55: 9.838193141 | F55: 0.07139857926 | G55: 1.908251064 | H55: 0.01647999778 | I55: 0.3896442446 | J55: 0.004792250691 | K55: 0.1481532876 | L55: 0.002486716937 | M55: 0.07947092228 | N55: 0.0217996538 | O55: 0.4734969082 | P55: 0.0057287114 | Q55: 0.174112661 | R55: 0.002880187736 | S55: 0.09533377445 | T55: 0.01515280906 | U55: 0.4956278665 | V55: 0.003786804822 | W55: 0.1094355246 | X55: 0.01360585787 | Y55: 0.298604321 | Z55: - | AA55: - | AB55: - | AC55: - | AD55: - | AE55: 2002-11-25 | AF55: 9.1 | AH55: 9.1
B56: 2002-11-26 | C56: 21 | D56: 1 | E56: 9.816831871 | F56: 0.06873985146 | G56: 1.976990916 | H56: 0.01598316645 | I56: 0.405627411 | J56: 0.004544078146 | K56: 0.1526973657 | L56: 0.002331452843 | M56: 0.08180237512 | N56: 0.02136526389 | O56: 0.4948621721 | P56: 0.005442320659 | Q56: 0.1795549817 | R56: 0.002678266134 | S56: 0.09801204058 | T56: 0.01432895777 | U56: 0.5099568243 | V56: 0.003630688956 | W56: 0.1130662136 | X56: 0.01345368986 | Y56: 0.3120580109 | Z56: - | AA56: - | AB56: - | AC56: - | AD56: - | AE56: 2002-11-26 | AF56: 8.9 | AH56: 8.9
B57: 2002-11-27 | C57: 22 | D57: 1 | E57: 9.796111896 | F57: 0.0674269049 | G57: 2.044417821 | H57: 0.01572712094 | I57: 0.421354532 | J57: 0.0043503074 | K57: 0.1570476731 | L57: 0.002192437493 | M57: 0.08399481262 | N57: 0.02112990263 | O57: 0.5159920747 | P57: 0.005231600686 | Q57: 0.1847865823 | R57: 0.00250777871 | S57: 0.1005198193 | T57: 0.01393197009 | U57: 0.5238887943 | V57: 0.003554730526 | W57: 0.1166209441 | X57: 0.01337778688 | Y57: 0.3254357978 | Z57: - | AA57: - | AB57: - | AC57: - | AD57: - | AE57: 2002-11-27 | AF57: 8.8 | AH57: 8.8
B58: 2002-11-28 | C58: 23 | D58: 1 | E58: 9.776045082 | F58: 0.06483605699 | G58: 2.109253878 | H58: 0.01520075914 | I58: 0.4365552911 | J58: 0.00411597254 | K58: 0.1611636456 | L58: 0.002041853773 | M58: 0.08603666639 | N58: 0.02062125523 | O58: 0.5366133299 | P58: 0.004961038295 | Q58: 0.1897476206 | R58: 0.002313736646 | S58: 0.1028335559 | T58: 0.0131670315 | U58: 0.5370558258 | V58: 0.003406932594 | W58: 0.1200278767 | X58: 0.0132263593 | Y58: 0.338662157 | Z58: - | AA58: - | AB58: - | AC58: - | AD58: - | AE58: 2002-11-28 | AF58: 8.6 | AH58: 8.6
B59: 2002-11-29 | C59: 24 | D59: 1 | E59: 9.756643094 | F59: 0.06229467166 | G59: 2.171548549 | H59: 0.01465692648 | I59: 0.4512122176 | J59: 0.003889857407 | K59: 0.1650535031 | L59: 0.00189451842 | M59: 0.08793118481 | N59: 0.02006040454 | O59: 0.5566737345 | P59: 0.004699867903 | Q59: 0.1944474885 | R59: 0.002124983865 | S59: 0.1049585398 | T59: 0.01243967636 | U59: 0.5494955022 | V59: 0.003264517492 | W59: 0.1232923942 | X59: 0.01307545768 | Y59: 0.3517376147 | Z59: - | AA59: - | AB59: - | AC59: - | AD59: - | AE59: 2002-11-29 | AF59: 8.4 | AH59: 8.4
B60: 2002-11-30 | C60: 25 | D60: 1 | E60: 9.737917373 | F60: 0.06104348316 | G60: 2.232592033 | H60: 0.01437911621 | I60: 0.4655913338 | J60: 0.003713552433 | K60: 0.1687670555 | L60: 0.001762150018 | M60: 0.08969333483 | N60: 0.01975998639 | O60: 0.5764337209 | P60: 0.00450899332 | Q60: 0.1989564819 | R60: 0.001966546076 | S60: 0.1069250859 | T60: 0.01208966532 | U60: 0.5615851675 | V60: 0.003195286978 | W60: 0.1264876812 | X60: 0.01300021208 | Y60: 0.3647378268 | Z60: - | AA60: - | AB60: - | AC60: - | AD60: - | AE60: 2002-11-30 | AF60: 8.3 | AH60: 8.3
B61: 2002-12-01 | C61: 26 | D61: 1 | E61: 9.719879113 | F61: 0.05858185838 | G61: 2.291173891 | H61: 0.01381318459 | I61: 0.4794045184 | J61: 0.00350271053 | K61: 0.172269766 | L61: 0.001621579932 | M61: 0.09131491476 | N61: 0.01911888882 | O61: 0.5955526097 | P61: 0.004265171134 | Q61: 0.203221653 | R61: 0.001789250105 | S61: 0.108714336 | T61: 0.01141611908 | U61: 0.5730012866 | V61: 0.003060695799 | W61: 0.129548377 | X61: 0.01285014701 | Y61: 0.3775879738 | Z61: - | AA61: - | AB61: - | AC61: - | AD61: - | AE61: 2002-12-01 | AF61: 8.1 | AH61: 8.1
B62: 2002-12-02 | C62: 27 | D62: 1 | E62: 9.702539239 | F62: 0.05617666806 | G62: 2.347350559 | H62: 0.0132356675 | I62: 0.4926401859 | J62: 0.003300675384 | K62: 0.1755704414 | L62: 0.00148529276 | M62: 0.09280020752 | N62: 0.01842462522 | O62: 0.6139772349 | P62: 0.004031366094 | Q62: 0.2072530191 | R62: 0.001619066754 | S62: 0.1103334027 | T62: 0.01077673234 | U62: 0.5837780189 | V62: 0.00293115091 | W62: 0.1324795279 | X62: 0.01270067079 | Y62: 0.3902886446 | Z62: - | AA62: - | AB62: - | AC62: - | AD62: - | AE62: 2002-12-02 | AF62: 7.9 | AH62: 7.9
B63: 2002-12-03 | C63: 28 | D63: 1 | E63: 9.685908392 | F63: 0.05383015563 | G63: 2.401180715 | H63: 0.01264935823 | I63: 0.5052895441 | J63: 0.003107576916 | K63: 0.1786780183 | L63: 0.001353617036 | M63: 0.09415382456 | N63: 0.01767902125 | O63: 0.6316562561 | P63: 0.003807706697 | Q63: 0.2110607258 | R63: 0.001456551425 | S63: 0.1117899542 | T63: 0.01017014192 | U63: 0.5939481609 | V63: 0.002806515093 | W63: 0.135286043 | X63: 0.01255180786 | Y63: 0.4028404524 | Z63: - | AA63: - | AB63: - | AC63: - | AD63: - | AE63: 2002-12-03 | AF63: 7.7 | AH63: 7.7
B64: 2002-12-04 | C64: 29 | D64: 1 | E64: 9.669996899 | F64: 0.05154425135 | G64: 2.452724966 | H64: 0.01205723011 | I64: 0.5173467742 | J64: 0.002923512244 | K64: 0.1816015306 | L64: 0.001226868211 | M64: 0.09538069277 | N64: 0.01688540724 | O64: 0.6485416634 | P64: 0.00359427582 | Q64: 0.2146550016 | R64: 0.001302198795 | S64: 0.113092153 | T64: 0.009594997758 | U64: 0.6035431586 | V64: 0.002686650415 | W64: 0.1379726934 | X64: 0.01240358223 | Y64: 0.4152440347 | Z64: - | AA64: - | AB64: - | AC64: - | AD64: - | AE64: 2002-12-04 | AF64: 7.5 | AH64: 7.5
B65: 2002-12-05 | C65: 30 | D65: 1 | E65: 9.654814759 | F65: 0.04932057559 | G65: 2.502045542 | H65: 0.01146237779 | I65: 0.528809152 | J65: 0.002748545233 | K65: 0.1843500758 | L65: 0.001105346108 | M65: 0.09648603888 | N65: 0.01604868958 | O65: 0.664590353 | P65: 0.003391110994 | Q65: 0.2180461126 | R65: 0.001156435459 | S65: 0.1142485884 | T65: 0.009049968085 | U65: 0.6125931267 | V65: 0.002571418705 | W65: 0.1405441121 | X65: 0.01225601747 | Y65: 0.4275000521 | Z65: - | AA65: - | AB65: - | AC65: - | AD65: - | AE65: 2002-12-05 | AF65: 7.3 | AH65: 7.3
B66: 2002-12-06 | C66: 31 | D66: 1 | E66: 9.640371619 | F66: 0.04716044483 | G66: 2.549205986 | H66: 0.01086795342 | I66: 0.5396771054 | J66: 0.002582706279 | K66: 0.1869327821 | L66: 0.000989332426 | M66: 0.0974753713 | N66: 0.01517532869 | O66: 0.6797656816 | P66: 0.003198205084 | Q66: 0.2212443177 | R66: 0.001019613644 | S66: 0.1152682021 | T66: 0.008533743987 | U66: 0.6211268707 | V66: 0.002460681971 | W66: 0.1430047941 | X66: 0.01210913668 | Y66: 0.4396091888 | Z66: - | AA66: - | AB66: - | AC66: - | AD66: - | AE66: 2002-12-06 | AF66: 7.1 | AH66: 7.1
B67: 2002-12-07 | C67: 32 | D67: 1 | E67: 9.626676754 | F67: 0.04506488026 | G67: 2.594270867 | H67: 0.01027710006 | I67: 0.5499542055 | J67: 0.002425992337 | K67: 0.1893587744 | L67: 0.000879088315 | M67: 0.09835445962 | N67: 0.01427320925 | O67: 0.6940388909 | P67: 0.003015507344 | Q67: 0.224259825 | R67: 0.0008920061621 | S67: 0.1161602082 | T67: 0.00804504324 | U67: 0.6291719139 | V67: 0.002354302801 | W67: 0.1453590969 | X67: 0.01196296252 | Y67: 0.4515721513 | Z67: - | AA67: - | AB67: - | AC67: - | AD67: - | AE67: 2002-12-07 | AF67: 6.9 | AH67: 6.9
B68: 2002-12-08 | C68: 33 | D68: 1 | E68: 9.613739048 | F68: 0.04303461851 | G68: 2.637305485 | H68: 0.009692885648 | I68: 0.5596470912 | J68: 0.002278367192 | K68: 0.1916371416 | L68: 0.0007748520667 | M68: 0.09912931168 | N68: 0.01335140012 | O68: 0.707390291 | P68: 0.002842924846 | Q68: 0.2271027499 | R68: 0.0007738027725 | S68: 0.116934011 | T68: 0.00758261355 | U68: 0.6367545275 | V68: 0.002252144708 | W68: 0.1476112416 | X68: 0.01181751714 | Y68: 0.4633896685 | Z68: - | AA68: - | AB68: - | AC68: - | AD68: - | AE68: 2002-12-08 | AF68: 6.7 | AH68: 6.7
B69: 2002-12-09 | C69: 34 | D69: 1 | E69: 9.601566972 | F69: 0.04107012431 | G69: 2.678375609 | H69: 0.009118240196 | I69: 0.5687653313 | J69: 0.00213976197 | K69: 0.1937769036 | L69: 0.0006768369457 | M69: 0.09980614863 | N69: 0.01241981285 | O69: 0.7198101039 | P69: 0.002680324245 | Q69: 0.2297830741 | R69: 0.000665108072 | S69: 0.1175991191 | T69: 0.00714523523 | U69: 0.6438997627 | V69: 0.002154072458 | W69: 0.149765314 | X69: 0.0116728222 | Y69: 0.4750624907 | Z69: - | AA69: - | AB69: - | AC69: - | AD69: - | AE69: 2002-12-09 | AF69: 6.5 | AH69: 6.5
B70: 2002-12-10 | C70: 35 | D70: 1 | E70: 9.59016857 | F70: 0.0401126144 | G70: 2.718488224 | H70: 0.008835365634 | I70: 0.577600697 | J70: 0.002035736537 | K70: 0.1958126401 | L70: 0.0005894875056 | M70: 0.1003956361 | N70: 0.01195350102 | O70: 0.7317636049 | P70: 0.002568259242 | Q70: 0.2323513334 | R70: 0.0005765585269 | S70: 0.1181756776 | T70: 0.006935568638 | U70: 0.6508353314 | V70: 0.002106526677 | W70: 0.1518718407 | X70: 0.01160076278 | Y70: 0.4866632535 | Z70: - | AA70: - | AB70: - | AC70: - | AD70: - | AE70: 2002-12-10 | AF70: 6.4 | AH70: 6.4
B71: 2002-12-11 | C71: 36 | D71: 1 | E71: 9.579551438 | F71: 0.03824708349 | G71: 2.756735307 | H71: 0.008279818535 | I71: 0.5858805155 | J71: 0.001913574487 | K71: 0.1977262146 | L71: 0.0005038664475 | M71: 0.1008995026 | N71: 0.01102397754 | O71: 0.7427875824 | P71: 0.002423342364 | Q71: 0.2347746757 | R71: 0.0004854937977 | S71: 0.1186611714 | T71: 0.00653355698 | U71: 0.6573688883 | V71: 0.002014333063 | W71: 0.1538861738 | X71: 0.01145723303 | Y71: 0.4981204865 | Z71: - | AA71: - | AB71: - | AC71: - | AD71: - | AE71: 2002-12-11 | AF71: 6.2 | AH71: 6.2
B72: 2002-12-12 | C72: 37 | D72: 1 | E72: 9.569722706 | F72: 0.03644738884 | G72: 2.793182696 | H72: 0.007723457744 | I72: 0.5936039733 | J72: 0.001800111597 | K72: 0.1995263262 | L72: 0.0004249730441 | M72: 0.1013244756 | N72: 0.01004544204 | O72: 0.7528330245 | P72: 0.002287863491 | Q72: 0.2370625392 | R72: 0.0004038082115 | S72: 0.1190649796 | T72: 0.006153703151 | U72: 0.6635225915 | V72: 0.001925894487 | W72: 0.1558120683 | X72: 0.01131450567 | Y72: 0.5094349922 | Z72: - | AA72: - | AB72: - | AC72: - | AD72: - | AE72: 2002-12-12 | AF72: 6 | AH72: 6
B73: 2002-12-13 | C73: 38 | D73: 1 | E73: 9.560689023 | F73: 0.03557212336 | G73: 2.82875482 | H73: 0.00676313978 | I73: 0.600367113 | J73: 0.001717421851 | K73: 0.201243748 | L73: 0.0003555445027 | M73: 0.1016800201 | N73: 0.008241198049 | O73: 0.7610742225 | P73: 0.002197675949 | Q73: 0.2392602152 | R73: 0.0003380668279 | S73: 0.1194030464 | T73: 0.005971742805 | U73: 0.6694943343 | V73: 0.001883043003 | W73: 0.1576951113 | X73: 0.01124344912 | Y73: 0.5206784413 | Z73: - | AA73: - | AB73: - | AC73: - | AD73: - | AE73: 2002-12-13 | AF73: 5.9 | AH73: 5.9
B74: 2002-12-14 | C74: 39 | D74: 1 | E74: 9.552456541 | F74: 0.03387043128 | G74: 2.862625251 | H74: 0 | I74: 0.600367113 | J74: 0.001619725633 | K74: 0.2028634737 | L74: 0.0002899024642 | M74: 0.1019699226 | N74: 0 | O74: 0.7610742225 | P74: 0.002078751661 | Q74: 0.2413389668 | R74: 0.0002733104003 | S74: 0.1196763568 | T74: 0.005623091254 | U74: 0.6751174255 | V74: 0.001799996212 | W74: 0.1594951075 | X74: 0.01110196242 | Y74: 0.5317804037 | Z74: - | AA74: - | AB74: - | AC74: - | AD74: - | AE74: 2002-12-14 | AF74: 5.7 | AH74: 5.7
B75: 2002-12-15 | C75: 40 | D75: 1 | E75: 9.545030902 | F75: 0.03304383927 | G75: 2.89566909 | H75: 0 | I75: 0.600367113 | J75: 0.001550583968 | K75: 0.2044140576 | L75: 0.0002329813748 | M75: 0.102202904 | N75: 0 | O75: 0.7610742225 | P75: 0.002002038078 | Q75: 0.2433410049 | R75: 0.0002218440972 | S75: 0.1198982009 | T75: 0.005456141805 | U75: 0.6805735674 | V75: 0.001759769587 | W75: 0.1612548771 | X75: 0.01103153704 | Y75: 0.5428119407 | Z75: - | AA75: - | AB75: - | AC75: - | AD75: - | AE75: 2002-12-15 | AF75: 5.6 | AH75: 5.6
B76: 2002-12-16 | C76: 41 | D76: 1 | E76: 9.538417223 | F76: 0.03143866763 | G76: 2.927107758 | H76: 0 | I76: 0.600367113 | J76: 0.001468001786 | K76: 0.2058820594 | L76: 0.0001808866605 | M76: 0.1023837906 | N76: 0 | O76: 0.7610742225 | P76: 0.00189872239 | Q76: 0.2452397273 | R76: 0.000173028404 | S76: 0.1200712293 | T76: 0.005136368442 | U76: 0.6857099358 | V76: 0.001681832764 | W76: 0.1629367098 | X76: 0.01089133388 | Y76: 0.5537032746 | Z76: - | AA76: - | AB76: - | AC76: - | AD76: - | AE76: 2002-12-16 | AF76: 5.4 | AH76: 5.4
B77: 2002-12-17 | C77: 42 | D77: 1 | E77: 9.532620083 | F77: 0.03065985919 | G77: 2.957767617 | H77: 0 | I77: 0.600367113 | J77: 0.001411963319 | K77: 0.2072940227 | L77: 0.0001368119331 | M77: 0.1025206026 | N77: 0 | O77: 0.7610742225 | P77: 0.001834787344 | Q77: 0.2470745146 | R77: 0.0001350593288 | S77: 0.1202062887 | T77: 0.004983301081 | U77: 0.6906932369 | V77: 0.001644092212 | W77: 0.1645808021 | X77: 0.01082156065 | Y77: 0.5645248353 | Z77: - | AA77: - | AB77: - | AC77: - | AD77: - | AE77: 2002-12-17 | AF77: 5.3 | AH77: 5.3
B78: 2002-12-18 | C78: =+C77+D78 -> 43 | D78: =+IF((COUNT(AH78))=1,1)+IF((COUNT(AH78=0)),0) -> 1 | E78: 9.527643515 | F78: =1/(1+EXP(-$I$2*($AH78-$J$2)))/$H$2 -> 0.02989673412 | G78: 2.987664351 | H78: =MAX((1-EXP(-$K$3*($E78-$L$3)))/(1+EXP(-$I$3*($AH78-$J$3)))/$H$3,0) -> 0 | I78: 0.600367113 | J78: =MAX((1-EXP(-$K$4*($E78-$L$4)))/(1+EXP(-$I$4*($AH78-$J$4)))/$H$4,0) -> 0.001361966826 | K78: 0.2086559896 | L78: =MAX((1-EXP(-$K$5*($E78-$L$5)))/(1+EXP(-$I$5*($AH78-$J$5)))/$H$5,0) -> 9.906749151e-05 | M78: 0.1026196701 | N78: =MAX((1-EXP(-$K$6*($E78-$L$6)))/(1+EXP(-$I$6*($AH78-$J$6)))/$H$6,0) -> 0 | O78: 0.7610742225 | P78: =MAX((1-EXP(-$K$7*($E78-$L$7)))/(1+EXP(-$I$7*($AH78-$J$7)))/$H$7,0) -> 0.001776530629 | Q78: 0.2488510453 | R78: 0.0001031164215 | S78: 0.1203094051 | T78: =1/(1+EXP(-$I$9*($AH78-$J$9)))/$H$9 -> 0.004834621742 | U78: 0.6955278586 | V78: =1/(1+EXP(-$I$10*($AH78-$J$10)))/$H$10 -> 0.00160715028 | W78: 0.1661879523 | X78: =1/(1+EXP(-$I$11*($AH78-$J$11)))/$H$11 -> 0.01075200932 | Y78: 0.5752768446 | Z78: - | AA78: - | AB78: - | AC78: - | AD78: - | AE78: 2002-12-18 | AF78: 5.2 | AH78: =IF(DATE(IF($B$10>=10,2002,2003),$B$10,$C$10)>=B78,"",IF(AG78="",AF78+$AJ$9,AG78)) -> 5.2
B79: 2002-12-19 | C79: 44 | D79: 1 | E79: =INDIRECT("気象データ!"&$D$6&ROW()+320) -> 9.523490994 | F79: 0.02914915527 | G79: 3.016813506 | H79: 0 | I79: 0.600367113 | J79: 0.001317912304 | K79: 0.2099739019 | L79: 6.769087243e-05 | M79: 0.1026873609 | N79: 0 | O79: 0.7610742225 | P79: 0.001723808517 | Q79: 0.2505748538 | R79: =MAX((1-EXP(-$K$8*($E79-$L$8)))/(1+EXP(-$I$8*($AH79-$J$8)))/$H$8,0) -> 7.701032688e-05 | S79: 0.1203864154 | T79: 0.004690214846 | U79: 0.7002180735 | V79: 0.001570992217 | W79: 0.1677589445 | X79: 0.01068268206 | Y79: 0.5859595266 | Z79: =IF($B$3="播種期",IF($C80=1,"◎","-"),"-") -> - | AA79: =IF($B$3="播種期",IF(AND(G79>=1,G78<1),"◎","-"),IF($B$3="出芽期",IF($C80=1,"◎","-"),"-")) -> - | AB79: =IF($B$3="播種期",IF(AND(I79>=1,I78<1),"◎","-"),IF($B$3="出芽期",IF(AND(O79>=1,O78<1),"◎","-"),IF($B$3="茎立期",IF($C80=1,"◎","-"),"-"))) -> - | AC79: =IF($B$3="播種期",IF(AND(K79>=1,K78<1),"◎","-"),IF($B$3="出芽期",IF(AND(Q79>=1,Q78<1),"◎","-"),IF($B$3="茎立期",IF(AND(U79>=1,U78<1),"◎","-"),IF($B$3="出穂期",IF($C80=1,"◎","-"),"-")))) -> - | AD79: =IF($B$3="播種期",IF(AND(M79>=1,M78<1),"◎","-"),IF($B$3="出芽期",IF(AND(S79>=1,S78<1),"◎","-"),IF($B$3="茎立期",IF(AND(W79>=1,W78<1),"◎","-"),IF($B$3="出穂期",IF(AND(Y79>=1,Y78<1),"◎","-"),IF($C80=1,"◎","-"))))) -> - | AE79: 2002-12-19 | AF79: =INDIRECT("気象データ!"&$D$6&ROW()-8) -> 5.1 | AH79: 5.1
B80: 2002-12-20 | C80: 45 | D80: 1 | E80: 9.520165428 | F80: 0.02841697741 | G80: 3.045230484 | H80: 0 | I80: 0.600367113 | J80: 0.001279680376 | K80: 0.2112535823 | L80: 4.268906199e-05 | M80: 0.10273005 | N80: 0 | O80: 0.7610742225 | P80: 0.001676461682 | Q80: 0.2522513155 | R80: 5.652474374e-05 | S80: 0.1204429402 | T80: 0.004549967259 | U80: 0.7047680407 | V80: 0.001535603451 | W80: 0.169294548 | X80: 0.01061358104 | Y80: 0.5965731077 | Z80: - | AA80: - | AB80: - | AC80: - | AD80: - | AE80: 2002-12-20 | AF80: 5 | AH80: 5
B81: 2002-12-21 | C81: 46 | D81: 1 | E81: 9.517669154 | F81: 0.02770004766 | G81: 3.072930531 | H81: 0 | I81: 0.600367113 | J81: 0.001247132971 | K81: 0.2125007152 | L81: 2.40382835e-05 | M81: 0.1027540883 | N81: 0 | O81: 0.7610742225 | P81: 0.001634316162 | Q81: 0.2538856316 | R81: 4.141859042e-05 | S81: 0.1204843587 | T81: 0.004413768269 | U81: 0.709181809 | V81: 0.001500969584 | W81: 0.1707955176 | X81: 0.01054470838 | Y81: 0.6071178161 | Z81: - | AA81: - | AB81: - | AC81: - | AD81: - | AE81: 2002-12-21 | AF81: 4.9 | AH81: 4.9
B82: 2002-12-22 | C82: 47 | D82: 1 | E82: 9.516003927 | F82: 0.0269982061 | G82: 3.099928737 | H82: 0 | I82: 0.600367113 | J82: 0.001220114134 | K82: 0.2137208294 | L82: 1.168407077e-05 | M82: 0.1027657723 | N82: 0 | O82: 0.7610742225 | P82: 0.001597184412 | Q82: 0.255482816 | R82: 3.142838797e-05 | S82: 0.1205157871 | T82: 0.004281509575 | U82: 0.7134633186 | V82: 0.001467076405 | W82: 0.172262594 | X82: 0.01047606616 | Y82: 0.6175938822 | Z82: - | AA82: - | AB82: - | AC82: - | AD82: - | AE82: 2002-12-22 | AF82: 4.8 | AH82: 4.8
B83: 2002-12-23 | C83: 48 | D83: 1 | E83: 9.515170923 | F83: 0.02631128618 | G83: 3.126240024 | H83: 0 | I83: 0.600367113 | J83: 0.001198450961 | K83: 0.2149192803 | L83: 5.541628059e-06 | M83: 0.102771314 | N83: 0 | O83: 0.7610742225 | P83: 0.00156486645 | Q83: 0.2570476825 | R83: 2.627082897e-05 | S83: 0.120542058 | T83: 0.004153085263 | U83: 0.7176164038 | V83: 0.00143390988 | W83: 0.1736965039 | X83: 0.01040765645 | Y83: 0.6280015387 | Z83: - | AA83: - | AB83: - | AC83: - | AD83: - | AE83: 2002-12-23 | AF83: 4.7 | AH83: 4.7
B84: 2002-12-24 | C84: 49 | D84: 1 | E84: 9.515170728 | F84: 0.02563911529 | G84: 3.151879139 | H84: 0 | I84: 0.600367113 | J84: 0.001181954657 | K84: 0.216101235 | L84: 5.496473382e-06 | M84: 0.1027768104 | N84: 0 | O84: 0.7610742225 | P84: 0.001537151076 | Q84: 0.2585848336 | R84: 2.564549546e-05 | S84: 0.1205677035 | T84: 0.004028391788 | U84: 0.7216447956 | V84: 0.001401456164 | W84: 0.17509796 | X84: 0.01033948124 | Y84: 0.6383410199 | Z84: - | AA84: - | AB84: - | AC84: - | AD84: - | AE84: 2002-12-24 | AF84: 4.6 | AH84: 4.6
B85: 2002-12-25 | C85: 50 | D85: 1 | E85: 9.516003342 | F85: 0.02433830258 | G85: 3.176217442 | H85: 0 | I85: 0.600367113 | J85: 0.001154165459 | K85: 0.2172554004 | L85: 1.131444413e-05 | M85: 0.1027881249 | N85: 0 | O85: 0.7610742225 | P85: 0.00148671071 | Q85: 0.2600715443 | R85: 2.852593739e-05 | S85: 0.1205962294 | T85: 0.003789794863 | U85: 0.7254345905 | V85: 0.001338632698 | W85: 0.1764365927 | X85: 0.01020384226 | Y85: 0.6485448622 | Z85: - | AA85: - | AB85: - | AC85: - | AD85: - | AE85: 2002-12-25 | AF85: 4.4 | AH85: 4.4
B86: 2002-12-26 | C86: 51 | D86: 1 | E86: 9.517668178 | F86: 0.02370928934 | G86: 3.199926731 | H86: 0 | I86: 0.600367113 | J86: 0.001147401161 | K86: 0.2184028016 | L86: 2.29124514e-05 | M86: 0.1028110373 | N86: 0 | O86: 0.7610742225 | P86: 0.001467728549 | Q86: 0.2615392728 | R86: 3.581697634e-05 | S86: 0.1206320464 | T86: 0.003675695939 | U86: 0.7291102864 | V86: 0.001308236189 | W86: 0.1777448289 | X86: 0.01013638233 | Y86: 0.6586812445 | Z86: - | AA86: - | AB86: - | AC86: - | AD86: - | AE86: 2002-12-26 | AF86: 4.3 | AH86: 4.3
B87: 2002-12-27 | C87: 52 | D87: 1 | E87: 9.520164064 | F87: 0.0230942832 | G87: 3.223021014 | H87: 0 | I87: 0.600367113 | J87: 0.001145092372 | K87: 0.219547894 | L87: 4.005083434e-05 | M87: 0.1028510882 | N87: 0 | O87: 0.7610742225 | P87: 0.001452595812 | Q87: 0.2629918686 | R87: 4.65722705e-05 | S87: 0.1206786186 | T87: 0.003564936847 | U87: 0.7326752233 | V87: 0.001278498971 | W87: 0.1790233279 | X87: 0.01006916462 | Y87: 0.6687504091 | Z87: - | AA87: - | AB87: - | AC87: - | AD87: - | AE87: 2002-12-27 | AF87: 4.2 | AH87: 4.2
B88: 2002-12-28 | C88: 53 | D88: 1 | E88: 9.523489241 | F88: 0.02249308807 | G88: 3.245514102 | H88: 0 | I88: 0.600367113 | J88: 0.001147001842 | K88: 0.2206948958 | L88: 6.250927705e-05 | M88: 0.1029135975 | N88: 0 | O88: 0.7610742225 | P88: 0.001441072972 | Q88: 0.2644329416 | R88: 6.045749686e-05 | S88: 0.1207390761 | T88: 0.003457425493 | U88: 0.7361326488 | V88: 0.001249408135 | W88: 0.180272736 | X88: 0.01000219096 | Y88: 0.6787526001 | Z88: - | AA88: - | AB88: - | AC88: - | AD88: - | AE88: 2002-12-28 | AF88: 4.1 | AH88: 4.1
B89: 2002-12-29 | C89: 54 | D89: 1 | E89: 9.527641375 | F89: 0.02190550443 | G89: 3.267419607 | H89: 0 | I89: 0.600367113 | J89: 0.001152883303 | K89: 0.2218477791 | L89: 9.004506561e-05 | M89: 0.1030036425 | N89: 0 | O89: 0.7610742225 | P89: 0.001432916291 | Q89: 0.2658658579 | R89: 7.713623572e-05 | S89: 0.1208162124 | T89: 0.003353071981 | U89: 0.7394857207 | V89: 0.001220950963 | W89: 0.181493687 | X89: 0.009935463159 | Y89: 0.6886880632 | Z89: - | AA89: - | AB89: - | AC89: - | AD89: - | AE89: 2002-12-29 | AF89: 4 | AH89: 4
B90: 2002-12-30 | C90: 55 | D90: 1 | E90: 9.532617558 | F90: 0.02133132981 | G90: 3.288750936 | H90: 0 | I90: 0.600367113 | J90: 0.001162482962 | K90: 0.2230102621 | L90: 0.000122395128 | M90: 0.1031260376 | N90: 0 | O90: 0.7610742225 | P90: 0.001427879202 | Q90: 0.2672937371 | R90: 9.627270208e-05 | S90: 0.1209124851 | T90: 0.003251788589 | U90: 0.7427375093 | V90: 0.001193114929 | W90: 0.1826868019 | X90: 0.009868982975 | Y90: 0.6985570462 | Z90: - | AA90: - | AB90: - | AC90: - | AD90: - | AE90: 2002-12-30 | AF90: 3.9 | AH90: 3.9
B91: 2002-12-31 | C91: 56 | D91: 1 | E91: 9.538414314 | F91: 0.02077035907 | G91: 3.309521295 | H91: 0 | I91: 0.600367113 | J91: 0.001175541024 | K91: 0.2241858031 | L91: 0.0001592782278 | M91: 0.1032853159 | N91: 0 | O91: 0.7610742225 | P91: 0.001425713685 | Q91: 0.2687194508 | R91: 0.0001175343635 | S91: 0.1210300194 | T91: 0.00315348973 | U91: 0.7458909991 | V91: 0.001165887694 | W91: 0.1838526896 | X91: 0.009802752138 | Y91: 0.7083597983 | Z91: - | AA91: - | AB91: - | AC91: - | AD91: - | AE91: 2002-12-31 | AF91: 3.8 | AH91: 3.8
B92: 2003-01-01 | C92: 57 | D92: 1 | E92: 9.59016685 | F92: 0.02022238488 | G92: 3.32974368 | H92: 0.003082288613 | I92: 0.6034494017 | J92: 0.001410839694 | K92: 0.2255966428 | L92: 0.0004779722851 | M92: 0.1037632882 | N92: 0.002713439958 | O92: 0.7637876625 | P92: 0.001604628552 | Q92: 0.2703240793 | R92: 0.0003120186875 | S92: 0.1213420381 | T92: 0.003058091919 | U92: 0.748949091 | V92: 0.001139257109 | W92: 0.1849919467 | X92: 0.009736772337 | Y92: 0.7180965707 | Z92: - | AA92: - | AB92: - | AC92: - | AD92: - | AE92: 2003-01-01 | AF92: 3.7 | AH92: 3.7
B93: 2003-01-02 | C93: 58 | D93: 1 | E93: 9.60156513 | F93: 0.01968719798 | G93: 3.349430878 | H93: 0.002947160418 | I93: 0.6063965621 | J93: 0.001443309939 | K93: 0.2270399527 | L93: 0.0005403482291 | M93: 0.1043036364 | N93: 0.002537748724 | O93: 0.7663254112 | P93: 0.001617566786 | Q93: 0.2719416461 | R93: 0.0003440629451 | S93: 0.1216861011 | T93: 0.002965513742 | U93: 0.7519146047 | V93: 0.001113211217 | W93: 0.1861051579 | X93: 0.009671045229 | Y93: 0.7277676159 | Z93: - | AA93: - | AB93: - | AC93: - | AD93: - | AE93: 2003-01-02 | AF93: 3.6 | AH93: 3.6
B94: 2003-01-03 | C94: 59 | D94: 1 | E94: 9.613737085 | F94: 0.01968719798 | G94: 3.369118076 | H94: 0.00294716043 | I94: 0.6093437225 | J94: 0.001498859696 | K94: 0.2285388124 | L94: 0.0006098175324 | M94: 0.1049134539 | N94: 0.002537749088 | O94: 0.7688631603 | P94: 0.001662725476 | Q94: 0.2736043716 | R94: 0.0003863280149 | S94: 0.1220724291 | T94: 0.002965513742 | U94: 0.7548801185 | V94: 0.001113211217 | W94: 0.1872183692 | X94: 0.009671045229 | Y94: 0.7374386611 | Z94: - | AA94: - | AB94: - | AC94: - | AD94: - | AE94: 2003-01-03 | AF94: 3.6 | AH94: 3.6
B95: 2003-01-04 | C95: 60 | D95: 1 | E95: 9.626674673 | F95: 0.0191645876 | G95: 3.388282664 | H95: 0.002817120694 | I95: 0.6121608432 | J95: 0.001534584321 | K95: 0.2300733968 | L95: 0.0006764741927 | M95: 0.1055899281 | N95: 0.002372203262 | O95: 0.7712353635 | P95: 0.001678036478 | Q95: 0.2752824081 | R95: 0.000418866402 | S95: 0.1224912955 | T95: 0.002875675817 | U95: 0.7577557943 | V95: 0.001087738247 | W95: 0.1883061074 | X95: 0.009605572432 | Y95: 0.7470442336 | Z95: - | AA95: - | AB95: - | AC95: - | AD95: - | AE95: 2003-01-04 | AF95: 3.5 | AH95: 3.5
B96: 2003-01-05 | C96: 61 | D96: 1 | E96: 9.640369421 | F96: 0.0191645876 | G96: 3.407447251 | H96: 0.002817120694 | I96: 0.6149779639 | J96: 0.001594347878 | K96: 0.2316677446 | L96: 0.0007507473074 | M96: 0.1063406754 | N96: 0.002372203262 | O96: 0.7736075668 | P96: 0.001726476684 | Q96: 0.2770088848 | R96: 0.0004633157014 | S96: 0.1229546112 | T96: 0.002875675817 | U96: 0.7606314701 | V96: 0.001087738247 | W96: 0.1893938456 | X96: 0.009605572432 | Y96: 0.756649806 | Z96: - | AA96: - | AB96: - | AC96: - | AD96: - | AE96: 2003-01-05 | AF96: 3.5 | AH96: 3.5
B97: 2003-01-06 | C97: 62 | D97: 1 | E97: 9.654812444 | F97: 0.0191645876 | G97: 3.426611839 | H97: 0.002817120694 | I97: 0.6177950846 | J97: 0.001656349156 | K97: 0.2333240938 | L97: 0.0008272820448 | M97: 0.1071679575 | N97: 0.002372203262 | O97: 0.7759797701 | P97: 0.001776769016 | Q97: 0.2787856538 | R97: 0.000509175691 | S97: 0.1234637869 | T97: 0.002875675817 | U97: 0.7635071459 | V97: 0.001087738247 | W97: 0.1904815839 | X97: 0.009605572432 | Y97: 0.7662553784 | Z97: - | AA97: - | AB97: - | AC97: - | AD97: - | AE97: 2003-01-06 | AF97: 3.5 | AH97: 3.5
B98: 2003-01-07 | C98: 63 | D98: 1 | E98: 9.669994469 | F98: 0.0186543417 | G98: 3.445266181 | H98: 0.002692051794 | I98: 0.6204871364 | J98: 0.001695491548 | K98: 0.2350195853 | L98: 0.0008982298161 | M98: 0.1080661873 | N98: 0.002216388173 | O98: 0.7781961582 | P98: 0.001794369701 | Q98: 0.2805800235 | R98: 0.0005412619577 | S98: 0.1240050488 | T98: 0.002788500761 | U98: 0.7662956467 | V98: 0.001062826619 | W98: 0.1915444105 | X98: 0.009540355529 | Y98: 0.775795734 | Z98: - | AA98: - | AB98: - | AC98: - | AD98: - | AE98: 2003-01-07 | AF98: 3.4 | AH98: 3.4
B99: 2003-01-08 | C99: 64 | D99: 1 | E99: 9.685905849 | F99: 0.0186543417 | G99: 3.463920522 | H99: 0.002692051794 | I99: 0.6231791882 | J99: 0.001760460857 | K99: 0.2367800462 | L99: 0.0009777582053 | M99: 0.1090439455 | N99: 0.002216388173 | O99: 0.7804125464 | P99: 0.001846924557 | Q99: 0.282426948 | R99: 0.0005881456151 | S99: 0.1245931945 | T99: 0.002788500761 | U99: 0.7690841474 | V99: 0.001062826619 | W99: 0.1926072371 | X99: 0.009540355529 | Y99: 0.7853360895 | Z99: - | AA99: - | AB99: - | AC99: - | AD99: - | AE99: 2003-01-08 | AF99: 3.4 | AH99: 3.4
B100: 2003-01-09 | C100: 65 | D100: 1 | E100: 9.702536585 | F100: 0.01815624738 | G100: 3.48207677 | H100: 0.002571830913 | I100: 0.6257510191 | J100: 0.00180052868 | K100: 0.2385805749 | L100: 0.001049804313 | M100: 0.1100937498 | N100: 0.002069868956 | O100: 0.7824824154 | P100: 0.001864953743 | Q100: 0.2842919018 | R100: 0.0006185977728 | S100: 0.1252117922 | T100: 0.002703913153 | U100: 0.7717880606 | V100: 0.001038464938 | W100: 0.1936457021 | X100: 0.009475396065 | Y100: 0.7948114855 | Z100: - | AA100: - | AB100: - | AC100: - | AD100: - | AE100: 2003-01-09 | AF100: 3.3 | AH100: 3.3
B101: 2003-01-10 | C101: 66 | D101: 1 | E101: 9.719876348 | F101: 0.01815624738 | G101: 3.500233017 | H101: 0.002571830913 | I101: 0.62832285 | J101: 0.001867641667 | K101: 0.2404482165 | L101: 0.001131158531 | M101: 0.1112249083 | N101: 0.002069868956 | O101: 0.7845522843 | P101: 0.00191910026 | Q101: 0.286211002 | R101: 0.0006657848665 | S101: 0.1258775771 | T101: 0.002703913153 | U101: 0.7744919737 | V101: 0.001038464938 | W101: 0.194684167 | X101: 0.009475396065 | Y101: 0.8042868816 | Z101: - | AA101: - | AB101: - | AC101: - | AD101: - | AE101: 2003-01-10 | AF101: 3.3 | AH101: 3.3
B102: 2003-01-11 | C102: 67 | D102: 1 | E102: 9.737914501 | F102: 0.01815624738 | G102: 3.518389265 | H102: 0.002571830913 | I102: 0.6308946809 | J102: 0.001936029422 | K102: 0.242384246 | L102: 0.001213356064 | M102: 0.1124382644 | N102: 0.002069868956 | O102: 0.7866221533 | P102: 0.001974328248 | Q102: 0.2881853303 | R102: 0.0007135359796 | S102: 0.1265911131 | T102: 0.002703913153 | U102: 0.7771958869 | V102: 0.001038464938 | W102: 0.1957226319 | X102: 0.009475396065 | Y102: 0.8137622777 | Z102: - | AA102: - | AB102: - | AC102: - | AD102: - | AE102: 2003-01-11 | AF102: 3.3 | AH102: 3.3
B103: 2003-01-12 | C103: 68 | D103: 1 | E103: 9.756640115 | F103: 0.01815624738 | G103: 3.536545512 | H103: 0.002571830913 | I103: 0.6334665118 | J103: 0.002005514828 | K103: 0.2443897608 | L103: 0.001296138135 | M103: 0.1137344025 | N103: 0.002069868956 | O103: 0.7886920222 | P103: 0.002030498675 | Q103: 0.290215829 | R103: 0.000761705161 | S103: 0.1273528182 | T103: 0.002703913153 | U103: 0.7798998001 | V103: 0.001038464938 | W103: 0.1967610969 | X103: 0.009475396065 | Y103: 0.8232376737 | Z103: - | AA103: - | AB103: - | AC103: - | AD103: - | AE103: 2003-01-12 | AF103: 3.3 | AH103: 3.3
B104: 2003-01-13 | C104: 69 | D104: 1 | E104: 9.776041998 | F104: 0.01815624738 | G104: 3.554701759 | H104: 0.002571830913 | I104: 0.6360383427 | J104: 0.002075923567 | K104: 0.2464656844 | L104: 0.001379254995 | M104: 0.1151136575 | N104: 0.002069868956 | O104: 0.7907618912 | P104: 0.002087474418 | Q104: 0.2923033034 | R104: 0.0008101510184 | S104: 0.1281629693 | T104: 0.002703913153 | U104: 0.7826037132 | V104: 0.001038464938 | W104: 0.1977995618 | X104: 0.009475396065 | Y104: 0.8327130698 | Z104: - | AA104: - | AB104: - | AC104: - | AD104: - | AE104: 2003-01-13 | AF104: 3.3 | AH104: 3.3
B105: 2003-01-14 | C105: 70 | D105: 1 | E105: 9.796108709 | F105: 0.01767009109 | G105: 3.57237185 | H105: 0.002456332183 | I105: 0.6384946749 | J105: 0.002115754729 | K105: 0.2485814391 | L105: 0.001450150885 | M105: 0.1165638084 | N105: 0.001932212149 | O105: 0.7926941033 | P105: 0.002104414433 | Q105: 0.2944077178 | R105: 0.0008351416815 | S105: 0.1289981109 | T105: 0.002621839497 | U105: 0.7852255527 | V105: 0.001014642 | W105: 0.1988142038 | X105: 0.009410695552 | Y105: 0.8421237654 | Z105: - | AA105: - | AB105: - | AC105: - | AD105: - | AE105: 2003-01-14 | AF105: 3.2 | AH105: 3.2
B106: 2003-01-15 | C106: 71 | D106: 1 | E106: 9.816828583 | F106: 0.01767009109 | G106: =IF($D106=0,0,G105+F106) -> 3.590041942 | H106: 0.002456332183 | I106: =IF($D106=0,0,I105+H106) -> 0.6409510071 | J106: 0.002186455019 | K106: =IF($D106=0,0,K105+J106) -> 0.2507678941 | L106: 0.001532529958 | M106: =IF($D106=0,0,M105+L106) -> 0.1180963384 | N106: 0.001932212149 | O106: =IF($D106=0,0,O105+N106) -> 0.7946263155 | P106: 0.002161495726 | Q106: =IF($D106=0,0,Q105+P106) -> 0.2965692135 | R106: 0.0008824027202 | S106: =IF($D106=0,0,S105+R106) -> 0.1298805137 | T106: 0.002621839497 | U106: =IF($D106=0,0,U105+T106) -> 0.7878473922 | V106: 0.001014642 | W106: =IF($D106=0,0,W105+V106) -> 0.1998288458 | X106: 0.009410695552 | Y106: =IF($D106=0,0,Y105+X106) -> 0.8515344609 | Z106: - | AA106: - | AB106: - | AC106: - | AD106: - | AE106: 2003-01-15 | AF106: 3.2 | AH106: 3.2
B107: 2003-01-16 | C107: 72 | D107: 1 | E107: 9.838189754 | F107: 0.01767009109 | G107: 3.607712033 | H107: 0.002456332183 | I107: 0.6434073393 | J107: 0.002257573267 | K107: 0.2530254674 | L107: 0.001614562068 | M107: 0.1197109004 | N107: 0.001932212149 | O107: 0.7965585276 | P107: 0.002218980068 | Q107: 0.2987881936 | R107: 0.0009295526405 | S107: 0.1308100663 | T107: 0.002621839497 | U107: 0.7904692317 | V107: 0.001014642 | W107: 0.2008434878 | X107: 0.009410695552 | Y107: 0.8609451565 | Z107: - | AA107: - | AB107: - | AC107: - | AD107: - | AE107: 2003-01-16 | AF107: 3.2 | AH107: 3.2
B108: 2003-01-17 | C108: 73 | D108: 1 | E108: 9.860180171 | F108: 0.01767009109 | G108: 3.625382124 | H108: 0.002456332183 | I108: 0.6458636715 | J108: 0.002328955311 | K108: 0.2553544227 | L108: 0.001696044936 | M108: 0.1214069454 | N108: 0.001932212149 | O108: 0.7984907398 | P108: 0.002276745548 | Q108: 0.3010649392 | R108: 0.0009764770237 | S108: 0.1317865433 | T108: 0.002621839497 | U108: 0.7930910712 | V108: 0.001014642 | W108: 0.2018581298 | X108: 0.009410695552 | Y108: 0.870355852 | Z108: - | AA108: - | AB108: - | AC108: - | AD108: - | AE108: 2003-01-17 | AF108: 3.2 | AH108: 3.2
B109: 2003-01-18 | C109: 74 | D109: 1 | E109: 9.882787624 | F109: 0.01767009109 | G109: 3.643052215 | H109: 0.002456332183 | I109: 0.6483200036 | J109: 0.002400452735 | K109: 0.2577548754 | L109: 0.001776789276 | M109: 0.1231837346 | N109: 0.001932212149 | O109: 0.8004229519 | P109: 0.00233467446 | Q109: 0.3033996136 | R109: 0.001023068188 | S109: 0.1328096115 | T109: 0.002621839497 | U109: 0.7957129107 | V109: 0.001014642 | W109: 0.2028727718 | X109: 0.009410695552 | Y109: 0.8797665476 | Z109: - | AA109: - | AB109: - | AC109: - | AD109: - | AE109: 2003-01-18 | AF109: 3.2 | AH109: 3.2
B110: 2003-01-19 | C110: 75 | D110: 1 | E110: 9.905999761 | F110: 0.01767009109 | G110: 3.660722306 | H110: 0.002456332183 | I110: 0.6507763358 | J110: 0.002471923281 | K110: 0.2602267987 | L110: 0.001856619184 | M110: 0.1250403538 | N110: 0.001932212149 | O110: 0.8023551641 | P110: 0.002392653638 | Q110: 0.3057922673 | R110: 0.00106922543 | S110: 0.1338788369 | T110: 0.002621839497 | U110: 0.7983347502 | V110: 0.001014642 | W110: 0.2038874138 | X110: 0.009410695552 | Y110: 0.8891772431 | Z110: - | AA110: - | AB110: - | AC110: - | AD110: - | AE110: 2003-01-19 | AF110: 3.2 | AH110: 3.2
B111: 2003-01-20 | C111: 76 | D111: 1 | E111: 9.929804108 | F111: 0.01767009109 | G111: 3.678392397 | H111: 0.002456332183 | I111: 0.653232668 | J111: 0.002543231202 | K111: 0.2627700299 | L111: 0.001935372375 | M111: 0.1269757262 | N111: 0.001932212149 | O111: 0.8042873762 | P111: 0.002450574739 | Q111: 0.308242842 | R111: 0.00111485519 | S111: 0.1349936921 | T111: 0.002621839497 | U111: 0.8009565897 | V111: 0.001014642 | W111: 0.2049020558 | X111: 0.009410695552 | Y111: 0.8985879387 | Z111: - | AA111: - | AB111: - | AC111: - | AD111: - | AE111: 2003-01-20 | AF111: 3.2 | AH111: 3.2
B112: 2003-01-21 | C112: 77 | D112: 1 | E112: 9.954188094 | F112: 0.01767009109 | G112: 3.696062488 | H112: 0.002456332183 | I112: 0.6556890002 | J112: 0.002614247545 | K112: 0.2653842774 | L112: 0.002012900308 | M112: 0.1289886265 | N112: 0.001932212149 | O112: 0.8062195884 | P112: 0.002508334478 | Q112: 0.3107511765 | R112: 0.00115987116 | S112: 0.1361535633 | T112: 0.002621839497 | U112: 0.8035784292 | V112: 0.001014642 | W112: 0.2059166978 | X112: 0.009410695552 | Y112: 0.9079986342 | Z112: - | AA112: - | AB112: - | AC112: - | AD112: - | AE112: 2003-01-21 | AF112: 3.2 | AH112: 3.2
B113: 2003-01-22 | C113: 78 | D113: 1 | E113: 9.979139062 | F113: 0.01767009109 | G113: 3.713732579 | H113: 0.002456332183 | I113: 0.6581453324 | J113: 0.002684850386 | K113: 0.2680691278 | L113: 0.00208906819 | M113: 0.1310776947 | N113: 0.001932212149 | O113: 0.8081518005 | P113: 0.002565834829 | Q113: 0.3133170113 | R113: 0.001204194326 | S113: 0.1373577576 | T113: 0.002621839497 | U113: 0.8062002687 | V113: 0.001014642 | W113: 0.2069313398 | X113: 0.009410695552 | Y113: 0.9174093298 | Z113: - | AA113: - | AB113: - | AC113: - | AD113: - | AE113: 2003-01-22 | AF113: 3.2 | AH113: 3.2
B114: 2003-01-23 | C114: 79 | D114: 1 | E114: 10.0046443 | F114: 0.01767009109 | G114: 3.73140267 | H114: 0.002456332183 | I114: 0.6606016646 | J114: 0.002754924995 | K114: 0.2708240528 | L114: 0.002163754866 | M114: 0.1332414496 | N114: 0.001932212149 | O114: 0.8100840127 | P114: 0.00262298317 | Q114: 0.3159399945 | R114: 0.001247752945 | S114: 0.1386055106 | T114: 0.002621839497 | U114: 0.8088221082 | V114: 0.001014642 | W114: 0.2079459818 | X114: 0.009410695552 | Y114: 0.9268200253 | Z114: - | AA114: - | AB114: - | AC114: - | AD114: - | AE114: 2003-01-23 | AF114: 3.2 | AH114: 3.2
B115: 2003-01-24 | C115: 80 | D115: 1 | E115: 10.03069103 | F115: 0.01767009109 | G115: 3.749072761 | H115: 0.002456332183 | I115: 0.6630579967 | J115: 0.00282436396 | K115: 0.2736484168 | L115: 0.002236852616 | M115: 0.1354783022 | N115: 0.001932212149 | O115: 0.8120162248 | P115: 0.002679692396 | Q115: 0.3186196869 | R115: 0.001290482482 | S115: 0.139895993 | T115: 0.002621839497 | U115: 0.8114439477 | V115: 0.001014642 | W115: 0.2089606238 | X115: 0.009410695552 | Y115: 0.9362307209 | Z115: - | AA115: - | AB115: - | AC115: - | AD115: - | AE115: 2003-01-24 | AF115: 3.2 | AH115: 3.2
B116: 2003-01-25 | C116: 81 | D116: 1 | E116: 10.05726648 | F116: 0.01767009109 | G116: 3.766742852 | H116: 0.002456332183 | I116: 0.6655143289 | J116: 0.002893067245 | K116: 0.276541484 | L116: 0.002308266864 | M116: 0.137786569 | N116: 0.001932212149 | O116: 0.813948437 | P116: 0.002735880984 | Q116: 0.3213555679 | R116: 0.001332325487 | S116: 0.1412283185 | T116: 0.002621839497 | U116: 0.8140657872 | V116: 0.001014642 | W116: 0.2099752658 | X116: 0.009410695552 | Y116: 0.9456414164 | Z116: - | AA116: - | AB116: - | AC116: - | AD116: - | AE116: 2003-01-25 | AF116: 3.2 | AH116: 3.2
B117: 2003-01-26 | C117: 82 | D117: 1 | E117: 10.08435784 | F117: 0.01767009109 | G117: 3.784412943 | H117: 0.002456332183 | I117: 0.6679706611 | J117: 0.002960942206 | K117: 0.2795024262 | L117: 0.0023779158 | M117: 0.1401644848 | N117: 0.001932212149 | O117: 0.8158806491 | P117: 0.002791473033 | Q117: 0.3241470409 | R117: 0.001373231432 | S117: 0.14260155 | T117: 0.002621839497 | U117: 0.8166876267 | V117: 0.001014642 | W117: 0.2109899078 | X117: 0.009410695552 | Y117: 0.955052112 | Z117: - | AA117: - | AB117: - | AC117: - | AD117: - | AE117: 2003-01-26 | AF117: 3.2 | AH117: 3.2
B118: 2003-01-27 | C118: 83 | D118: 1 | E118: 10.11195232 | F118: 0.01767009109 | G118: 3.802083035 | H118: 0.002456332183 | I118: 0.6704269933 | J118: 0.003027903565 | K118: 0.2825303298 | L118: 0.002445729942 | M118: 0.1426102148 | N118: 0.001932212149 | O118: 0.8178128613 | P118: 0.002846398254 | Q118: 0.3269934391 | R118: 0.001413156514 | S118: 0.1440147065 | T118: 0.002621839497 | U118: 0.8193094662 | V118: 0.001014642 | W118: 0.2120045498 | X118: 0.009410695552 | Y118: 0.9644628075 | Z118: - | AA118: - | AB118: - | AC118: - | AD118: - | AE118: 2003-01-27 | AF118: 3.2 | AH118: 3.2
B119: 2003-01-28 | C119: 84 | D119: 1 | E119: 10.14003715 | F119: 0.01767009109 | G119: 3.819753126 | H119: 0.002456332183 | I119: 0.6728833255 | J119: 0.003093873334 | K119: 0.2856242031 | L119: 0.002511651638 | M119: 0.1451218664 | N119: 0.001932212149 | O119: 0.8197450734 | P119: 0.002900591941 | Q119: 0.3298940311 | R119: 0.001452063415 | S119: 0.1454667699 | T119: 0.002621839497 | U119: 0.8219313057 | V119: 0.001014642 | W119: 0.2130191918 | X119: 0.009410695552 | Y119: 0.9738735031 | Z119: - | AA119: - | AB119: - | AC119: - | AD119: - | AE119: 2003-01-28 | AF119: 3.2 | AH119: 3.2
B120: 2003-01-29 | C120: 85 | D120: 1 | E120: 10.16859959 | F120: 0.01767009109 | G120: 3.837423217 | H120: 0.002456332183 | I120: 0.6753396577 | J120: 0.003158780704 | K120: 0.2887829838 | L120: 0.002575634514 | M120: 0.1476975009 | N120: 0.001932212149 | O120: 0.8216772856 | P120: 0.002953994903 | Q120: 0.332848026 | R120: 0.001489921044 | S120: 0.1469566909 | T120: 0.002621839497 | U120: 0.8245531452 | V120: 0.001014642 | W120: 0.2140338338 | X120: 0.009410695552 | Y120: 0.9832841986 | Z120: - | AA120: - | AB120: - | AC120: - | AD120: - | AE120: 2003-01-29 | AF120: 3.2 | AH120: 3.2
B121: 2003-01-30 | C121: 86 | D121: 1 | E121: 10.19762696 | F121: 0.01767009109 | G121: 3.855093308 | H121: 0.002456332183 | I121: 0.6777959898 | J121: 0.003222561905 | K121: 0.2920055457 | L121: 0.002637642889 | M121: 0.1503351438 | N121: 0.001932212149 | O121: 0.8236094977 | P121: 0.003006553373 | Q121: 0.3358545794 | R121: 0.001526704247 | S121: 0.1484833952 | T121: 0.002621839497 | U121: 0.8271749847 | V121: 0.001014642 | W121: 0.2150484758 | X121: 0.009410695552 | Y121: 0.9926948942 | Z121: - | AA121: - | AB121: - | AC121: - | AD121: - | AE121: 2003-01-30 | AF121: 3.2 | AH121: 3.2
B122: 2003-01-31 | C122: 87 | D122: 1 | E122: 10.22710664 | F122: 0.01767009109 | G122: 3.872763399 | H122: 0.002456332183 | I122: 0.680252322 | J122: 0.003285160025 | K122: 0.2952907058 | L122: 0.002697651156 | M122: 0.153032795 | N122: 0.001932212149 | O122: 0.8255417099 | P122: 0.003058218895 | Q122: 0.3389127983 | R122: 0.001562393504 | S122: 0.1500457887 | T122: 0.002621839497 | U122: 0.8297968242 | V122: 0.001014642 | W122: 0.2160631178 | X122: 0.009410695552 | Y122: 1.00210559 | Z122: - | AA122: - | AB122: - | AC122: - | AD122: - | AE122: 2003-01-31 | AF122: 3.2 | AH122: 3.2
B123: 2003-02-01 | C123: 88 | D123: 1 | E123: 10.25702608 | F123: 0.01767009109 | G123: 3.89043349 | H123: 0.002456332183 | I123: 0.6827086542 | J123: 0.003346524809 | K123: 0.2986372306 | L123: 0.002755643145 | M123: 0.1557884381 | N123: 0.001932212149 | O123: 0.827473922 | P123: 0.003108948184 | Q123: 0.3420217464 | R123: 0.001596974607 | S123: 0.1516427633 | T123: 0.002621839497 | U123: 0.8324186637 | V123: 0.001014642 | W123: 0.2170777598 | X123: 0.009410695552 | Y123: 1.011516285 | Z123: - | AA123: - | AB123: - | AC123: - | AD123: - | AE123: 2003-02-01 | AF123: 3.2 | AH123: 3.2
B124: 2003-02-02 | C124: 89 | D124: 1 | E124: 10.28737283 | F124: 0.01767009109 | G124: 3.908103581 | H124: 0.002456332183 | I124: 0.6851649864 | J124: 0.003406612437 | K124: 0.302043843 | L124: 0.002811611469 | M124: 0.1586000496 | N124: 0.001932212149 | O124: 0.8294061342 | P124: 0.00315870297 | Q124: 0.3451804494 | R124: 0.001630438331 | S124: 0.1532732016 | T124: 0.002621839497 | U124: 0.8350405032 | V124: 0.001014642 | W124: 0.2180924018 | X124: 0.009410695552 | Y124: 1.020926981 | Z124: - | AA124: - | AB124: - | AC124: - | AD124: - | AE124: 2003-02-02 | AF124: 3.2 | AH124: 3.2
B125: 2003-02-03 | C125: 90 | D125: 1 | E125: 10.31813454 | F125: 0.01815624738 | G125: 3.926259828 | H125: 0.002571830913 | I125: 0.6877368173 | J125: 0.003516700732 | K125: 0.3055605437 | L125: 0.002889894082 | M125: 0.1614899437 | N125: 0.002069868956 | O125: 0.8314760031 | P125: 0.003269492615 | Q125: 0.348449942 | R125: 0.001709759431 | S125: 0.1549829611 | T125: 0.002703913153 | U125: 0.8377444163 | V125: 0.001038464938 | W125: 0.2191308668 | X125: 0.009475396065 | Y125: 1.030402377 | Z125: - | AA125: - | AB125: - | AC125: - | AD125: - | AE125: 2003-02-03 | AF125: 3.3 | AH125: 3.3
B126: 2003-02-04 | C126: 91 | D126: 1 | E126: 10.34929895 | F126: 0.01815624738 | G126: 3.944416076 | H126: 0.002571830913 | I126: 0.6903086482 | J126: 0.003574977436 | K126: 0.3091355212 | L126: 0.002942265808 | M126: 0.1644322095 | N126: 0.002069868956 | O126: 0.8335458721 | P126: 0.00331812565 | Q126: 0.3517680677 | R126: 0.001741861025 | S126: 0.1567248221 | T126: 0.002703913153 | U126: 0.8404483295 | V126: 0.001038464938 | W126: 0.2201693317 | X126: 0.009475396065 | Y126: 1.039877773 | Z126: - | AA126: - | AB126: - | AC126: - | AD126: - | AE126: 2003-02-04 | AF126: 3.3 | AH126: 3.3
B127: 2003-02-05 | C127: 92 | D127: 1 | E127: 10.38085395 | F127: 0.01815624738 | G127: 3.962572323 | H127: 0.002571830913 | I127: 0.6928804791 | J127: 0.003631861254 | K127: 0.3127673824 | L127: 0.002992620846 | M127: 0.1674248303 | N127: 0.002069868956 | O127: 0.835615741 | P127: 0.003365677158 | Q127: 0.3551337448 | R127: 0.001772812479 | S127: 0.1584976346 | T127: 0.002703913153 | U127: 0.8431522426 | V127: 0.001038464938 | W127: 0.2212077966 | X127: 0.009475396065 | Y127: 1.049353169 | Z127: - | AA127: - | AB127: - | AC127: - | AD127: - | AE127: 2003-02-05 | AF127: 3.3 | AH127: 3.3
B128: 2003-02-06 | C128: 93 | D128: 1 | E128: 10.41278755 | F128: 0.0186543417 | G128: 3.981226665 | H128: 0.002692051794 | I128: 0.6955725309 | J128: 0.003741723434 | K128: 0.3165091059 | L128: 0.003066693993 | M128: 0.1704915243 | N128: 0.002216388173 | O128: 0.8378321292 | P128: 0.003477836428 | Q128: 0.3586115813 | R128: 0.001853099831 | S128: 0.1603507344 | T128: 0.002788500761 | U128: 0.8459407434 | V128: 0.001062826619 | W128: 0.2222706232 | X128: 0.009540355529 | Y128: 1.058893525 | Z128: - | AA128: - | AB128: - | AC128: - | AD128: - | AE128: 2003-02-06 | AF128: 3.4 | AH128: 3.4
B129: 2003-02-07 | C129: 94 | D129: 1 | E129: 10.44508787 | F129: 0.0186543417 | G129: 3.999881007 | H129: 0.002692051794 | I129: 0.6982645827 | J129: 0.003796560779 | K129: 0.3203056666 | L129: 0.003113477632 | M129: 0.173605002 | N129: 0.002216388173 | O129: 0.8400485174 | P129: 0.003524040653 | Q129: 0.3621356219 | R129: 0.001882580033 | S129: 0.1622333144 | T129: 0.002788500761 | U129: 0.8487292441 | V129: 0.001062826619 | W129: 0.2233334499 | X129: 0.009540355529 | Y129: 1.06843388 | Z129: - | AA129: - | AB129: - | AC129: - | AD129: - | AE129: 2003-02-07 | AF129: 3.4 | AH129: 3.4
B130: 2003-02-08 | C130: 95 | D130: 1 | E130: 10.4777432 | F130: 0.0191645876 | G130: 4.019045594 | H130: 0.002817120694 | I130: 0.7010817034 | J130: 0.003906505577 | K130: 0.3242121722 | L130: 0.003184895482 | M130: 0.1767898974 | N130: 0.002372203262 | O130: 0.8424207206 | P130: 0.003637514807 | Q130: 0.3657731367 | R130: 0.001963934273 | S130: 0.1641972487 | T130: 0.002875675817 | U130: 0.85160492 | V130: 0.001087738247 | W130: 0.2244211881 | X130: 0.009605572432 | Y130: 1.078039453 | Z130: - | AA130: - | AB130: - | AC130: - | AD130: - | AE130: 2003-02-08 | AF130: 3.5 | AH130: 3.5
B131: 2003-02-09 | C131: 96 | D131: 1 | E131: 10.51074198 | F131: 0.01968719798 | G131: 4.038732792 | H131: 0.00294716043 | I131: 0.7040288638 | J131: 0.004017119521 | K131: 0.3282292917 | L131: 0.003255224967 | M131: 0.1800451224 | N131: 0.002537749094 | O131: 0.8449584697 | P131: 0.003752513644 | Q131: 0.3695256504 | R131: 0.002046640556 | S131: 0.1662438893 | T131: 0.002965513742 | U131: 0.8545704337 | V131: 0.001113211217 | W131: 0.2255343993 | X131: 0.009671045229 | Y131: 1.087710498 | Z131: - | AA131: - | AB131: - | AC131: - | AD131: - | AE131: 2003-02-09 | AF131: 3.6 | AH131: 3.6
B132: 2003-02-10 | C132: 97 | D132: 1 | E132: 10.54407279 | F132: 0.01968719798 | G132: 4.05841999 | H132: 0.00294716043 | I132: 0.7069760243 | J132: 0.004069045614 | K132: 0.3322983374 | L132: 0.003296956394 | M132: 0.1833420788 | N132: 0.002537749094 | O132: 0.8474962188 | P132: 0.003796887108 | Q132: 0.3733225375 | R132: 0.002074188684 | S132: 0.1683180779 | T132: 0.002965513742 | U132: 0.8575359474 | V132: 0.001113211217 | W132: 0.2266476105 | X132: 0.009671045229 | Y132: 1.097381543 | Z132: - | AA132: - | AB132: - | AC132: - | AD132: - | AE132: 2003-02-10 | AF132: 3.6 | AH132: 3.6
B133: 2003-02-11 | C133: 98 | D133: 1 | E133: 10.57772439 | F133: 0.02022238488 | G133: 4.078642375 | H133: 0.003082290035 | I133: 0.7100583143 | J133: 0.004179507579 | K133: 0.3364778449 | L133: 0.003364663026 | M133: 0.1867067418 | N133: 0.002713458674 | O133: 0.8502096775 | P133: 0.003912981503 | Q133: 0.377235519 | R133: 0.002157769875 | S133: 0.1704758478 | T133: 0.003058091919 | U133: 0.8605940394 | V133: 0.001139257109 | W133: 0.2277868677 | X133: 0.009736772337 | Y133: 1.107118315 | Z133: - | AA133: - | AB133: - | AC133: - | AD133: - | AE133: 2003-02-11 | AF133: 3.7 | AH133: 3.7
B134: 2003-02-12 | C134: 99 | D134: 1 | E134: 10.6116857 | F134: 0.02077035907 | G134: 4.099412734 | H134: 0.003222623985 | I134: 0.7132809383 | J134: 0.004290523221 | K134: 0.3407683682 | L134: 0.003431295103 | M134: 0.1901380369 | N134: 0.002899759425 | O134: 0.8531094369 | P134: 0.004030497916 | Q134: 0.3812660169 | R134: 0.002242588768 | S134: 0.1727184366 | T134: 0.00315348973 | U134: 0.8637475291 | V134: 0.001165887694 | W134: 0.2289527554 | X134: 0.009802752138 | Y134: 1.116921067 | Z134: - | AA134: - | AB134: - | AC134: - | AD134: - | AE134: 2003-02-12 | AF134: 3.8 | AH134: 3.8
B135: 2003-02-13 | C135: 100 | D135: 1 | E135: 10.64594579 | F135: 0.02133132981 | G135: 4.120744064 | H135: 0.003368271375 | I135: 0.7166492097 | J135: 0.004402057149 | K135: 0.3451704253 | L135: 0.003496859932 | M135: 0.1936348969 | N135: 0.003097068997 | O135: 0.8562065059 | P135: 0.004149405292 | Q135: 0.3854154222 | R135: 0.00232860121 | S135: 0.1750470378 | T135: 0.003251788589 | U135: 0.8669993177 | V135: 0.001193114929 | W135: 0.2301458703 | X135: 0.009868982975 | Y135: 1.12679005 | Z135: - | AA135: - | AB135: - | AC135: - | AD135: - | AE135: 2003-02-13 | AF135: 3.9 | AH135: 3.9
B136: 2003-02-14 | C136: 101 | D136: 1 | E136: 10.68049393 | F136: 0.02190550443 | G136: 4.142649568 | H136: 0.003519335057 | I136: 0.7201685447 | J136: 0.004514076282 | K136: 0.3496845016 | L136: 0.003561368051 | M136: 0.1971962649 | N136: 0.003305790601 | O136: 0.8595122965 | P136: 0.00426967334 | Q136: 0.3896850955 | R136: 0.002415762097 | S136: 0.1774627999 | T136: 0.003353071981 | U136: 0.8703523897 | V136: 0.001220950963 | W136: 0.2313668212 | X136: 0.009935463159 | Y136: 1.136725514 | Z136: - | AA136: - | AB136: - | AC136: - | AD136: - | AE136: 2003-02-14 | AF136: 4 | AH136: 4
B137: 2003-02-15 | C137: 102 | D137: 1 | E137: 10.71531955 | F137: 0.02190550443 | G137: 4.164555073 | H137: 0.003519335057 | I137: 0.7236878798 | J137: 0.004561162443 | K137: 0.354245664 | L137: 0.00359538685 | M137: 0.2007916518 | N137: 0.003305790601 | O137: 0.8628180871 | P137: 0.004310989017 | Q137: 0.3939960845 | R137: 0.002440283911 | S137: 0.1799030838 | T137: 0.003353071981 | U137: 0.8737054616 | V137: 0.001220950963 | W137: 0.2325877722 | X137: 0.009935463159 | Y137: 1.146660977 | Z137: - | AA137: - | AB137: - | AC137: - | AD137: - | AE137: 2003-02-15 | AF137: 4 | AH137: 4
B138: 2003-02-16 | C138: 103 | D138: 1 | E138: 10.75041225 | F138: 0.02249308807 | G138: 4.187048161 | H138: 0.003675910747 | I138: 0.7273637905 | J138: 0.004672750688 | K138: 0.3589184147 | L138: 0.003657456916 | M138: 0.2044491087 | N138: 0.003526307883 | O138: 0.866344395 | P138: 0.004432060098 | Q138: 0.3984281446 | R138: 0.002528034385 | S138: 0.1824311182 | T138: 0.003457425493 | U138: 0.8771628871 | V138: 0.001249408135 | W138: 0.2338371803 | X138: 0.01000219096 | Y138: 1.156663168 | Z138: - | AA138: - | AB138: - | AC138: - | AD138: - | AE138: 2003-02-16 | AF138: 4.1 | AH138: 4.1
B139: 2003-02-17 | C139: 104 | D139: 1 | E139: 10.78576183 | F139: 0.0230942832 | G139: 4.210142444 | H139: 0.003838086084 | I139: 0.7312018766 | J139: 0.004784748908 | K139: 0.3637031636 | L139: 0.003718531356 | M139: 0.20816764 | N139: 0.003758979338 | O139: 0.8701033744 | P139: 0.004554410755 | Q139: 0.4029825554 | R139: 0.002616826664 | S139: 0.1850479448 | T139: 0.003564936847 | U139: 0.880727824 | V139: 0.001278498971 | W139: 0.2351156793 | X139: 0.01006916462 | Y139: 1.166732332 | Z139: - | AA139: - | AB139: - | AC139: - | AD139: - | AE139: 2003-02-17 | AF139: 4.2 | AH139: 4.2
B140: 2003-02-18 | C140: 105 | D140: 1 | E140: 10.82135824 | F140: 0.02370928934 | G140: 4.233851733 | H140: 0.004005939677 | I140: 0.7352078163 | J140: 0.004897133137 | K140: 0.3686002968 | L140: 0.003778630175 | M140: 0.2119462702 | N140: 0.004004132318 | O140: 0.8741075067 | P140: 0.004678014883 | Q140: 0.4076605703 | R140: 0.002706614724 | S140: 0.1877545596 | T140: 0.003675695939 | U140: 0.8844035199 | V140: 0.001308236189 | W140: 0.2364239155 | X140: 0.01013638233 | Y140: 1.176868715 | Z140: - | AA140: - | AB140: - | AC140: - | AD140: - | AE140: 2003-02-18 | AF140: 4.3 | AH140: 4.3
B141: 2003-02-19 | C141: 106 | D141: 1 | E141: 10.85719162 | F141: 0.02433830258 | G141: 4.258190036 | H141: 0.004179540112 | I141: 0.7393873564 | J141: 0.005009881286 | K141: 0.3736101781 | L141: 0.003837775072 | M141: 0.2157840453 | N141: 0.004262056663 | O141: 0.8783695633 | P141: 0.004802847004 | Q141: 0.4124634173 | R141: 0.002797351541 | S141: 0.1905519111 | T141: 0.003789794863 | U141: 0.8881933148 | V141: 0.001338632698 | W141: 0.2377625482 | X141: 0.01020384226 | Y141: 1.187072557 | Z141: - | AA141: - | AB141: - | AC141: - | AD141: - | AE141: 2003-02-19 | AF141: 4.4 | AH141: 4.4
B142: 2003-02-20 | C142: =+C141+D142 -> 107 | D142: =+IF((COUNT(AH142))=1,1)+IF((COUNT(AH142=0)),0) -> 1 | E142: 10.8932523 | F142: =1/(1+EXP(-$I$2*($AH142-$J$2)))/$H$2 -> 0.02498151522 | G142: 4.283171551 | H142: =MAX((1-EXP(-$K$3*($E142-$L$3)))/(1+EXP(-$I$3*($AH142-$J$3)))/$H$3,0) -> 0.004358944959 | I142: 0.7437463014 | J142: =MAX((1-EXP(-$K$4*($E142-$L$4)))/(1+EXP(-$I$4*($AH142-$J$4)))/$H$4,0) -> 0.005122973065 | K142: 0.3787331511 | L142: =MAX((1-EXP(-$K$5*($E142-$L$5)))/(1+EXP(-$I$5*($AH142-$J$5)))/$H$5,0) -> 0.003895989183 | M142: 0.2196800345 | N142: =MAX((1-EXP(-$K$6*($E142-$L$6)))/(1+EXP(-$I$6*($AH142-$J$6)))/$H$6,0) -> 0.004532998035 | O142: 0.8829025614 | P142: =MAX((1-EXP(-$K$7*($E142-$L$7)))/(1+EXP(-$I$7*($AH142-$J$7)))/$H$7,0) -> 0.004928882237 | Q142: 0.4173922995 | R142: 0.002888989081 | S142: 0.1934409002 | T142: =1/(1+EXP(-$I$9*($AH142-$J$9)))/$H$9 -> 0.003907327949 | U142: 0.8921006427 | V142: =1/(1+EXP(-$I$10*($AH142-$J$10)))/$H$10 -> 0.001369701595 | W142: 0.2391322498 | X142: =1/(1+EXP(-$I$11*($AH142-$J$11)))/$H$11 -> 0.01027154253 | Y142: 1.197344099 | Z142: - | AA142: - | AB142: - | AC142: - | AD142: - | AE142: 2003-02-20 | AF142: 4.5 | AH142: =IF(DATE(IF($B$10>=10,2002,2003),$B$10,$C$10)>=B142,"",IF(AG142="",AF142+$AJ$9,AG142)) -> 4.5
B143: 2003-02-21 | C143: 108 | D143: 1 | E143: =INDIRECT("気象データ!"&$D$6&ROW()+320) -> 10.92953076 | F143: 0.02563911529 | G143: 4.308810667 | H143: 0.00454419976 | I143: 0.7482905011 | J143: 0.005236389877 | K143: 0.383969541 | L143: 0.003953296836 | M143: 0.2236333313 | N143: 0.004817151036 | O143: 0.8877197124 | P143: 0.005056096253 | Q143: 0.4224483958 | R143: =MAX((1-EXP(-$K$8*($E143-$L$8)))/(1+EXP(-$I$8*($AH143-$J$8)))/$H$8,0) -> 0.002981478314 | S143: 0.1964223785 | T143: 0.004028391788 | U143: 0.8961290345 | V143: 0.001401456164 | W143: 0.240533706 | X143: 0.01033948124 | Y143: 1.207683581 | Z143: =IF($B$3="播種期",IF($C144=1,"◎","-"),"-") -> - | AA143: =IF($B$3="播種期",IF(AND(G143>=1,G142<1),"◎","-"),IF($B$3="出芽期",IF($C144=1,"◎","-"),"-")) -> - | AB143: =IF($B$3="播種期",IF(AND(I143>=1,I142<1),"◎","-"),IF($B$3="出芽期",IF(AND(O143>=1,O142<1),"◎","-"),IF($B$3="茎立期",IF($C144=1,"◎","-"),"-"))) -> - | AC143: =IF($B$3="播種期",IF(AND(K143>=1,K142<1),"◎","-"),IF($B$3="出芽期",IF(AND(Q143>=1,Q142<1),"◎","-"),IF($B$3="茎立期",IF(AND(U143>=1,U142<1),"◎","-"),IF($B$3="出穂期",IF($C144=1,"◎","-"),"-")))) -> - | AD143: =IF($B$3="播種期",IF(AND(M143>=1,M142<1),"◎","-"),IF($B$3="出芽期",IF(AND(S143>=1,S142<1),"◎","-"),IF($B$3="茎立期",IF(AND(W143>=1,W142<1),"◎","-"),IF($B$3="出穂期",IF(AND(Y143>=1,Y142<1),"◎","-"),IF($C144=1,"◎","-"))))) -> - | AE143: 2003-02-21 | AF143: =INDIRECT("気象データ!"&$D$6&ROW()-8) -> 4.6 | AH143: 4.6
B144: 2003-02-22 | C144: 109 | D144: 1 | E144: 10.96601768 | F144: 0.02631128618 | G144: 4.335121953 | H144: 0.004735337022 | I144: 0.7530258381 | J144: 0.005350114735 | K144: 0.3893196557 | L144: 0.004009723333 | M144: 0.2276430546 | N144: 0.005114652224 | O144: 0.8928343646 | P144: 0.005184465231 | Q144: 0.427632861 | R144: 0.003074769213 | S144: 0.1994971477 | T144: 0.004153085263 | U144: 0.9002821198 | V144: 0.00143390988 | W144: 0.2419676158 | X144: 0.01040765645 | Y144: 1.218091237 | Z144: - | AA144: - | AB144: - | AC144: - | AD144: - | AE144: 2003-02-22 | AF144: 4.7 | AH144: 4.7
B145: 2003-02-23 | C145: 110 | D145: 1 | E145: 11.00270389 | F145: 0.0269982061 | G145: 4.362120159 | H145: 0.004932375225 | I145: 0.7579582134 | J145: 0.005464132156 | K145: 0.3947837879 | L145: 0.004065294736 | M145: 0.2317083494 | N145: 0.005425573142 | O145: 0.8982599378 | P145: 0.005313965807 | Q145: 0.4329468268 | R145: 0.003168810775 | S145: 0.2026659585 | T145: 0.004281509575 | U145: 0.9045636294 | V145: 0.001467076405 | W145: 0.2434346922 | X145: 0.01047606616 | Y145: 1.228567303 | Z145: - | AA145: - | AB145: - | AC145: - | AD145: - | AE145: 2003-02-23 | AF145: 4.8 | AH145: 4.8
B146: 2003-02-24 | C146: 111 | D146: 1 | E146: 11.03958041 | F146: 0.02770004766 | G146: 4.389820206 | H146: 0.005135317842 | I146: 0.7630935312 | J146: 0.005578428072 | K146: 0.400362216 | L146: 0.00412003768 | M146: 0.2358283871 | N146: 0.005749913524 | O146: 0.9040098513 | P146: 0.005444575026 | Q146: 0.4383914018 | R146: 0.003263551038 | S146: 0.2059295095 | T146: 0.004413768269 | U146: 0.9089773976 | V146: 0.001500969584 | W146: 0.2449356618 | X146: 0.01054470838 | Y146: 1.239112012 | Z146: - | AA146: - | AB146: - | AC146: - | AD146: - | AE146: 2003-02-24 | AF146: 4.9 | AH146: 4.9
B147: 2003-02-25 | C147: 112 | D147: 1 | E147: 11.07663841 | F147: 0.02841697741 | G147: 4.418237184 | H147: 0.005344152398 | I147: 0.7684376836 | J147: 0.005692989731 | K147: 0.4060552057 | L147: 0.004173979193 | M147: 0.2400023662 | N147: 0.006087594831 | O147: 0.9100974461 | P147: 0.005576270293 | Q147: 0.4439676721 | R147: 0.003358937106 | S147: 0.2092884466 | T147: 0.004549967259 | U147: 0.9135273649 | V147: 0.001535603451 | W147: 0.2464712653 | X147: 0.01061358104 | Y147: 1.249725593 | Z147: - | AA147: - | AB147: - | AC147: - | AD147: - | AE147: 2003-02-25 | AF147: 5 | AH147: 5
B148: 2003-02-26 | C148: 113 | D148: 1 | E148: 11.11386924 | F148: 0.02914915527 | G148: 4.447386339 | H148: 0.005558849578 | I148: 0.7739965332 | J148: 0.005807805599 | K148: 0.4118630113 | L148: 0.004227146537 | M148: 0.2442295128 | N148: 0.006438454301 | O148: 0.9165359004 | P148: 0.005709029315 | Q148: 0.4496767014 | R148: 0.003454915182 | S148: 0.2127433618 | T148: 0.004690214846 | U148: 0.9182175797 | V148: 0.001570992217 | W148: 0.2480422575 | X148: 0.01068268206 | Y148: 1.260408275 | Z148: - | AA148: - | AB148: - | AC148: - | AD148: - | AE148: 2003-02-26 | AF148: 5.1 | AH148: 5.1
B149: 2003-02-27 | C149: 114 | D149: 1 | E149: 11.15126439 | F149: 0.03065985919 | G149: 4.478046198 | H149: 0.00600562537 | I149: 0.7800021585 | J149: 0.006003146834 | K149: 0.4178661581 | L149: 0.004312604951 | M149: 0.2485421177 | N149: 0.007178605022 | O149: 0.9237145055 | P149: 0.005944446908 | Q149: 0.4556211484 | R149: 0.00363113272 | S149: 0.2163744945 | T149: 0.004983301081 | U149: 0.9232008808 | V149: 0.001644092212 | W149: 0.2496863497 | X149: 0.01082156065 | Y149: 1.271229835 | Z149: - | AA149: - | AB149: - | AC149: - | AD149: - | AE149: 2003-02-27 | AF149: 5.3 | AH149: 5.3
B150: 2003-02-28 | C150: 115 | D150: 1 | E150: 11.18881552 | F150: 0.03143866763 | G150: 4.509484866 | H150: 0.006237553957 | I150: 0.7862397125 | J150: 0.006119587555 | K150: 0.4239857457 | L150: 0.00436453233 | M150: 0.2529066501 | N150: 0.00756710717 | O150: 0.9312816126 | P150: 0.006080951329 | Q150: 0.4617020997 | R150: 0.003729115744 | S150: 0.2201036103 | T150: 0.005136368442 | U150: 0.9283372493 | V150: 0.001681832764 | W150: 0.2513681825 | X150: 0.01089133388 | Y150: 1.282121169 | Z150: - | AA150: - | AB150: - | AC150: - | AD150: - | AE150: 2003-02-28 | AF150: 5.4 | AH150: 5.4
B151: 2003-03-01 | C151: 116 | D151: 1 | E151: 11.22651444 | F151: 0.03223328789 | G151: 4.541718154 | H151: 0.006475043857 | I151: 0.7927147564 | J151: 0.006236237912 | K151: 0.4302219836 | L151: 0.004415757495 | M151: 0.2573224076 | N151: 0.007967204068 | O151: 0.9392488167 | P151: 0.006218434012 | Q151: 0.4679205337 | R151: 0.003827461899 | S151: 0.2239310722 | T151: 0.005293941854 | U151: 0.9336311911 | V151: 0.001720386857 | W151: 0.2530885693 | X151: 0.01096132676 | Y151: 1.293082496 | Z151: - | AA151: - | AB151: - | AC151: - | AD151: - | AE151: 2003-03-01 | AF151: 5.5 | AH151: 5.5
B152: 2003-03-02 | C152: 117 | D152: 1 | E152: 11.2643531 | F152: 0.03304383927 | G152: 4.574761993 | H152: 0.006717970589 | I152: 0.799432727 | J152: 0.006353090014 | K152: 0.4365750736 | L152: 0.004466307606 | M152: 0.2617887152 | N152: 0.00837825412 | O152: 0.9476270708 | P152: 0.006356872237 | Q152: 0.4742774059 | R152: 0.003926112725 | S152: 0.2278571849 | T152: 0.005456141805 | U152: 0.9390873329 | V152: 0.001759769587 | W152: 0.2548483389 | X152: 0.01103153704 | Y152: 1.304114033 | Z152: - | AA152: - | AB152: - | AC152: - | AD152: - | AE152: 2003-03-02 | AF152: 5.6 | AH152: 5.6
B153: 2003-03-03 | C153: 118 | D153: 1 | E153: 11.3023236 | F153: 0.03387043128 | G153: 4.608632424 | H153: 0.006966189141 | I153: 0.8063989161 | J153: 0.006470136755 | K153: 0.4430452104 | L153: 0.004516209452 | M153: 0.2663049246 | N153: 0.008799517292 | O153: 0.9564265881 | P153: 0.006496243339 | Q153: 0.4807736493 | R153: 0.004025009291 | S153: 0.2318821942 | T153: 0.005623091254 | U153: 0.9447104242 | V153: 0.001799996212 | W153: 0.2566483351 | X153: 0.01110196242 | Y153: 1.315215996 | Z153: - | AA153: - | AB153: - | AC153: - | AD153: - | AE153: 2003-03-03 | AF153: 5.7 | AH153: 5.7
B154: 2003-03-04 | C154: 119 | D154: 1 | E154: 11.34041817 | F154: 0.03471316317 | G154: 4.643345588 | H154: 0.007219533754 | I154: 0.8136184498 | J154: 0.006587371727 | K154: 0.4496325821 | L154: 0.004565489369 | M154: 0.270870414 | N154: 0.009230157894 | O154: 0.965656746 | P154: 0.006636524657 | Q154: 0.4874101739 | R154: 0.004124092279 | S154: 0.2360062865 | T154: 0.005794915623 | U154: 0.9505053398 | V154: 0.001841082157 | W154: 0.2584894173 | X154: 0.01117260056 | Y154: 1.326388596 | Z154: - | AA154: - | AB154: - | AC154: - | AD154: - | AE154: 2003-03-04 | AF154: 5.8 | AH154: 5.8
B155: 2003-03-05 | C155: 120 | D155: 1 | E155: 11.37862916 | F155: 0.03557212336 | G155: 4.678917711 | H155: 0.007477817857 | I155: 0.8210962677 | J155: 0.006704789142 | K155: 0.4563373712 | L155: 0.004614173171 | M155: 0.2754845872 | N155: 0.009669249113 | O155: 0.9753259951 | P155: 0.00677769348 | Q155: 0.4941878674 | R155: 0.004223302075 | S155: 0.2402295886 | T155: 0.005971742805 | U155: 0.9564770826 | V155: 0.001883043003 | W155: 0.2603724603 | X155: 0.01124344912 | Y155: 1.337632045 | Z155: - | AA155: - | AB155: - | AC155: - | AD155: - | AE155: 2003-03-05 | AF155: 5.9 | AH155: 5.9
B156: 2003-03-06 | C156: 121 | D156: 1 | E156: 11.41694906 | F156: 0.03644738884 | G156: 4.7153651 | H156: 0.007740834162 | I156: 0.8288371019 | J156: 0.006822383754 | K156: 0.463159755 | L156: 0.004662286085 | M156: 0.2801468732 | N156: 0.01011577932 | O156: 0.9854417744 | P156: 0.006919727006 | Q156: 0.5011075944 | R156: 0.004322578861 | S156: 0.2445521674 | T156: 0.006153703151 | U156: 0.9626307857 | V156: 0.001925894487 | W156: 0.2622983548 | X156: 0.01131450567 | Y156: 1.348946551 | Z156: - | AA156: - | AB156: - | AC156: - | AD156: - | AE156: 2003-03-06 | AF156: 6 | AH156: 6
B157: 2003-03-07 | C157: 122 | D157: 1 | E157: 11.45537048 | F157: 0.0373390247 | G157: 4.752704124 | H157: 0.008008354918 | I157: 0.8368454568 | J157: 0.006940150783 | K157: 0.4700999058 | L157: 0.004709852702 | M157: 0.2848567259 | N157: 0.01056866012 | O157: 0.9960104346 | P157: 0.007062602287 | Q157: 0.5081701967 | R157: 0.00442186272 | S157: 0.2489740301 | T157: 0.006340929463 | U157: 0.9689717152 | V157: 0.001969652497 | W157: 0.2642680073 | X157: 0.0113857678 | Y157: 1.360332319 | Z157: - | AA157: - | AB157: - | AC157: - | AD157: - | AE157: 2003-03-07 | AF157: 6.1 | AH157: 6.1
B158: 2003-03-08 | C158: 123 | D158: 1 | E158: 11.49388613 | F158: 0.03917160474 | G158: 4.791875729 | H158: 0.008555899228 | I158: 0.845401356 | J158: 0.007148714233 | K158: 0.47724862 | L158: 0.004791703323 | M158: 0.2896484293 | N158: 0.01148879545 | O158: 1.00749923 | P158: 0.007323286333 | Q158: 0.515493483 | R158: 0.004607448952 | S158: 0.2535814791 | T158: 0.006731723357 | U158: 0.9757034386 | V158: 0.002059952355 | W158: 0.2663279596 | X158: 0.01152889887 | Y158: 1.371861218 | Z158: - | AA158: - | AB158: - | AC158: - | AD158: - | AE158: 2003-03-08 | AF158: 6.3 | AH158: 6.3
B159: 2003-03-09 | C159: 124 | D159: 1 | E159: 11.53248883 | F159: 0.0401126144 | G159: 4.831988344 | H159: 0.008835369709 | I159: 0.8542367257 | J159: 0.007267796103 | K159: 0.4845164161 | L159: 0.004838393313 | M159: 0.2944868226 | N159: 0.01195358341 | O159: 1.019452813 | P159: 0.007469226318 | Q159: 0.5229627094 | R159: 0.004706891306 | S159: 0.2582883704 | T159: 0.006935568638 | U159: 0.9826390072 | V159: 0.002106526677 | W159: 0.2684344863 | X159: 0.01160076278 | Y159: 1.38346198 | Z159: - | AA159: - | AB159: - | AC159: - | AD159: - | AE159: 2003-03-09 | AF159: 6.4 | AH159: 6.4
B160: 2003-03-10 | C160: 125 | D160: 1 | E160: 11.5711715 | F160: 0.04107012431 | G160: 4.873058468 | H160: 0.009118240233 | I160: 0.863354966 | J160: 0.007387018921 | K160: 0.491903435 | L160: 0.004884598976 | M160: 0.2993714216 | N160: 0.01241981466 | O160: 1.031872628 | P160: 0.00761590747 | Q160: 0.5305786168 | R160: 0.004806090443 | S160: 0.2630944608 | T160: 0.00714523523 | U160: 0.9897842424 | V160: 0.002154072458 | W160: 0.2705885588 | X160: 0.0116728222 | Y160: 1.395134803 | Z160: - | AA160: - | AB160: - | AC160: - | AD160: - | AE160: 2003-03-10 | AF160: 6.5 | AH160: 6.5
B161: 2003-03-11 | C161: 126 | D161: 1 | E161: 11.60992714 | F161: 0.04204413166 | G161: 4.9151026 | H161: 0.009404190678 | I161: 0.8727591566 | J161: 0.007506378893 | K161: 0.4994098139 | L161: 0.004930342203 | M161: 0.3043017638 | N161: 0.01288618787 | O161: 1.044758816 | P161: 0.00776330492 | Q161: 0.5383419217 | R161: 0.004904987304 | S161: 0.2679994481 | T161: 0.007360867863 | U161: 0.9971451103 | V161: 0.002202606248 | W161: 0.272791165 | X161: 0.01174507453 | Y161: 1.406879877 | Z161: - | AA161: - | AB161: - | AC161: - | AD161: - | AE161: 2003-03-11 | AF161: 6.6 | AH161: 6.6
B162: 2003-03-12 | C162: 127 | D162: 1 | E162: 11.64874886 | F162: 0.04404155127 | G162: 4.959144151 | H162: 0.009983975926 | I162: 0.8827431326 | J162: 0.007720918063 | K162: 0.507130732 | L162: 0.005011034845 | M162: 0.3093127986 | N162: 0.01381416154 | O162: 1.058572977 | P162: 0.008034935899 | Q162: 0.5463768576 | R162: 0.005090602263 | S162: 0.2730900504 | T162: 0.007810621535 | U162: 1.004955732 | V162: 0.002302704604 | W162: 0.2750938696 | X162: 0.01189014737 | Y162: 1.418770024 | Z162: - | AA162: - | AB162: - | AC162: - | AD162: - | AE162: 2003-03-12 | AF162: 6.8 | AH162: 6.8
B163: 2003-03-13 | C163: 128 | D163: 1 | E163: 11.68762982 | F163: 0.04506488026 | G163: 5.004209031 | H163: 0.01027710006 | I163: 0.8930202326 | J163: 0.00784143749 | K163: 0.5149721695 | L163: 0.00505602896 | M163: 0.3143688276 | N163: 0.01427320925 | O163: 1.072846187 | P163: 0.008184992452 | Q163: 0.5545618501 | R163: 0.005188703742 | S163: 0.2782787541 | T163: 0.00804504324 | U163: 1.013000775 | V163: 0.002354302801 | W163: 0.2774481724 | X163: 0.01196296252 | Y163: 1.430732987 | Z163: - | AA163: - | AB163: - | AC163: - | AD163: - | AE163: 2003-03-13 | AF163: 6.9 | AH163: 6.9
B164: 2003-03-14 | C164: 129 | D164: 1 | E164: 11.72656325 | F164: 0.04716044483 | G164: 5.051369476 | H164: 0.01086795342 | I164: 0.903888186 | J164: 0.008059452851 | K164: 0.5230316223 | L164: 0.005136265939 | M164: 0.3195050935 | N164: 0.01517532869 | O164: 1.088021515 | P164: 0.008462632459 | Q164: 0.5630244826 | R164: 0.005372918921 | S164: 0.2836516731 | T164: 0.008533743987 | U164: 1.021534519 | V164: 0.002460681971 | W164: 0.2799088544 | X164: 0.01210913668 | Y164: 1.442842124 | Z164: - | AA164: - | AB164: - | AC164: - | AD164: - | AE164: 2003-03-14 | AF164: 7.1 | AH164: 7.1
B165: 2003-03-15 | C165: 130 | D165: 1 | E165: 11.76554247 | F165: 0.04823249645 | G165: 5.099601972 | H165: 0.01116491468 | I165: 0.9150531007 | J165: 0.008181025366 | K165: 0.5312126477 | L165: 0.005180559386 | M165: 0.3246856529 | N165: 0.01561612784 | O165: 1.103637643 | P165: 0.008615077765 | Q165: 0.5716395603 | R165: 0.005469667747 | S165: 0.2891213408 | T165: 0.008788336145 | U165: 1.030322855 | V165: 0.002515497072 | W165: 0.2824243515 | X165: 0.01218249015 | Y165: 1.455024614 | Z165: - | AA165: - | AB165: - | AC165: - | AD165: - | AE165: 2003-03-15 | AF165: 7.2 | AH165: 7.2
B166: 2003-03-16 | C166: 131 | D166: 1 | E166: 11.80456084 | F166: 0.05042454559 | G166: 5.150026518 | H166: 0.01175994804 | I166: 0.9268130488 | J166: 0.00840227317 | K166: 0.5396149209 | L166: 0.005260346148 | M166: 0.329945999 | N166: 0.01647206804 | O166: 1.120109711 | P166: 0.008898179531 | Q166: 0.5805377398 | R166: 0.005651385552 | S166: 0.2947727264 | T166: 0.009318801001 | U166: 1.039641656 | V166: 0.002628464073 | W166: 0.2850528155 | X166: 0.01232971578 | Y166: 1.46735433 | Z166: - | AA166: - | AB166: - | AC166: - | AD166: - | AE166: 2003-03-16 | AF166: 7.4 | AH166: 7.4
B167: 2003-03-17 | C167: 132 | D167: 1 | E167: 11.84361175 | F167: 0.05154425135 | G167: 5.201570769 | H167: 0.01205723011 | I167: 0.9388702789 | J167: 0.008524787207 | K167: 0.5481397081 | L167: 0.005303982905 | M167: 0.3352499819 | N167: 0.01688540724 | O167: 1.136995119 | P167: 0.009052723107 | Q167: 0.589590463 | R167: 0.00574625353 | S167: 0.3005189799 | T167: 0.009594997758 | U167: 1.049236654 | V167: 0.002686650415 | W167: 0.2877394659 | X167: 0.01240358223 | Y167: 1.479757912 | Z167: - | AA167: - | AB167: - | AC167: - | AD167: - | AE167: 2003-03-17 | AF167: 7.5 | AH167: 7.5
B168: 2003-03-18 | C168: 133 | D168: 1 | E168: 11.88268865 | F168: 0.05383015563 | G168: 5.255400925 | H168: 0.01264935823 | I168: 0.9515196371 | J168: 0.008749009123 | K168: 0.5568887172 | L168: 0.005383321431 | M168: 0.3406333034 | N168: 0.01767902125 | O168: 1.15467414 | P168: 0.009340694831 | Q168: 0.5989311578 | R168: 0.005924439731 | S168: 0.3064434196 | T168: 0.01017014192 | U168: 1.059406796 | V168: 0.002806515093 | W168: 0.290545981 | X168: 0.01255180786 | Y168: 1.49230972 | Z168: - | AA168: - | AB168: - | AC168: - | AD168: - | AE168: 2003-03-18 | AF168: 7.7 | AH168: 7.7
B169: 2003-03-19 | C169: 134 | D169: 1 | E169: 11.92178501 | F169: 0.05499594915 | G169: 5.310396874 | H169: 0.01294342962 | I169: 0.9644630667 | J169: 0.008872347736 | K169: 0.5657610649 | L169: 0.005426340911 | M169: 0.3460596443 | N169: 0.01805806915 | O169: 1.172732209 | P169: 0.009497027519 | Q169: 0.6084281853 | R169: 0.006016938931 | S169: 0.3124603586 | T169: 0.01046942234 | U169: 1.069876218 | V169: 0.002868227977 | W169: 0.293414209 | X169: 0.01262616115 | Y169: 1.504935881 | Z169: - | AA169: - | AB169: - | AC169: - | AD169: - | AE169: 2003-03-19 | AF169: 7.8 | AH169: 7.8
B170: 2003-03-20 | C170: 135 | D170: 1 | E170: 11.96089433 | F170: 0.05617666806 | G170: =IF($D170=0,0,G169+F170) -> 5.366573542 | H170: 0.0132356675 | I170: =IF($D170=0,0,I169+H170) -> 0.9776987342 | J170: 0.008995702416 | K170: =IF($D170=0,0,K169+J170) -> 0.5747567673 | L170: 0.005469035757 | M170: =IF($D170=0,0,M169+L170) -> 0.35152868 | N170: 0.01842462522 | O170: =IF($D170=0,0,O169+N170) -> 1.191156834 | P170: 0.009653670609 | Q170: =IF($D170=0,0,Q169+P170) -> 0.6180818559 | R170: 0.006108413427 | S170: =IF($D170=0,0,S169+R170) -> 0.318568772 | T170: 0.01077673234 | U170: =IF($D170=0,0,U169+T170) -> 1.080652951 | V170: 0.00293115091 | W170: =IF($D170=0,0,W169+V170) -> 0.2963453599 | X170: 0.01270067079 | Y170: =IF($D170=0,0,Y169+X170) -> 1.517636552 | Z170: - | AA170: - | AB170: - | AC170: - | AD170: - | AE170: 2003-03-20 | AF170: 7.9 | AH170: 7.9
B171: 2003-03-21 | C171: 136 | D171: 1 | E171: 12.00001014 | F171: 0.05737206134 | G171: 5.423945603 | H171: 0.01352570451 | I171: 0.9912244387 | J171: 0.009119068435 | K171: 0.5838758358 | L171: 0.005511420501 | M171: 0.3570401005 | N171: 0.01877832254 | O171: 1.209935157 | P171: 0.009810592674 | Q171: 0.6278924486 | R171: 0.006198823802 | S171: 0.3247675958 | T171: 0.01109224121 | U171: 1.091745192 | V171: 0.002995301122 | W171: 0.299340661 | X171: 0.01277533375 | Y171: 1.530411885 | Z171: - | AA171: - | AB171: - | AC171: - | AD171: - | AE171: 2003-03-21 | AF171: 8 | AH171: 8
B172: 2003-03-22 | C172: 137 | D172: 1 | E172: 12.03912594 | F172: 0.05980576893 | G172: 5.483751372 | H172: 0.01409776468 | I172: 1.005322203 | J172: 0.009347336078 | K172: 0.5932231718 | L172: 0.005589801928 | M172: 0.3626299025 | N172: 0.01944614223 | O172: 1.229381299 | P172: 0.01010503092 | Q172: 0.6379974795 | R172: 0.006368877342 | S172: 0.3311364731 | T172: 0.01174853671 | U172: 1.103493728 | V172: 0.003127352067 | W172: 0.3024680131 | X172: 0.01292510748 | Y172: 1.543336993 | Z172: - | AA172: - | AB172: ◎ | AC172: - | AD172: - | AE172: 2003-03-22 | AF172: 8.2 | AH172: 8.2
B173: 2003-03-23 | C173: 138 | D173: 1 | E173: 12.07823526 | F173: 0.06104348316 | G173: 5.544794856 | H173: 0.01437911621 | I173: 1.01970132 | J173: 0.009471337954 | K173: 0.6026945098 | L173: 0.005631648476 | M173: 0.3682615509 | N173: 0.01975998639 | O173: 1.249141285 | P173: 0.01026319956 | Q173: 0.6482606791 | R173: 0.006456234461 | S173: 0.3375927076 | T173: 0.01208966532 | U173: 1.115583394 | V173: 0.003195286978 | W173: 0.3056633001 | X173: 0.01300021208 | Y173: 1.556337205 | Z173: - | AA173: - | AB173: - | AC173: - | AD173: - | AE173: 2003-03-23 | AF173: 8.3 | AH173: 8.3
B174: 2003-03-24 | C174: 139 | D174: 1 | E174: 12.11733163 | F174: 0.06229467166 | G174: 5.607089527 | H174: 0.01465692648 | I174: 1.034358246 | J174: 0.009595312242 | K174: 0.612289822 | L174: 0.005673218782 | M174: 0.3739347697 | N174: 0.02006040454 | O174: 1.26920169 | P174: 0.01042150551 | Q174: 0.6586821846 | R174: 0.006542377131 | S174: 0.3441350847 | T174: 0.01243967636 | U174: 1.12802307 | V174: 0.003264517492 | W174: 0.3089278176 | X174: 0.01307545768 | Y174: 1.569412663 | Z174: - | AA174: - | AB174: - | AC174: - | AD174: - | AE174: 2003-03-24 | AF174: 8.4 | AH174: 8.4
B175: 2003-03-25 | C175: 140 | D175: 1 | E175: 12.15640852 | F175: 0.06355898562 | G175: 5.670648513 | H175: 0.01493089994 | I175: 1.049289146 | J175: 0.009719253186 | K175: 0.6220090752 | L175: 0.005714524571 | M175: 0.3796492943 | N175: 0.02034745315 | O175: 1.289549143 | P175: 0.01057991564 | Q175: 0.6692621002 | R175: 0.006627277036 | S175: 0.3507623618 | T175: 0.01279874133 | U175: 1.140821812 | V175: 0.003335060456 | W175: 0.312262878 | X175: 0.01315084114 | Y175: 1.582563504 | Z175: - | AA175: - | AB175: - | AC175: - | AD175: - | AE175: 2003-03-25 | AF175: 8.5 | AH175: 8.5
B176: 2003-03-26 | C176: 141 | D176: 1 | E176: 12.19545943 | F176: 0.06612549868 | G176: 5.736774012 | H176: 0.01546624569 | I176: 1.064755392 | J176: 0.009950781135 | K176: 0.6319598564 | L176: 0.005791998506 | M176: 0.3854412928 | N176: 0.02088199335 | O176: 1.310431136 | P176: 0.01087889709 | Q176: 0.6801409973 | R176: 0.006787085083 | S176: 0.3575494468 | T176: 0.01354471771 | U176: 1.154366529 | V176: 0.003480150481 | W176: 0.3157430285 | X176: 0.01330200895 | Y176: 1.595865513 | Z176: - | AA176: - | AB176: - | AC176: - | AD176: - | AE176: 2003-03-26 | AF176: 8.7 | AH176: 8.7
B177: 2003-03-27 | C177: 142 | D177: 1 | E177: 12.2344778 | F177: 0.0674269049 | G177: 5.804200916 | H177: 0.01572712094 | I177: 1.080482513 | J177: 0.0100751552 | K177: 0.6420350116 | L177: 0.005832825979 | M177: 0.3912741188 | N177: 0.02112990263 | O177: 1.331561039 | P177: 0.01103797904 | Q177: 0.6911789763 | R177: 0.006868414779 | S177: 0.3644178616 | T177: 0.01393197009 | U177: 1.168298499 | V177: 0.003554730526 | W177: 0.319297759 | X177: 0.01337778688 | Y177: 1.6092433 | Z177: - | AA177: - | AB177: - | AC177: - | AD177: - | AE177: 2003-03-27 | AF177: 8.8 | AH177: 8.8
B178: 2003-03-28 | C178: 143 | D178: 1 | E178: 12.27345702 | F178: 0.07006389615 | G178: 5.874264813 | H178: 0.01623418441 | I178: 1.096716697 | J178: 0.01030840102 | K178: 0.6523434126 | L178: 0.005909853427 | M178: 0.3971839722 | N178: 0.02158839687 | O178: 1.353149436 | P178: 0.01133885353 | Q178: 0.7025178299 | R178: 0.007021395663 | S178: 0.3714392573 | T178: 0.01473584866 | U178: 1.183034348 | V178: 0.003708041791 | W178: 0.3230058008 | X178: 0.01352971461 | Y178: 1.622773014 | Z178: - | AA178: - | AB178: - | AC178: - | AD178: - | AE178: 2003-03-28 | AF178: 9 | AH178: 9
B179: 2003-03-29 | C179: 144 | D179: 1 | E179: 12.31239046 | F179: 0.07274342404 | G179: 5.947008237 | H179: 0.01672045032 | I179: 1.113437147 | J179: 0.01054274506 | K179: 0.6628861576 | L179: 0.005986642418 | M179: 0.4031706146 | N179: 0.02199941335 | O179: 1.375148849 | P179: 0.01164069057 | Q179: 0.7141585205 | R179: 0.00716965349 | S179: 0.3786089108 | T179: 0.01558000342 | U179: 1.198614351 | V179: 0.003866993595 | W179: 0.3268727944 | X179: 0.01368211631 | Y179: 1.63645513 | Z179: - | AA179: - | AB179: - | AC179: - | AD179: - | AE179: 2003-03-29 | AF179: 9.2 | AH179: 9.2
B180: 2003-03-30 | C180: 145 | D180: 1 | E180: 12.35127141 | F180: 0.07409793725 | G180: 6.021106174 | H180: 0.01695540648 | I180: 1.130392554 | J180: 0.01066771041 | K180: 0.6735538681 | L180: 0.006026782268 | M180: 0.4091973969 | N180: 0.02218807493 | O180: 1.397336924 | P180: 0.0118002666 | Q180: 0.7259587871 | R180: 0.007244638832 | S180: 0.3858535496 | T180: 0.01601759397 | U180: 1.214631945 | V180: 0.003948623384 | W180: 0.3308214178 | X180: 0.01375848661 | Y180: 1.650213617 | Z180: - | AA180: - | AB180: - | AC180: - | AD180: - | AE180: 2003-03-30 | AF180: 9.3 | AH180: 9.3
B181: 2003-03-31 | C181: 146 | D181: 1 | E181: 12.39009313 | F181: 0.07683391759 | G181: 6.097940091 | H181: 0.01740838887 | I181: 1.147800943 | J181: 0.0109032256 | K181: 0.6844570937 | L181: 0.006103085697 | M181: 0.4153004826 | N181: 0.02253377459 | O181: 1.419870699 | P181: 0.01210274748 | Q181: 0.7380615345 | R181: 0.007385407513 | S181: 0.3932389571 | T181: 0.01692459956 | U181: 1.231556545 | V181: 0.004116265617 | W181: 0.3349376834 | X181: 0.01391154941 | Y181: 1.664125166 | Z181: - | AA181: - | AB181: - | AC181: - | AD181: - | AE181: 2003-03-31 | AF181: 9.5 | AH181: 9.5
B182: 2003-04-01 | C182: 147 | D182: 1 | E182: 12.42884877 | F182: 0.07960227006 | G182: 6.177542362 | H182: 0.01783826009 | I182: 1.165639203 | J182: 0.01113946105 | K182: 0.6955965547 | L182: 0.00617911276 | M182: 0.4214795954 | N182: 0.02284017584 | O182: 1.442710875 | P182: 0.01240535121 | Q182: 0.7504668857 | R182: 0.007521120169 | S182: 0.4007600773 | T182: 0.01787506636 | U182: 1.249431611 | V182: 0.004289847421 | W182: 0.3392275309 | X182: 0.01406501925 | Y182: 1.678190186 | Z182: - | AA182: - | AB182: - | AC182: - | AD182: - | AE182: 2003-04-01 | AF182: 9.7 | AH182: 9.7
B183: 2003-04-02 | C183: 148 | D183: 1 | E183: 12.46753144 | F183: 0.08239852606 | G183: 6.259940888 | H183: 0.01824463581 | I183: 1.183883839 | J183: 0.0113762611 | K183: 0.7069728158 | L183: 0.006254846133 | M183: 0.4277344415 | N183: 0.02311074752 | O183: 1.465821622 | P183: 0.01270774104 | Q183: 0.7631746268 | R183: 0.007651703095 | S183: 0.4084117804 | T183: 0.01887017642 | U183: 1.268301788 | V183: 0.004469478848 | W183: 0.3436970097 | X183: 0.01421886883 | Y183: 1.692409055 | Z183: - | AA183: - | AB183: - | AC183: - | AD183: - | AE183: 2003-04-02 | AF183: 9.9 | AH183: 9.9
B184: 2003-04-03 | C184: 149 | D184: 1 | E184: 12.50613414 | F184: 0.08521802556 | G184: 6.345158913 | H184: 0.01862740807 | I184: 1.202511247 | J184: 0.01161346846 | K184: 0.7185862843 | L184: 0.006330268471 | M184: 0.43406471 | N184: 0.0233489033 | O184: 1.489170525 | P184: 0.01300958138 | Q184: 0.7761842082 | R184: 0.007777114416 | S184: 0.4161888948 | T184: 0.01991104049 | U184: 1.288212828 | V184: 0.004655263294 | W184: 0.348352273 | X184: 0.01437307057 | Y184: 1.706782125 | Z184: - | AA184: - | AB184: - | AC184: - | AD184: - | AE184: 2003-04-03 | AF184: 10.1 | AH184: 10.1
B185: 2003-04-04 | C185: 150 | D185: 1 | E185: 12.54464979 | F185: 0.08805594686 | G185: 6.43321486 | H185: 0.01898671691 | I185: 1.221497964 | J185: 0.01185092467 | K185: 0.7304372089 | L185: 0.006405362443 | M185: 0.4404700724 | N185: 0.02355792722 | O185: 1.512728453 | P185: 0.01331053927 | Q185: 0.7894947474 | R185: 0.007897342008 | S185: 0.4240862368 | T185: 0.02099868443 | U185: 1.309211513 | V185: 0.00484729666 | W185: 0.3531995697 | X185: 0.01452759663 | Y185: 1.721309722 | Z185: - | AA185: - | AB185: - | AC185: - | AD185: - | AE185: 2003-04-04 | AF185: 10.3 | AH185: 10.3
B186: 2003-04-05 | C186: 151 | D186: 1 | E186: 12.58307121 | F186: 0.09090733871 | G186: 6.524122199 | H186: 0.01932291944 | I186: 1.240820883 | J186: 0.01208847044 | K186: 0.7425256794 | L186: 0.006480110764 | M186: 0.4469501832 | N186: 0.02374092205 | O186: 1.536469375 | P186: 0.0136102858 | Q186: 0.8031050332 | R186: 0.00801240123 | S186: 0.432098638 | T186: 0.02213403502 | U186: 1.331345548 | V186: 0.005045666486 | W186: 0.3582452361 | X186: 0.01468241893 | Y186: 1.735992141 | Z186: - | AA186: - | AB186: - | AC186: - | AD186: - | AE186: 2003-04-05 | AF186: 10.5 | AH186: 10.5
B187: 2003-04-06 | C187: 152 | D187: 1 | E187: 12.62139111 | F187: 0.09233651173 | G187: 6.61645871 | H187: 0.01948251892 | I187: 1.260303402 | J187: 0.01221328711 | K187: 0.7547389665 | L187: 0.006518601291 | M187: 0.4534687845 | N187: 0.02382357028 | O187: 1.560292945 | P187: 0.01376668855 | Q187: 0.8168717218 | R187: 0.00806992498 | S187: 0.440168563 | T187: 0.02271985918 | U187: 1.354065407 | V187: 0.005147252425 | W187: 0.3633924886 | X187: 0.01475993233 | Y187: 1.750752073 | Z187: - | AA187: - | AB187: - | AC187: - | AD187: - | AE187: 2003-04-06 | AF187: 10.6 | AH187: 10.6
B188: 2003-04-07 | C188: 153 | D188: 1 | E188: 12.65960211 | F188: 0.09519862641 | G188: 6.711657337 | H188: 0.01978512766 | I188: 1.28008853 | J188: 0.01245049292 | K188: 0.7671894594 | L188: 0.006592731906 | M188: 0.4600615164 | N188: 0.02397286644 | O188: 1.584265811 | P188: 0.01406383775 | Q188: 0.8309355595 | R188: 0.008177221247 | S188: 0.4483457843 | T188: 0.02392825403 | U188: 1.377993661 | V188: 0.005355270611 | W188: 0.3687477592 | X188: 0.01491514587 | Y188: 1.765667219 | Z188: - | AA188: - | AB188: - | AC188: - | AD188: - | AE188: 2003-04-07 | AF188: 10.8 | AH188: 10.8
B189: 2003-04-08 | C189: 154 | D189: 1 | E189: 12.69769667 | F189: 0.09806149326 | G189: 6.80971883 | H189: 0.02006626312 | I189: 1.300154793 | J189: 0.01268739218 | K189: 0.7798768516 | L189: 0.006666477455 | M189: 0.4667279938 | N189: 0.02410292028 | O189: 1.608368732 | P189: 0.01435898042 | Q189: 0.84529454 | R189: 0.008279494915 | S189: 0.4566252792 | T189: 0.02518614054 | U189: 1.403179801 | V189: 0.005569801679 | W189: 0.3743175609 | X189: 0.01507058454 | Y189: 1.780737803 | Z189: - | AA189: - | AB189: - | AC189: - | AD189: - | AE189: 2003-04-08 | AF189: 11 | AH189: 11
B190: 2003-04-09 | C190: 155 | D190: 1 | E190: 12.73566717 | F190: 0.1009199835 | G190: 6.910638814 | H190: 0.02032679353 | I190: 1.320481586 | J190: 0.01292382633 | K190: 0.7928006779 | L190: 0.006739820911 | M190: 0.4734678147 | N190: 0.02421603471 | O190: 1.632584766 | P190: 0.01465181288 | Q190: 0.8599463528 | R190: 0.008376838156 | S190: 0.4650021173 | T190: 0.02649397943 | U190: 1.429673781 | V190: 0.005790896837 | W190: 0.3801084577 | X190: 0.01522621958 | Y190: 1.795964023 | Z190: - | AA190: - | AB190: - | AC190: - | AD190: - | AE190: 2003-04-09 | AF190: 11.2 | AH190: 11.2
B191: 2003-04-10 | C191: 156 | D191: 1 | E191: 12.77350583 | F191: 0.1037689997 | G191: 7.014407813 | H191: 0.02056766741 | I191: 1.341049254 | J191: 0.01315963792 | K191: 0.8059603158 | L191: 0.006812745438 | M191: 0.4802805602 | N191: 0.02431428222 | O191: 1.656899049 | P191: 0.01494204134 | Q191: 0.8748883942 | R191: 0.008469359431 | S191: 0.4734714768 | T191: 0.02785206335 | U191: 1.457525844 | V191: 0.006018594848 | W191: 0.3861270525 | X191: 0.01538202208 | Y191: 1.811346045 | Z191: - | AA191: - | AB191: - | AC191: - | AD191: - | AE191: 2003-04-10 | AF191: 11.4 | AH191: 11.4
B192: 2003-04-11 | C192: 157 | D192: 1 | E192: 12.81120475 | F192: 0.106603512 | G192: 7.121011325 | H192: 0.02078988876 | I192: 1.361839142 | J192: 0.01339467105 | K192: 0.8193549869 | L192: 0.00688523442 | M192: 0.4871657946 | N192: 0.02439951595 | O192: 1.681298565 | P192: 0.01522938303 | Q192: 0.8901177772 | R192: 0.008557181094 | S192: 0.4820286579 | T192: 0.0292605015 | U192: 1.486786346 | V192: 0.006252921122 | W192: 0.3923799737 | X192: 0.01553796303 | Y192: 1.826884008 | Z192: - | AA192: - | AB192: - | AC192: - | AD192: - | AE192: 2003-04-11 | AF192: 11.6 | AH192: 11.6
B193: 2003-04-12 | C193: 158 | D193: 1 | E193: 12.84875588 | F193: 0.1080137845 | G193: 7.22902511 | H193: 0.02089432816 | I193: 1.382733471 | J193: 0.01351685786 | K193: 0.8328718447 | L193: 0.006922203161 | M193: 0.4940879977 | N193: 0.02443777522 | O193: 1.70573634 | P193: 0.01537787068 | Q193: 0.9054956479 | R193: 0.008600773508 | S193: 0.4906294314 | T193: 0.02998358373 | U193: 1.516769929 | V193: 0.006372573926 | W193: 0.3987525476 | X193: 0.01561597632 | Y193: 1.842499984 | Z193: - | AA193: - | AB193: - | AC193: - | AD193: - | AE193: 2003-04-12 | AF193: 11.7 | AH193: 11.7
B194: 2003-04-13 | C194: 159 | D194: 1 | E194: 12.88615103 | F194: 0.1108173437 | G194: 7.339842454 | H194: 0.02109052113 | I194: 1.403823992 | J194: 0.01375027972 | K194: 0.8466221244 | L194: 0.006993959688 | M194: 0.5010819574 | N194: 0.02450651842 | O194: 1.730242858 | P194: 0.01566021042 | Q194: 0.9211558583 | R194: 0.008681726754 | S194: 0.4993111581 | T194: 0.03146732049 | U194: 1.54823725 | V194: 0.006616858825 | W194: 0.4053694064 | X194: 0.01577207028 | Y194: 1.858272055 | Z194: - | AA194: - | AB194: - | AC194: - | AD194: - | AE194: 2003-04-13 | AF194: 11.9 | AH194: 11.9
B195: 2003-04-14 | C195: 160 | D195: 1 | E195: 12.92338186 | F195: 0.1135943467 | G195: 7.4534368 | H195: 0.02127067729 | I195: 1.425094669 | J195: 0.01398254582 | K195: 0.8606046703 | L195: 0.00706524281 | M195: 0.5081472002 | N195: 0.0245660181 | O195: 1.754808876 | P195: 0.01593901242 | Q195: 0.9370948707 | R195: 0.008758335427 | S195: 0.5080694935 | T195: 0.03300078671 | U195: 1.581238037 | V195: 0.006867771262 | W195: 0.4122371777 | X195: 0.0159282297 | Y195: 1.874200284 | Z195: - | AA195: - | AB195: - | AC195: - | AD195: - | AE195: 2003-04-14 | AF195: 12.1 | AH195: 12.1
B196: 2003-04-15 | C196: 161 | D196: 1 | E196: 12.96043986 | F196: 0.1163402659 | G196: 7.569777066 | H196: 0.02143584117 | I196: 1.44653051 | J196: 0.01421350886 | K196: 0.8748181791 | L196: 0.007136036778 | M196: 0.515283237 | N196: 0.0246174803 | O196: 1.779426357 | P196: 0.0162140398 | Q196: 0.9533089105 | R196: 0.008830753275 | S196: 0.5169002468 | T196: 0.03458333865 | U196: 1.615821375 | V196: 0.007125283022 | W196: 0.4193624607 | X196: 0.0160844253 | Y196: 1.89028471 | Z196: - | AA196: - | AB196: - | AC196: - | AD196: - | AE196: 2003-04-15 | AF196: 12.3 | AH196: 12.3
B197: 2003-04-16 | C197: 162 | D197: 1 | E197: 12.99731638 | F197: 0.1190507843 | G197: 7.688827851 | H197: 0.02158703692 | I197: 1.468117547 | J197: 0.01444302485 | K197: 0.889261204 | L197: 0.007206326184 | M197: 0.5224895632 | N197: 0.02466196319 | O197: 1.80408832 | P197: 0.01648507039 | Q197: 0.9697939809 | R197: 0.008899138718 | S197: 0.5257993855 | T197: 0.03621409046 | U197: 1.652035466 | V197: 0.00738934875 | W197: 0.4267518095 | X197: 0.01624062773 | Y197: 1.906525337 | Z197: - | AA197: - | AB197: - | AC197: - | AD197: - | AE197: 2003-04-16 | AF197: 12.5 | AH197: 12.5
B198: 2003-04-17 | C198: 163 | D198: 1 | E198: 13.03400259 | F198: 0.1203914831 | G198: 7.809219334 | H198: 0.02165770883 | I198: 1.489775256 | J198: 0.01456142674 | K198: 0.9038226307 | L198: 0.007241947981 | M198: 0.5297315112 | N198: 0.0246818815 | O198: 1.828770201 | P198: 0.01662414266 | Q198: 0.9864181236 | R198: 0.008932933284 | S198: 0.5347323188 | T198: 0.03704719602 | U198: 1.689082662 | V198: 0.007523820313 | W198: 0.4342756298 | X198: 0.01631872235 | Y198: 1.92284406 | Z198: - | AA198: - | AB198: - | AC198: - | AD198: - | AE198: 2003-04-17 | AF198: 12.6 | AH198: 12.6
B199: 2003-04-18 | C199: 164 | D199: 1 | E199: 13.07048951 | F199: 0.123041328 | G199: 7.932260662 | H199: 0.02178980524 | I199: 1.511565061 | J199: 0.0147883716 | K199: 0.9186110023 | L199: 0.007311415661 | M199: 0.5370429269 | N199: 0.0247175943 | O199: 1.853487796 | P199: 0.01688863818 | Q199: 1.003306762 | R199: 0.008995515738 | S199: 0.5437278346 | T199: 0.03874803543 | U199: 1.727830697 | V199: 0.00779759271 | W199: 0.4420732225 | X199: 0.01647488008 | Y199: 1.93931894 | Z199: - | AA199: - | AB199: - | AC199: - | AD199: - | AE199: 2003-04-18 | AF199: 12.8 | AH199: 12.8
B200: 2003-04-19 | C200: 165 | D200: 1 | E200: 13.10676797 | F200: 0.1256460574 | G200: 8.057906719 | H200: 0.02191034783 | I200: 1.533475409 | J200: 0.01501352911 | K200: 0.9336245314 | L200: 0.007380343879 | M200: 0.5444232707 | N200: 0.02474842653 | O200: 1.878236222 | P200: 0.01714865083 | Q200: 1.020455413 | R200: 0.009054474856 | S200: 0.5527823094 | T200: 0.0404937472 | U200: 1.768324444 | V200: 0.008077726179 | W200: 0.4501509487 | X200: 0.01663097136 | Y200: 1.955949911 | Z200: - | AA200: - | AB200: - | AC200: - | AD200: - | AE200: 2003-04-19 | AF200: 13 | AH200: 13
... 83 more rows

Sheet 気象データ
A3: 日平均気温平年値(水戸地方気象台1991-2020)
B4: 北茨城 | C4: 大子 | D4: 常陸大宮 | E4: 日立 | F4: 笠間 | G4: 水戸 | H4: 古河 | I4: 下館 | J4: 下妻 | K4: 鉾田 | L4: つくば(館野) | M4: 土浦 | N4: 鹿嶋 | O4: 龍ケ崎
B5: B | C5: C | D5: D | E5: E | F5: F | G5: G | H5: H | I5: I | J5: J | K5: K | L5: L | M5: M | N5: N | O5: O
A6: 2013-10-15 | B6: 16.3 | C6: 15.1 | D6: 15.5 | E6: 17.2 | F6: 16.4 | G6: 16.7 | H6: 17.3 | I6: 16.7 | J6: 16.9 | K6: 16.6 | L6: 16.8 | M6: 17.4 | N6: 18 | O6: 17 | Q6: 1 | R6: 1
A7: 2013-10-16 | B7: 16.1 | C7: 14.9 | D7: 15.3 | E7: 17 | F7: 16.2 | G7: 16.5 | H7: 17.1 | I7: 16.5 | J7: 16.6 | K7: 16.4 | L7: 16.5 | M7: 17.2 | N7: 17.9 | O7: 16.8 | Q7: 2 | R7: 2
A8: 2013-10-17 | B8: 15.9 | C8: 14.6 | D8: 15 | E8: 16.8 | F8: 15.9 | G8: 16.3 | H8: 16.9 | I8: 16.3 | J8: 16.4 | K8: 16.2 | L8: 16.3 | M8: 17 | N8: 17.7 | O8: 16.6 | Q8: 3 | R8: 3
A9: 2013-10-18 | B9: 15.8 | C9: 14.4 | D9: 14.8 | E9: 16.6 | F9: 15.7 | G9: 16.1 | H9: 16.7 | I9: 16.1 | J9: 16.2 | K9: 16 | L9: 16.1 | M9: 16.8 | N9: 17.5 | O9: 16.4 | Q9: 4 | R9: 4
A10: 2013-10-19 | B10: 15.6 | C10: 14.1 | D10: 14.6 | E10: 16.5 | F10: 15.5 | G10: 15.9 | H10: 16.5 | I10: 15.9 | J10: 16 | K10: 15.8 | L10: 15.9 | M10: 16.6 | N10: 17.3 | O10: 16.2 | Q10: 5 | R10: 5
A11: 2013-10-20 | B11: 15.4 | C11: 13.9 | D11: 14.4 | E11: 16.3 | F11: 15.3 | G11: 15.7 | H11: 16.3 | I11: 15.7 | J11: 15.8 | K11: 15.6 | L11: 15.7 | M11: 16.4 | N11: 17.2 | O11: 16 | Q11: 6 | R11: 6
A12: 2013-10-21 | B12: 15.2 | C12: 13.7 | D12: 14.2 | E12: 16.1 | F12: 15.1 | G12: 15.5 | H12: 16.1 | I12: 15.5 | J12: 15.6 | K12: 15.4 | L12: 15.5 | M12: 16.3 | N12: 17 | O12: 15.8 | Q12: 7 | R12: 7
A13: 2013-10-22 | B13: 15.1 | C13: 13.4 | D13: 14 | E13: 16 | F13: 14.9 | G13: 15.3 | H13: 15.8 | I13: 15.3 | J13: 15.4 | K13: 15.2 | L13: 15.3 | M13: 16.1 | N13: 16.8 | O13: 15.6 | Q13: 8 | R13: 8
A14: 2013-10-23 | B14: 14.9 | C14: 13.2 | D14: 13.8 | E14: 15.8 | F14: 14.7 | G14: 15.1 | H14: 15.6 | I14: 15.1 | J14: 15.2 | K14: 15 | L14: 15.1 | M14: 15.9 | N14: 16.7 | O14: 15.4 | Q14: 9 | R14: 9
A15: 2013-10-24 | B15: 14.7 | C15: 13 | D15: 13.6 | E15: 15.7 | F15: 14.5 | G15: 15 | H15: 15.5 | I15: 14.9 | J15: 15 | K15: 14.8 | L15: 14.9 | M15: 15.7 | N15: 16.5 | O15: 15.2 | Q15: 10 | R15: 10
A16: 2013-10-25 | B16: 14.6 | C16: 12.8 | D16: 13.4 | E16: 15.5 | F16: 14.2 | G16: 14.8 | H16: 15.3 | I16: 14.7 | J16: 14.8 | K16: 14.6 | L16: 14.7 | M16: 15.5 | N16: 16.3 | O16: 15 | Q16: 11 | R16: 11
A17: 2013-10-26 | B17: 14.4 | C17: 12.5 | D17: 13.2 | E17: 15.3 | F17: 14.1 | G17: 14.6 | H17: 15.1 | I17: 14.5 | J17: 14.6 | K17: 14.4 | L17: 14.5 | M17: 15.3 | N17: 16.1 | O17: 14.8 | Q17: 12 | R17: 12
A18: 2013-10-27 | B18: 14.2 | C18: 12.3 | D18: 13 | E18: 15.2 | F18: 13.9 | G18: 14.4 | H18: 14.9 | I18: 14.3 | J18: 14.4 | K18: 14.2 | L18: 14.3 | M18: 15.2 | N18: 16 | O18: 14.7 | R18: 13
A19: 2013-10-28 | B19: 14.1 | C19: 12.1 | D19: 12.8 | E19: 15 | F19: 13.7 | G19: 14.2 | H19: 14.7 | I19: 14.1 | J19: 14.2 | K19: 14 | L19: 14.1 | M19: 15 | N19: 15.8 | O19: 14.5 | R19: 14
A20: 2013-10-29 | B20: 13.9 | C20: 11.9 | D20: 12.6 | E20: 14.9 | F20: 13.5 | G20: 14 | H20: 14.5 | I20: 13.9 | J20: 14 | K20: 13.8 | L20: 13.9 | M20: 14.8 | N20: 15.6 | O20: 14.3 | R20: 15
A21: 2013-10-30 | B21: 13.7 | C21: 11.7 | D21: 12.4 | E21: 14.7 | F21: 13.3 | G21: 13.9 | H21: 14.3 | I21: 13.7 | J21: 13.8 | K21: 13.6 | L21: 13.7 | M21: 14.6 | N21: 15.4 | O21: 14 | R21: 16
A22: 2013-10-31 | B22: 13.6 | C22: 11.4 | D22: 12.2 | E22: 14.6 | F22: 13.1 | G22: 13.7 | H22: 14.1 | I22: 13.5 | J22: 13.6 | K22: 13.4 | L22: 13.5 | M22: 14.4 | N22: 15.3 | O22: 13.8 | R22: 17
A23: 2013-11-01 | B23: 13.4 | C23: 11.2 | D23: 12 | E23: 14.5 | F23: 12.9 | G23: 13.5 | H23: 13.9 | I23: 13.3 | J23: 13.4 | K23: 13.3 | L23: 13.3 | M23: 14.2 | N23: 15.1 | O23: 13.6 | R23: 18
A24: 2013-11-02 | B24: 13.2 | C24: 11 | D24: 11.8 | E24: 14.3 | F24: 12.7 | G24: 13.3 | H24: 13.7 | I24: 13.1 | J24: 13.2 | K24: 13.1 | L24: 13.1 | M24: 14.1 | N24: 14.9 | O24: 13.5 | R24: 19
A25: 2013-11-03 | B25: 13.1 | C25: 10.8 | D25: 11.6 | E25: 14.2 | F25: 12.5 | G25: 13.2 | H25: 13.6 | I25: 12.9 | J25: 13 | K25: 12.9 | L25: 12.9 | M25: 13.9 | N25: 14.8 | O25: 13.3 | R25: 20
A26: 2013-11-04 | B26: 12.9 | C26: 10.7 | D26: 11.5 | E26: 14.1 | F26: 12.4 | G26: 13 | H26: 13.4 | I26: 12.8 | J26: 12.8 | K26: 12.7 | L26: 12.7 | M26: 13.7 | N26: 14.6 | O26: 13.1 | R26: 21
A27: 2013-11-05 | B27: 12.8 | C27: 10.5 | D27: 11.3 | E27: 13.9 | F27: 12.2 | G27: 12.8 | H27: 13.2 | I27: 12.6 | J27: 12.6 | K27: 12.6 | L27: 12.6 | M27: 13.5 | N27: 14.4 | O27: 12.9 | R27: 22
A28: 2013-11-06 | B28: 12.6 | C28: 10.3 | D28: 11.1 | E28: 13.8 | F28: 12 | G28: 12.6 | H28: 13 | I28: 12.4 | J28: 12.5 | K28: 12.4 | L28: 12.4 | M28: 13.3 | N28: 14.3 | O28: 12.7 | R28: 23
A29: 2013-11-07 | B29: 12.5 | C29: 10.1 | D29: 10.9 | E29: 13.6 | F29: 11.8 | G29: 12.5 | H29: 12.8 | I29: 12.3 | J29: 12.3 | K29: 12.2 | L29: 12.2 | M29: 13.2 | N29: 14.1 | O29: 12.5 | R29: 24
A30: 2013-11-08 | B30: 12.3 | C30: 9.9 | D30: 10.7 | E30: 13.4 | F30: 11.6 | G30: 12.3 | H30: 12.6 | I30: 12.1 | J30: 12.1 | K30: 12 | L30: 12 | M30: 13 | N30: 13.9 | O30: 12.4 | R30: 25
A31: 2013-11-09 | B31: 12.1 | C31: 9.7 | D31: 10.6 | E31: 13.3 | F31: 11.5 | G31: 12.1 | H31: 12.4 | I31: 11.9 | J31: 11.9 | K31: 11.9 | L31: 11.8 | M31: 12.8 | N31: 13.8 | O31: 12.2 | R31: 26
A32: 2013-11-10 | B32: 12 | C32: 9.5 | D32: 10.4 | E32: 13.1 | F32: 11.3 | G32: 11.9 | H32: 12.2 | I32: 11.7 | J32: 11.7 | K32: 11.7 | L32: 11.6 | M32: 12.6 | N32: 13.6 | O32: 12 | R32: 27
A33: 2013-11-11 | B33: 11.8 | C33: 9.2 | D33: 10.2 | E33: 12.9 | F33: 11.1 | G33: 11.7 | H33: 12 | I33: 11.4 | J33: 11.5 | K33: 11.5 | L33: 11.4 | M33: 12.4 | N33: 13.4 | O33: 11.8 | R33: 28
A34: 2013-11-12 | B34: 11.6 | C34: 9 | D34: 9.9 | E34: 12.7 | F34: 10.8 | G34: 11.5 | H34: 11.8 | I34: 11.2 | J34: 11.2 | K34: 11.3 | L34: 11.2 | M34: 12.2 | N34: 13.2 | O34: 11.6 | R34: 29
A35: 2013-11-13 | B35: 11.4 | C35: 8.8 | D35: 9.7 | E35: 12.5 | F35: 10.6 | G35: 11.3 | H35: 11.5 | I35: 10.9 | J35: 11 | K35: 11.1 | L35: 11 | M35: 12 | N35: 13 | O35: 11.4 | R35: 30
A36: 2013-11-14 | B36: 11.2 | C36: 8.6 | D36: 9.5 | E36: 12.3 | F36: 10.4 | G36: 11.1 | H36: 11.3 | I36: 10.7 | J36: 10.8 | K36: 10.9 | L36: 10.8 | M36: 11.8 | N36: 12.8 | O36: 11.2 | R36: 31
A37: 2013-11-15 | B37: 11 | C37: 8.3 | D37: 9.3 | E37: 12.1 | F37: 10.2 | G37: 10.9 | H37: 11.1 | I37: 10.4 | J37: 10.6 | K37: 10.6 | L37: 10.6 | M37: 11.6 | N37: 12.6 | O37: 11
A38: 2013-11-16 | B38: 10.8 | C38: 8.1 | D38: 9.1 | E38: 11.9 | F38: 10 | G38: 10.7 | H38: 10.9 | I38: 10.2 | J38: 10.4 | K38: 10.4 | L38: 10.4 | M38: 11.4 | N38: 12.4 | O38: 10.8
A39: 2013-11-17 | B39: 10.6 | C39: 7.9 | D39: 8.9 | E39: 11.8 | F39: 9.8 | G39: 10.5 | H39: 10.6 | I39: 10 | J39: 10.2 | K39: 10.2 | L39: 10.2 | M39: 11.1 | N39: 12.2 | O39: 10.6
A40: 2013-11-18 | B40: 10.4 | C40: 7.7 | D40: 8.7 | E40: 11.6 | F40: 9.6 | G40: 10.3 | H40: 10.4 | I40: 9.8 | J40: 9.9 | K40: 10 | L40: 10 | M40: 10.9 | N40: 12 | O40: 10.4
A41: 2013-11-19 | B41: 10.2 | C41: 7.4 | D41: 8.5 | E41: 11.4 | F41: 9.4 | G41: 10.1 | H41: 10.2 | I41: 9.6 | J41: 9.7 | K41: 9.8 | L41: 9.8 | M41: 10.8 | N41: 11.8 | O41: 10.1
A42: 2013-11-20 | B42: 10.1 | C42: 7.2 | D42: 8.3 | E42: 11.2 | F42: 9.2 | G42: 9.9 | H42: 10 | I42: 9.4 | J42: 9.5 | K42: 9.7 | L42: 9.6 | M42: 10.6 | N42: 11.6 | O42: 9.9
A43: 2013-11-21 | B43: 9.9 | C43: 7.1 | D43: 8.1 | E43: 11.1 | F43: 9 | G43: 9.7 | H43: 9.8 | I43: 9.2 | J43: 9.3 | K43: 9.5 | L43: 9.4 | M43: 10.4 | N43: 11.5 | O43: 9.8
A44: 2013-11-22 | B44: 9.8 | C44: 6.9 | D44: 8 | E44: 10.9 | F44: 8.8 | G44: 9.5 | H44: 9.7 | I44: 9.1 | J44: 9.2 | K44: 9.3 | L44: 9.2 | M44: 10.2 | N44: 11.3 | O44: 9.6
A45: 2013-11-23 | B45: 9.6 | C45: 6.7 | D45: 7.8 | E45: 10.8 | F45: 8.7 | G45: 9.4 | H45: 9.5 | I45: 8.9 | J45: 9 | K45: 9.2 | L45: 9.1 | M45: 10.1 | N45: 11.1 | O45: 9.4
A46: 2013-11-24 | B46: 9.5 | C46: 6.5 | D46: 7.6 | E46: 10.6 | F46: 8.5 | G46: 9.2 | H46: 9.3 | I46: 8.8 | J46: 8.8 | K46: 9 | L46: 8.9 | M46: 9.9 | N46: 11 | O46: 9.2
A47: 2013-11-25 | B47: 9.3 | C47: 6.4 | D47: 7.5 | E47: 10.5 | F47: 8.3 | G47: 9.1 | H47: 9.2 | I47: 8.6 | J47: 8.7 | K47: 8.8 | L47: 8.7 | M47: 9.7 | N47: 10.8 | O47: 9
A48: 2013-11-26 | B48: 9.2 | C48: 6.2 | D48: 7.3 | E48: 10.3 | F48: 8.2 | G48: 8.9 | H48: 9 | I48: 8.5 | J48: 8.5 | K48: 8.7 | L48: 8.6 | M48: 9.6 | N48: 10.7 | O48: 8.9
A49: 2013-11-27 | B49: 9.1 | C49: 6.1 | D49: 7.2 | E49: 10.2 | F49: 8 | G49: 8.8 | H49: 8.9 | I49: 8.4 | J49: 8.3 | K49: 8.5 | L49: 8.4 | M49: 9.4 | N49: 10.5 | O49: 8.7
A50: 2013-11-28 | B50: 8.9 | C50: 5.9 | D50: 7 | E50: 10 | F50: 7.8 | G50: 8.6 | H50: 8.7 | I50: 8.2 | J50: 8.2 | K50: 8.3 | L50: 8.3 | M50: 9.3 | N50: 10.3 | O50: 8.5
A51: 2013-11-29 | B51: 8.8 | C51: 5.7 | D51: 6.8 | E51: 9.9 | F51: 7.6 | G51: 8.4 | H51: 8.5 | I51: 8 | J51: 8 | K51: 8.2 | L51: 8.1 | M51: 9.1 | N51: 10.2 | O51: 8.4
A52: 2013-11-30 | B52: 8.6 | C52: 5.5 | D52: 6.6 | E52: 9.7 | F52: 7.4 | G52: 8.3 | H52: 8.4 | I52: 7.8 | J52: 7.8 | K52: 8 | L52: 7.9 | M52: 8.9 | N52: 10 | O52: 8.2
A53: 2013-12-01 | B53: 8.4 | C53: 5.4 | D53: 6.4 | E53: 9.5 | F53: 7.3 | G53: 8.1 | H53: 8.2 | I53: 7.6 | J53: 7.7 | K53: 7.8 | L53: 7.8 | M53: 8.8 | N53: 9.8 | O53: 8
A54: 2013-12-02 | B54: 8.2 | C54: 5.2 | D54: 6.2 | E54: 9.4 | F54: 7.1 | G54: 7.9 | H54: 8 | I54: 7.4 | J54: 7.5 | K54: 7.6 | L54: 7.6 | M54: 8.6 | N54: 9.6 | O54: 7.9
A55: 2013-12-03 | B55: 8 | C55: 5 | D55: 6 | E55: 9.2 | F55: 6.9 | G55: 7.7 | H55: 7.8 | I55: 7.2 | J55: 7.3 | K55: 7.4 | L55: 7.4 | M55: 8.4 | N55: 9.5 | O55: 7.7
A56: 2013-12-04 | B56: 7.8 | C56: 4.7 | D56: 5.8 | E56: 9 | F56: 6.7 | G56: 7.5 | H56: 7.6 | I56: 7 | J56: 7.1 | K56: 7.2 | L56: 7.2 | M56: 8.2 | N56: 9.2 | O56: 7.5
A57: 2013-12-05 | B57: 7.6 | C57: 4.5 | D57: 5.6 | E57: 8.8 | F57: 6.4 | G57: 7.3 | H57: 7.4 | I57: 6.7 | J57: 6.9 | K57: 7 | L57: 7 | M57: 8 | N57: 9 | O57: 7.3
A58: 2013-12-06 | B58: 7.4 | C58: 4.3 | D58: 5.4 | E58: 8.6 | F58: 6.2 | G58: 7.1 | H58: 7.3 | I58: 6.5 | J58: 6.7 | K58: 6.8 | L58: 6.8 | M58: 7.8 | N58: 8.8 | O58: 7.1
A59: 2013-12-07 | B59: 7.2 | C59: 4.1 | D59: 5.2 | E59: 8.4 | F59: 6 | G59: 6.9 | H59: 7.1 | I59: 6.3 | J59: 6.5 | K59: 6.6 | L59: 6.6 | M59: 7.6 | N59: 8.6 | O59: 6.9
A60: 2013-12-08 | B60: 7.1 | C60: 3.9 | D60: 5 | E60: 8.2 | F60: 5.8 | G60: 6.7 | H60: 6.9 | I60: 6.1 | J60: 6.3 | K60: 6.4 | L60: 6.4 | M60: 7.4 | N60: 8.4 | O60: 6.7
A61: 2013-12-09 | B61: 6.9 | C61: 3.7 | D61: 4.9 | E61: 8.1 | F61: 5.6 | G61: 6.5 | H61: 6.7 | I61: 5.9 | J61: 6.2 | K61: 6.2 | L61: 6.3 | M61: 7.2 | N61: 8.2 | O61: 6.5
A62: 2013-12-10 | B62: 6.7 | C62: 3.5 | D62: 4.7 | E62: 7.9 | F62: 5.5 | G62: 6.4 | H62: 6.5 | I62: 5.7 | J62: 6 | K62: 6 | L62: 6.1 | M62: 7.1 | N62: 8 | O62: 6.4
A63: 2013-12-11 | B63: 6.5 | C63: 3.4 | D63: 4.5 | E63: 7.7 | F63: 5.3 | G63: 6.2 | H63: 6.4 | I63: 5.5 | J63: 5.8 | K63: 5.8 | L63: 5.9 | M63: 6.9 | N63: 7.8 | O63: 6.2
A64: 2013-12-12 | B64: 6.4 | C64: 3.2 | D64: 4.3 | E64: 7.6 | F64: 5.1 | G64: 6 | H64: 6.2 | I64: 5.3 | J64: 5.6 | K64: 5.6 | L64: 5.7 | M64: 6.7 | N64: 7.6 | O64: 6
A65: 2013-12-13 | B65: 6.2 | C65: 3 | D65: 4.2 | E65: 7.4 | F65: 4.9 | G65: 5.9 | H65: 6.1 | I65: 5.1 | J65: 5.5 | K65: 5.4 | L65: 5.5 | M65: 6.6 | N65: 7.5 | O65: 5.8
A66: 2013-12-14 | B66: 6.1 | C66: 2.9 | D66: 4 | E66: 7.3 | F66: 4.8 | G66: 5.7 | H66: 5.9 | I66: 5 | J66: 5.3 | K66: 5.3 | L66: 5.4 | M66: 6.4 | N66: 7.3 | O66: 5.7
A67: 2013-12-15 | B67: 6 | C67: 2.7 | D67: 3.9 | E67: 7.2 | F67: 4.6 | G67: 5.6 | H67: 5.8 | I67: 4.8 | J67: 5.2 | K67: 5.1 | L67: 5.3 | M67: 6.3 | N67: 7.2 | O67: 5.5
A68: 2013-12-16 | B68: 5.9 | C68: 2.6 | D68: 3.8 | E68: 7.1 | F68: 4.5 | G68: 5.4 | H68: 5.6 | I68: 4.7 | J68: 5.1 | K68: 5 | L68: 5.1 | M68: 6.1 | N68: 7 | O68: 5.4
A69: 2013-12-17 | B69: 5.8 | C69: 2.4 | D69: 3.6 | E69: 7 | F69: 4.4 | G69: 5.3 | H69: 5.5 | I69: 4.6 | J69: 4.9 | K69: 4.8 | L69: 5 | M69: 6 | N69: 6.9 | O69: 5.2
A70: 2013-12-18 | B70: 5.7 | C70: 2.3 | D70: 3.5 | E70: 6.9 | F70: 4.3 | G70: 5.2 | H70: 5.4 | I70: 4.5 | J70: 4.8 | K70: 4.7 | L70: 4.9 | M70: 5.9 | N70: 6.8 | O70: 5.1
A71: 2013-12-19 | B71: 5.6 | C71: 2.2 | D71: 3.4 | E71: 6.8 | F71: 4.1 | G71: 5.1 | H71: 5.3 | I71: 4.4 | J71: 4.7 | K71: 4.6 | L71: 4.8 | M71: 5.8 | N71: 6.6 | O71: 5
A72: 2013-12-20 | B72: 5.5 | C72: 2.1 | D72: 3.3 | E72: 6.7 | F72: 4 | G72: 5 | H72: 5.2 | I72: 4.2 | J72: 4.6 | K72: 4.5 | L72: 4.7 | M72: 5.7 | N72: 6.5 | O72: 4.9
A73: 2013-12-21 | B73: 5.4 | C73: 2 | D73: 3.2 | E73: 6.6 | F73: 3.9 | G73: 4.9 | H73: 5.1 | I73: 4.1 | J73: 4.5 | K73: 4.4 | L73: 4.6 | M73: 5.6 | N73: 6.4 | O73: 4.8
A74: 2013-12-22 | B74: 5.3 | C74: 1.9 | D74: 3.1 | E74: 6.5 | F74: 3.8 | G74: 4.8 | H74: 5 | I74: 4 | J74: 4.4 | K74: 4.2 | L74: 4.4 | M74: 5.4 | N74: 6.3 | O74: 4.7
A75: 2013-12-23 | B75: 5.2 | C75: 1.7 | D75: 3 | E75: 6.3 | F75: 3.7 | G75: 4.7 | H75: 4.8 | I75: 3.9 | J75: 4.3 | K75: 4.1 | L75: 4.3 | M75: 5.3 | N75: 6.2 | O75: 4.5
A76: 2013-12-24 | B76: 5.1 | C76: 1.6 | D76: 2.8 | E76: 6.2 | F76: 3.6 | G76: 4.6 | H76: 4.7 | I76: 3.8 | J76: 4.2 | K76: 4 | L76: 4.2 | M76: 5.2 | N76: 6.1 | O76: 4.4
A77: 2013-12-25 | B77: 5 | C77: 1.5 | D77: 2.7 | E77: 6.1 | F77: 3.5 | G77: 4.4 | H77: 4.6 | I77: 3.7 | J77: 4.1 | K77: 3.9 | L77: 4.1 | M77: 5.1 | N77: 6 | O77: 4.3
A78: 2013-12-26 | B78: 4.9 | C78: 1.4 | D78: 2.6 | E78: 6 | F78: 3.3 | G78: 4.3 | H78: 4.5 | I78: 3.5 | J78: 3.9 | K78: 3.8 | L78: 4 | M78: 5 | N78: 5.8 | O78: 4.2
A79: 2013-12-27 | B79: 4.7 | C79: 1.3 | D79: 2.5 | E79: 5.8 | F79: 3.2 | G79: 4.2 | H79: 4.4 | I79: 3.4 | J79: 3.8 | K79: 3.6 | L79: 3.9 | M79: 4.9 | N79: 5.7 | O79: 4.1
A80: 2013-12-28 | B80: 4.6 | C80: 1.2 | D80: 2.4 | E80: 5.7 | F80: 3.1 | G80: 4.1 | H80: 4.3 | I80: 3.2 | J80: 3.7 | K80: 3.5 | L80: 3.8 | M80: 4.8 | N80: 5.6 | O80: 4
A81: 2013-12-29 | B81: 4.5 | C81: 1.1 | D81: 2.3 | E81: 5.6 | F81: 3 | G81: 4 | H81: 4.2 | I81: 3.1 | J81: 3.6 | K81: 3.4 | L81: 3.7 | M81: 4.7 | N81: 5.5 | O81: 3.9
A82: 2013-12-30 | B82: 4.4 | C82: 1 | D82: 2.2 | E82: 5.5 | F82: 2.9 | G82: 3.9 | H82: 4.1 | I82: 3 | J82: 3.5 | K82: 3.3 | L82: 3.6 | M82: 4.6 | N82: 5.4 | O82: 3.8
A83: 2013-12-31 | B83: 4.3 | C83: 0.9 | D83: 2.1 | E83: 5.4 | F83: 2.9 | G83: 3.8 | H83: 4.1 | I83: 2.9 | J83: 3.5 | K83: 3.2 | L83: 3.5 | M83: 4.5 | N83: 5.3 | O83: 3.7
A84: 2013-01-01 | B84: 4.2 | C84: 0.8 | D84: 2 | E84: 5.3 | F84: 2.8 | G84: 3.7 | H84: 4 | I84: 2.8 | J84: 3.4 | K84: 3.2 | L84: 3.5 | M84: 4.4 | N84: 5.2 | O84: 3.7
A85: 2013-01-02 | B85: 4.1 | C85: 0.8 | D85: 1.9 | E85: 5.2 | F85: 2.7 | G85: 3.6 | H85: 3.9 | I85: 2.7 | J85: 3.3 | K85: 3.1 | L85: 3.4 | M85: 4.3 | N85: 5.2 | O85: 3.6
A86: 2013-01-03 | B86: 4.1 | C86: 0.7 | D86: 1.9 | E86: 5.2 | F86: 2.7 | G86: 3.6 | H86: 3.9 | I86: 2.7 | J86: 3.3 | K86: 3 | L86: 3.3 | M86: 4.3 | N86: 5.1 | O86: 3.6
A87: 2013-01-04 | B87: 4 | C87: 0.7 | D87: 1.8 | E87: 5.1 | F87: 2.6 | G87: 3.5 | H87: 3.8 | I87: 2.6 | J87: 3.2 | K87: 3 | L87: 3.3 | M87: 4.2 | N87: 5.1 | O87: 3.5
A88: 2013-01-05 | B88: 3.9 | C88: 0.7 | D88: 1.8 | E88: 5 | F88: 2.6 | G88: 3.5 | H88: 3.8 | I88: 2.6 | J88: 3.2 | K88: 2.9 | L88: 3.3 | M88: 4.2 | N88: 5 | O88: 3.5
A89: 2013-01-06 | B89: 3.9 | C89: 0.6 | D89: 1.7 | E89: 4.9 | F89: 2.5 | G89: 3.5 | H89: 3.7 | I89: 2.6 | J89: 3.2 | K89: 2.9 | L89: 3.2 | M89: 4.2 | N89: 5 | O89: 3.4
A90: 2013-01-07 | B90: 3.8 | C90: 0.6 | D90: 1.7 | E90: 4.9 | F90: 2.5 | G90: 3.4 | H90: 3.7 | I90: 2.6 | J90: 3.1 | K90: 2.9 | L90: 3.2 | M90: 4.1 | N90: 4.9 | O90: 3.4
A91: 2013-01-08 | B91: 3.8 | C91: 0.6 | D91: 1.7 | E91: 4.8 | F91: 2.5 | G91: 3.4 | H91: 3.7 | I91: 2.5 | J91: 3.1 | K91: 2.8 | L91: 3.2 | M91: 4.1 | N91: 4.9 | O91: 3.4
A92: 2013-01-09 | B92: 3.7 | C92: 0.6 | D92: 1.7 | E92: 4.7 | F92: 2.4 | G92: 3.3 | H92: 3.6 | I92: 2.5 | J92: 3.1 | K92: 2.8 | L92: 3.1 | M92: 4.1 | N92: 4.8 | O92: 3.3
A93: 2013-01-10 | B93: 3.7 | C93: 0.5 | D93: 1.6 | E93: 4.7 | F93: 2.4 | G93: 3.3 | H93: 3.6 | I93: 2.5 | J93: 3 | K93: 2.8 | L93: 3.1 | M93: 4 | N93: 4.8 | O93: 3.3
A94: 2013-01-11 | B94: 3.6 | C94: 0.5 | D94: 1.6 | E94: 4.6 | F94: 2.4 | G94: 3.3 | H94: 3.6 | I94: 2.5 | J94: 3 | K94: 2.8 | L94: 3.1 | M94: 4 | N94: 4.8 | O94: 3.3
A95: 2013-01-12 | B95: 3.6 | C95: 0.5 | D95: 1.6 | E95: 4.6 | F95: 2.4 | G95: 3.3 | H95: 3.5 | I95: 2.5 | J95: 3 | K95: 2.8 | L95: 3.1 | M95: 4 | N95: 4.7 | O95: 3.2
A96: 2013-01-13 | B96: 3.5 | C96: 0.5 | D96: 1.6 | E96: 4.5 | F96: 2.4 | G96: 3.3 | H96: 3.5 | I96: 2.5 | J96: 2.9 | K96: 2.7 | L96: 3 | M96: 3.9 | N96: 4.7 | O96: 3.2
A97: 2013-01-14 | B97: 3.5 | C97: 0.5 | D97: 1.6 | E97: 4.5 | F97: 2.3 | G97: 3.2 | H97: 3.5 | I97: 2.5 | J97: 2.9 | K97: 2.7 | L97: 3 | M97: 3.9 | N97: 4.7 | O97: 3.2
A98: 2013-01-15 | B98: 3.5 | C98: 0.5 | D98: 1.6 | E98: 4.5 | F98: 2.3 | G98: 3.2 | H98: 3.5 | I98: 2.5 | J98: 2.9 | K98: 2.7 | L98: 3 | M98: 3.9 | N98: 4.6 | O98: 3.2
A99: 2013-01-16 | B99: 3.5 | C99: 0.5 | D99: 1.6 | E99: 4.4 | F99: 2.3 | G99: 3.2 | H99: 3.5 | I99: 2.6 | J99: 2.9 | K99: 2.7 | L99: 3 | M99: 3.9 | N99: 4.6 | O99: 3.2
A100: 2013-01-17 | B100: 3.4 | C100: 0.6 | D100: 1.6 | E100: 4.4 | F100: 2.3 | G100: 3.2 | H100: 3.4 | I100: 2.6 | J100: 2.9 | K100: 2.7 | L100: 3 | M100: 3.9 | N100: 4.6 | O100: 3.2
A101: 2013-01-18 | B101: 3.4 | C101: 0.6 | D101: 1.6 | E101: 4.4 | F101: 2.3 | G101: 3.2 | H101: 3.4 | I101: 2.6 | J101: 2.9 | K101: 2.7 | L101: 3 | M101: 3.8 | N101: 4.6 | O101: 3.2
A102: 2013-01-19 | B102: 3.4 | C102: 0.6 | D102: 1.6 | E102: 4.4 | F102: 2.3 | G102: 3.2 | H102: 3.4 | I102: 2.6 | J102: 2.9 | K102: 2.7 | L102: 3 | M102: 3.8 | N102: 4.6 | O102: 3.2
A103: 2013-01-20 | B103: 3.4 | C103: 0.6 | D103: 1.6 | E103: 4.4 | F103: 2.3 | G103: 3.2 | H103: 3.4 | I103: 2.6 | J103: 2.9 | K103: 2.7 | L103: 3 | M103: 3.8 | N103: 4.6 | O103: 3.2
A104: 2013-01-21 | B104: 3.4 | C104: 0.6 | D104: 1.6 | E104: 4.3 | F104: 2.3 | G104: 3.2 | H104: 3.5 | I104: 2.6 | J104: 2.9 | K104: 2.7 | L104: 3 | M104: 3.8 | N104: 4.6 | O104: 3.2
A105: 2013-01-22 | B105: 3.3 | C105: 0.6 | D105: 1.6 | E105: 4.3 | F105: 2.3 | G105: 3.2 | H105: 3.5 | I105: 2.6 | J105: 2.9 | K105: 2.7 | L105: 3 | M105: 3.8 | N105: 4.5 | O105: 3.2
A106: 2013-01-23 | B106: 3.3 | C106: 0.6 | D106: 1.6 | E106: 4.3 | F106: 2.3 | G106: 3.2 | H106: 3.5 | I106: 2.6 | J106: 2.9 | K106: 2.7 | L106: 3 | M106: 3.8 | N106: 4.5 | O106: 3.2
A107: 2013-01-24 | B107: 3.3 | C107: 0.6 | D107: 1.6 | E107: 4.3 | F107: 2.3 | G107: 3.2 | H107: 3.5 | I107: 2.6 | J107: 2.9 | K107: 2.7 | L107: 3 | M107: 3.8 | N107: 4.5 | O107: 3.2
A108: 2013-01-25 | B108: 3.3 | C108: 0.6 | D108: 1.6 | E108: 4.3 | F108: 2.3 | G108: 3.2 | H108: 3.5 | I108: 2.7 | J108: 2.9 | K108: 2.7 | L108: 3 | M108: 3.8 | N108: 4.5 | O108: 3.2
A109: 2013-01-26 | B109: 3.3 | C109: 0.6 | D109: 1.6 | E109: 4.3 | F109: 2.3 | G109: 3.2 | H109: 3.5 | I109: 2.7 | J109: 3 | K109: 2.7 | L109: 3 | M109: 3.9 | N109: 4.5 | O109: 3.2
A110: 2013-01-27 | B110: 3.3 | C110: 0.6 | D110: 1.6 | E110: 4.2 | F110: 2.3 | G110: 3.2 | H110: 3.6 | I110: 2.7 | J110: 3 | K110: 2.7 | L110: 3.1 | M110: 3.9 | N110: 4.5 | O110: 3.2
A111: 2013-01-28 | B111: 3.2 | C111: 0.6 | D111: 1.6 | E111: 4.2 | F111: 2.3 | G111: 3.2 | H111: 3.6 | I111: 2.8 | J111: 3 | K111: 2.7 | L111: 3.1 | M111: 3.9 | N111: 4.5 | O111: 3.2
A112: 2013-01-29 | B112: 3.2 | C112: 0.6 | D112: 1.6 | E112: 4.2 | F112: 2.3 | G112: 3.2 | H112: 3.6 | I112: 2.8 | J112: 3 | K112: 2.7 | L112: 3.1 | M112: 3.9 | N112: 4.5 | O112: 3.3
A113: 2013-01-30 | B113: 3.2 | C113: 0.6 | D113: 1.6 | E113: 4.2 | F113: 2.3 | G113: 3.2 | H113: 3.6 | I113: 2.9 | J113: 3 | K113: 2.7 | L113: 3.1 | M113: 3.9 | N113: 4.6 | O113: 3.3
A114: 2013-01-31 | B114: 3.2 | C114: 0.6 | D114: 1.6 | E114: 4.2 | F114: 2.3 | G114: 3.2 | H114: 3.7 | I114: 2.9 | J114: 3.1 | K114: 2.7 | L114: 3.2 | M114: 3.9 | N114: 4.6 | O114: 3.3
A115: 2013-02-01 | B115: 3.2 | C115: 0.6 | D115: 1.6 | E115: 4.2 | F115: 2.4 | G115: 3.2 | H115: 3.7 | I115: 2.9 | J115: 3.1 | K115: 2.7 | L115: 3.2 | M115: 4 | N115: 4.6 | O115: 3.4
A116: 2013-02-02 | B116: 3.3 | C116: 0.7 | D116: 1.6 | E116: 4.2 | F116: 2.4 | G116: 3.2 | H116: 3.7 | I116: 3 | J116: 3.1 | K116: 2.7 | L116: 3.2 | M116: 4 | N116: 4.6 | O116: 3.4
A117: 2013-02-03 | B117: 3.3 | C117: 0.7 | D117: 1.7 | E117: 4.2 | F117: 2.4 | G117: 3.3 | H117: 3.7 | I117: 3 | J117: 3.2 | K117: 2.7 | L117: 3.3 | M117: 4 | N117: 4.7 | O117: 3.4
A118: 2013-02-04 | B118: 3.3 | C118: 0.8 | D118: 1.7 | E118: 4.3 | F118: 2.4 | G118: 3.3 | H118: 3.8 | I118: 3 | J118: 3.2 | K118: 2.8 | L118: 3.3 | M118: 4.1 | N118: 4.7 | O118: 3.5
A119: 2013-02-05 | B119: 3.3 | C119: 0.8 | D119: 1.8 | E119: 4.3 | F119: 2.5 | G119: 3.3 | H119: 3.8 | I119: 3.1 | J119: 3.3 | K119: 2.8 | L119: 3.4 | M119: 4.1 | N119: 4.7 | O119: 3.5
A120: 2013-02-06 | B120: 3.3 | C120: 0.9 | D120: 1.8 | E120: 4.3 | F120: 2.6 | G120: 3.4 | H120: 3.9 | I120: 3.1 | J120: 3.3 | K120: 2.9 | L120: 3.4 | M120: 4.2 | N120: 4.8 | O120: 3.6
A121: 2013-02-07 | B121: 3.4 | C121: 1 | D121: 1.9 | E121: 4.3 | F121: 2.6 | G121: 3.4 | H121: 3.9 | I121: 3.1 | J121: 3.4 | K121: 2.9 | L121: 3.5 | M121: 4.2 | N121: 4.8 | O121: 3.6
A122: 2013-02-08 | B122: 3.4 | C122: 1.1 | D122: 2 | E122: 4.4 | F122: 2.7 | G122: 3.5 | H122: 4 | I122: 3.2 | J122: 3.4 | K122: 3 | L122: 3.6 | M122: 4.3 | N122: 4.9 | O122: 3.7
A123: 2013-02-09 | B123: 3.5 | C123: 1.2 | D123: 2 | E123: 4.4 | F123: 2.8 | G123: 3.6 | H123: 4 | I123: 3.2 | J123: 3.5 | K123: 3.1 | L123: 3.6 | M123: 4.3 | N123: 4.9 | O123: 3.8
A124: 2013-02-10 | B124: 3.5 | C124: 1.3 | D124: 2.1 | E124: 4.4 | F124: 2.9 | G124: 3.6 | H124: 4.1 | I124: 3.3 | J124: 3.6 | K124: 3.2 | L124: 3.7 | M124: 4.4 | N124: 5 | O124: 3.9
A125: 2013-02-11 | B125: 3.6 | C125: 1.4 | D125: 2.2 | E125: 4.5 | F125: 3 | G125: 3.7 | H125: 4.2 | I125: 3.4 | J125: 3.7 | K125: 3.2 | L125: 3.8 | M125: 4.5 | N125: 5.1 | O125: 3.9
A126: 2013-02-12 | B126: 3.6 | C126: 1.5 | D126: 2.3 | E126: 4.5 | F126: 3.1 | G126: 3.8 | H126: 4.3 | I126: 3.5 | J126: 3.8 | K126: 3.3 | L126: 3.9 | M126: 4.5 | N126: 5.1 | O126: 4
A127: 2013-02-13 | B127: 3.7 | C127: 1.6 | D127: 2.4 | E127: 4.6 | F127: 3.1 | G127: 3.9 | H127: 4.4 | I127: 3.6 | J127: 3.9 | K127: 3.4 | L127: 4 | M127: 4.6 | N127: 5.2 | O127: 4.1
A128: 2013-02-14 | B128: 3.7 | C128: 1.7 | D128: 2.5 | E128: 4.7 | F128: 3.2 | G128: 4 | H128: 4.5 | I128: 3.8 | J128: 3.9 | K128: 3.5 | L128: 4.1 | M128: 4.7 | N128: 5.2 | O128: 4.2
A129: 2013-02-15 | B129: 3.8 | C129: 1.8 | D129: 2.6 | E129: 4.7 | F129: 3.3 | G129: 4 | H129: 4.5 | I129: 3.9 | J129: 4 | K129: 3.6 | L129: 4.2 | M129: 4.8 | N129: 5.3 | O129: 4.3
A130: 2013-02-16 | B130: 3.9 | C130: 1.9 | D130: 2.7 | E130: 4.8 | F130: 3.4 | G130: 4.1 | H130: 4.6 | I130: 4 | J130: 4.1 | K130: 3.7 | L130: 4.3 | M130: 4.8 | N130: 5.4 | O130: 4.4
A131: 2013-02-17 | B131: 3.9 | C131: 2 | D131: 2.8 | E131: 4.8 | F131: 3.5 | G131: 4.2 | H131: 4.7 | I131: 4.2 | J131: 4.2 | K131: 3.8 | L131: 4.4 | M131: 4.9 | N131: 5.5 | O131: 4.5
A132: 2013-02-18 | B132: 4 | C132: 2.1 | D132: 2.9 | E132: 4.9 | F132: 3.6 | G132: 4.3 | H132: 4.8 | I132: 4.3 | J132: 4.3 | K132: 3.9 | L132: 4.4 | M132: 5 | N132: 5.5 | O132: 4.6
A133: 2013-02-19 | B133: 4.1 | C133: 2.2 | D133: 3 | E133: 5 | F133: 3.7 | G133: 4.4 | H133: 4.9 | I133: 4.5 | J133: 4.4 | K133: 4 | L133: 4.5 | M133: 5.1 | N133: 5.6 | O133: 4.7
A134: 2013-02-20 | B134: 4.1 | C134: 2.3 | D134: 3.1 | E134: 5 | F134: 3.8 | G134: 4.5 | H134: 5 | I134: 4.6 | J134: 4.5 | K134: 4.1 | L134: 4.6 | M134: 5.2 | N134: 5.7 | O134: 4.8
A135: 2013-02-21 | B135: 4.2 | C135: 2.4 | D135: 3.2 | E135: 5.1 | F135: 3.9 | G135: 4.6 | H135: 5.1 | I135: 4.7 | J135: 4.6 | K135: 4.2 | L135: 4.7 | M135: 5.3 | N135: 5.8 | O135: 4.9
A136: 2013-02-22 | B136: 4.3 | C136: 2.6 | D136: 3.3 | E136: 5.2 | F136: 4.1 | G136: 4.7 | H136: 5.3 | I136: 4.9 | J136: 4.7 | K136: 4.4 | L136: 4.9 | M136: 5.4 | N136: 5.9 | O136: 5
A137: 2013-02-23 | B137: 4.4 | C137: 2.7 | D137: 3.4 | E137: 5.3 | F137: 4.2 | G137: 4.8 | H137: 5.4 | I137: 5 | J137: 4.9 | K137: 4.5 | L137: 5 | M137: 5.5 | N137: 6 | O137: 5.1
A138: 2013-02-24 | B138: 4.5 | C138: 2.8 | D138: 3.5 | E138: 5.4 | F138: 4.3 | G138: 4.9 | H138: 5.5 | I138: 5.1 | J138: 5 | K138: 4.6 | L138: 5.1 | M138: 5.6 | N138: 6.2 | O138: 5.2
A139: 2013-02-25 | B139: 4.6 | C139: 2.9 | D139: 3.7 | E139: 5.5 | F139: 4.4 | G139: 5 | H139: 5.6 | I139: 5.3 | J139: 5.1 | K139: 4.8 | L139: 5.2 | M139: 5.7 | N139: 6.3 | O139: 5.4
A140: 2013-02-26 | B140: 4.7 | C140: 3.1 | D140: 3.8 | E140: 5.6 | F140: 4.6 | G140: 5.1 | H140: 5.7 | I140: 5.4 | J140: 5.2 | K140: 4.9 | L140: 5.4 | M140: 5.9 | N140: 6.4 | O140: 5.5
A141: 2013-02-27 | B141: 4.7 | C141: 3.2 | D141: 3.9 | E141: 5.7 | F141: 4.7 | G141: 5.3 | H141: 5.9 | I141: 5.5 | J141: 5.4 | K141: 5 | L141: 5.5 | M141: 6 | N141: 6.5 | O141: 5.6
A142: 2013-02-28 | B142: 4.8 | C142: 3.3 | D142: 4 | E142: 5.8 | F142: 4.8 | G142: 5.4 | H142: 6 | I142: 5.6 | J142: 5.5 | K142: 5.1 | L142: 5.6 | M142: 6.1 | N142: 6.6 | O142: 5.7
A143: 2013-03-01 | B143: 4.9 | C143: 3.5 | D143: 4.2 | E143: 5.9 | F143: 4.9 | G143: 5.5 | H143: 6.1 | I143: 5.7 | J143: 5.6 | K143: 5.3 | L143: 5.7 | M143: 6.2 | N143: 6.8 | O143: 5.9
A144: 2013-03-02 | B144: 5 | C144: 3.6 | D144: 4.3 | E144: 6 | F144: 5.1 | G144: 5.6 | H144: 6.2 | I144: 5.8 | J144: 5.7 | K144: 5.4 | L144: 5.9 | M144: 6.4 | N144: 6.9 | O144: 6
A145: 2013-03-03 | B145: 5.1 | C145: 3.7 | D145: 4.4 | E145: 6.1 | F145: 5.2 | G145: 5.7 | H145: 6.3 | I145: 5.9 | J145: 5.9 | K145: 5.5 | L145: 6 | M145: 6.5 | N145: 7 | O145: 6.1
A146: 2013-03-04 | B146: 5.2 | C146: 3.8 | D146: 4.5 | E146: 6.2 | F146: 5.3 | G146: 5.8 | H146: 6.5 | I146: 6 | J146: 6 | K146: 5.6 | L146: 6.1 | M146: 6.6 | N146: 7.1 | O146: 6.2
A147: 2013-03-05 | B147: 5.3 | C147: 3.9 | D147: 4.6 | E147: 6.3 | F147: 5.4 | G147: 5.9 | H147: 6.6 | I147: 6.1 | J147: 6.1 | K147: 5.7 | L147: 6.2 | M147: 6.7 | N147: 7.2 | O147: 6.3
A148: 2013-03-06 | B148: 5.4 | C148: 4 | D148: 4.7 | E148: 6.3 | F148: 5.5 | G148: 6 | H148: 6.7 | I148: 6.3 | J148: 6.2 | K148: 5.8 | L148: 6.3 | M148: 6.8 | N148: 7.3 | O148: 6.4
A149: 2013-03-07 | B149: 5.5 | C149: 4.1 | D149: 4.8 | E149: 6.4 | F149: 5.6 | G149: 6.1 | H149: 6.8 | I149: 6.4 | J149: 6.3 | K149: 5.9 | L149: 6.4 | M149: 6.9 | N149: 7.4 | O149: 6.6
A150: 2013-03-08 | B150: 5.5 | C150: 4.2 | D150: 4.9 | E150: 6.5 | F150: 5.7 | G150: 6.3 | H150: 6.9 | I150: 6.5 | J150: 6.4 | K150: 6 | L150: 6.6 | M150: 7 | N150: 7.5 | O150: 6.7
A151: 2013-03-09 | B151: 5.6 | C151: 4.4 | D151: 5 | E151: 6.6 | F151: 5.8 | G151: 6.4 | H151: 7.1 | I151: 6.7 | J151: 6.6 | K151: 6.1 | L151: 6.7 | M151: 7.2 | N151: 7.6 | O151: 6.8
A152: 2013-03-10 | B152: 5.7 | C152: 4.5 | D152: 5.1 | E152: 6.7 | F152: 6 | G152: 6.5 | H152: 7.2 | I152: 6.8 | J152: 6.7 | K152: 6.3 | L152: 6.8 | M152: 7.3 | N152: 7.7 | O152: 6.9
A153: 2013-03-11 | B153: 5.8 | C153: 4.6 | D153: 5.3 | E153: 6.8 | F153: 6.1 | G153: 6.6 | H153: 7.4 | I153: 7 | J153: 6.8 | K153: 6.4 | L153: 7 | M153: 7.4 | N153: 7.9 | O153: 7.1
A154: 2013-03-12 | B154: 6 | C154: 4.8 | D154: 5.4 | E154: 6.9 | F154: 6.2 | G154: 6.8 | H154: 7.5 | I154: 7.2 | J154: 7 | K154: 6.5 | L154: 7.1 | M154: 7.6 | N154: 8 | O154: 7.2
A155: 2013-03-13 | B155: 6.1 | C155: 4.9 | D155: 5.6 | E155: 7.1 | F155: 6.4 | G155: 6.9 | H155: 7.7 | I155: 7.3 | J155: 7.1 | K155: 6.7 | L155: 7.3 | M155: 7.7 | N155: 8.1 | O155: 7.4
A156: 2013-03-14 | B156: 6.2 | C156: 5.1 | D156: 5.7 | E156: 7.2 | F156: 6.6 | G156: 7.1 | H156: 7.9 | I156: 7.5 | J156: 7.3 | K156: 6.8 | L156: 7.5 | M156: 7.9 | N156: 8.3 | O156: 7.6
A157: 2013-03-15 | B157: 6.4 | C157: 5.2 | D157: 5.9 | E157: 7.4 | F157: 6.7 | G157: 7.2 | H157: 8.1 | I157: 7.7 | J157: 7.5 | K157: 7 | L157: 7.6 | M157: 8.1 | N157: 8.4 | O157: 7.7
A158: 2013-03-16 | B158: 6.5 | C158: 5.4 | D158: 6 | E158: 7.5 | F158: 6.9 | G158: 7.4 | H158: 8.2 | I158: 7.8 | J158: 7.7 | K158: 7.1 | L158: 7.8 | M158: 8.2 | N158: 8.6 | O158: 7.9
A159: 2013-03-17 | B159: 6.6 | C159: 5.6 | D159: 6.2 | E159: 7.6 | F159: 7 | G159: 7.5 | H159: 8.4 | I159: 8 | J159: 7.8 | K159: 7.3 | L159: 8 | M159: 8.4 | N159: 8.7 | O159: 8
A160: 2013-03-18 | B160: 6.7 | C160: 5.7 | D160: 6.3 | E160: 7.8 | F160: 7.2 | G160: 7.7 | H160: 8.5 | I160: 8.1 | J160: 8 | K160: 7.4 | L160: 8.1 | M160: 8.5 | N160: 8.8 | O160: 8.2
A161: 2013-03-19 | B161: 6.9 | C161: 5.9 | D161: 6.4 | E161: 7.9 | F161: 7.3 | G161: 7.8 | H161: 8.7 | I161: 8.2 | J161: 8.1 | K161: 7.5 | L161: 8.2 | M161: 8.6 | N161: 9 | O161: 8.3
A162: 2013-03-20 | B162: 7 | C162: 6 | D162: 6.6 | E162: 8 | F162: 7.5 | G162: 7.9 | H162: 8.8 | I162: 8.3 | J162: 8.2 | K162: 7.6 | L162: 8.4 | M162: 8.7 | N162: 9.1 | O162: 8.4
A163: 2013-03-21 | B163: 7.1 | C163: 6.1 | D163: 6.7 | E163: 8.1 | F163: 7.6 | G163: 8 | H163: 8.9 | I163: 8.4 | J163: 8.4 | K163: 7.8 | L163: 8.5 | M163: 8.9 | N163: 9.2 | O163: 8.6
A164: 2013-03-22 | B164: 7.2 | C164: 6.3 | D164: 6.8 | E164: 8.2 | F164: 7.7 | G164: 8.2 | H164: 9 | I164: 8.5 | J164: 8.5 | K164: 7.9 | L164: 8.6 | M164: 9 | N164: 9.3 | O164: 8.7
A165: 2013-03-23 | B165: 7.3 | C165: 6.4 | D165: 6.9 | E165: 8.3 | F165: 7.8 | G165: 8.3 | H165: 9.2 | I165: 8.6 | J165: 8.6 | K165: 8 | L165: 8.7 | M165: 9.1 | N165: 9.4 | O165: 8.8
A166: 2013-03-24 | B166: 7.4 | C166: 6.5 | D166: 7.1 | E166: 8.4 | F166: 8 | G166: 8.4 | H166: 9.3 | I166: 8.7 | J166: 8.7 | K166: 8.1 | L166: 8.8 | M166: 9.2 | N166: 9.5 | O166: 8.9
A167: 2013-03-25 | B167: 7.5 | C167: 6.7 | D167: 7.2 | E167: 8.5 | F167: 8.1 | G167: 8.5 | H167: 9.4 | I167: 8.8 | J167: 8.8 | K167: 8.2 | L167: 8.9 | M167: 9.3 | N167: 9.6 | O167: 9
A168: 2013-03-26 | B168: 7.7 | C168: 6.8 | D168: 7.4 | E168: 8.7 | F168: 8.2 | G168: 8.7 | H168: 9.5 | I168: 8.9 | J168: 9 | K168: 8.4 | L168: 9.1 | M168: 9.4 | N168: 9.7 | O168: 9.2
A169: 2013-03-27 | B169: 7.8 | C169: 7 | D169: 7.5 | E169: 8.8 | F169: 8.4 | G169: 8.8 | H169: 9.7 | I169: 9 | J169: 9.1 | K169: 8.5 | L169: 9.2 | M169: 9.6 | N169: 9.9 | O169: 9.3
A170: 2013-03-28 | B170: 7.9 | C170: 7.2 | D170: 7.7 | E170: 8.9 | F170: 8.6 | G170: 9 | H170: 9.9 | I170: 9.2 | J170: 9.3 | K170: 8.7 | L170: 9.4 | M170: 9.8 | N170: 10 | O170: 9.5
A171: 2013-03-29 | B171: 8.1 | C171: 7.4 | D171: 7.9 | E171: 9.1 | F171: 8.7 | G171: 9.2 | H171: 10 | I171: 9.4 | J171: 9.5 | K171: 8.9 | L171: 9.6 | M171: 9.9 | N171: 10.2 | O171: 9.7
A172: 2013-03-30 | B172: 8.3 | C172: 7.6 | D172: 8.1 | E172: 9.3 | F172: 8.9 | G172: 9.3 | H172: 10.2 | I172: 9.6 | J172: 9.7 | K172: 9 | L172: 9.8 | M172: 10.1 | N172: 10.4 | O172: 9.9
A173: 2013-03-31 | B173: 8.4 | C173: 7.8 | D173: 8.3 | E173: 9.5 | F173: 9.1 | G173: 9.5 | H173: 10.4 | I173: 9.8 | J173: 9.9 | K173: 9.2 | L173: 10 | M173: 10.3 | N173: 10.5 | O173: 10
A174: 2013-04-01 | B174: 8.6 | C174: 8 | D174: 8.5 | E174: 9.6 | F174: 9.3 | G174: 9.7 | H174: 10.6 | I174: 10 | J174: 10.1 | K174: 9.4 | L174: 10.2 | M174: 10.5 | N174: 10.7 | O174: 10.2
A175: 2013-04-02 | B175: 8.8 | C175: 8.2 | D175: 8.7 | E175: 9.8 | F175: 9.5 | G175: 9.9 | H175: 10.8 | I175: 10.2 | J175: 10.3 | K175: 9.6 | L175: 10.4 | M175: 10.7 | N175: 10.9 | O175: 10.4
A176: 2013-04-03 | B176: 9 | C176: 8.4 | D176: 8.9 | E176: 10 | F176: 9.7 | G176: 10.1 | H176: 11.1 | I176: 10.4 | J176: 10.5 | K176: 9.8 | L176: 10.6 | M176: 10.9 | N176: 11.1 | O176: 10.6
A177: 2013-04-04 | B177: 9.2 | C177: 8.6 | D177: 9.1 | E177: 10.2 | F177: 9.9 | G177: 10.3 | H177: 11.3 | I177: 10.6 | J177: 10.7 | K177: 10 | L177: 10.8 | M177: 11.1 | N177: 11.2 | O177: 10.8
A178: 2013-04-05 | B178: 9.4 | C178: 8.8 | D178: 9.3 | E178: 10.4 | F178: 10.1 | G178: 10.5 | H178: 11.5 | I178: 10.8 | J178: 10.9 | K178: 10.2 | L178: 11 | M178: 11.3 | N178: 11.4 | O178: 11
A179: 2013-04-06 | B179: 9.5 | C179: 9 | D179: 9.5 | E179: 10.5 | F179: 10.3 | G179: 10.6 | H179: 11.7 | I179: 10.9 | J179: 11.1 | K179: 10.4 | L179: 11.2 | M179: 11.5 | N179: 11.6 | O179: 11.2
A180: 2013-04-07 | B180: 9.7 | C180: 9.3 | D180: 9.7 | E180: 10.7 | F180: 10.5 | G180: 10.8 | H180: 11.9 | I180: 11.1 | J180: 11.2 | K180: 10.5 | L180: 11.3 | M180: 11.7 | N180: 11.8 | O180: 11.4
A181: 2013-04-08 | B181: 9.9 | C181: 9.5 | D181: 9.9 | E181: 10.9 | F181: 10.7 | G181: 11 | H181: 12.1 | I181: 11.3 | J181: 11.4 | K181: 10.7 | L181: 11.5 | M181: 11.9 | N181: 11.9 | O181: 11.6
A182: 2013-04-09 | B182: 10.1 | C182: 9.7 | D182: 10.1 | E182: 11.1 | F182: 10.9 | G182: 11.2 | H182: 12.3 | I182: 11.4 | J182: 11.6 | K182: 10.9 | L182: 11.7 | M182: 12 | N182: 12.1 | O182: 11.8
A183: 2013-04-10 | B183: 10.2 | C183: 9.9 | D183: 10.2 | E183: 11.3 | F183: 11.1 | G183: 11.4 | H183: 12.5 | I183: 11.6 | J183: 11.8 | K183: 11.1 | L183: 11.9 | M183: 12.2 | N183: 12.3 | O183: 12
A184: 2013-04-11 | B184: 10.4 | C184: 10.1 | D184: 10.4 | E184: 11.4 | F184: 11.3 | G184: 11.6 | H184: 12.6 | I184: 11.8 | J184: 12 | K184: 11.3 | L184: 12.1 | M184: 12.4 | N184: 12.4 | O184: 12.1
A185: 2013-04-12 | B185: 10.5 | C185: 10.3 | D185: 10.6 | E185: 11.6 | F185: 11.5 | G185: 11.7 | H185: 12.8 | I185: 12 | J185: 12.2 | K185: 11.5 | L185: 12.3 | M185: 12.6 | N185: 12.6 | O185: 12.3
A186: 2013-04-13 | B186: 10.7 | C186: 10.5 | D186: 10.8 | E186: 11.8 | F186: 11.7 | G186: 11.9 | H186: 13 | I186: 12.2 | J186: 12.4 | K186: 11.7 | L186: 12.4 | M186: 12.8 | N186: 12.8 | O186: 12.5
A187: 2013-04-14 | B187: 10.9 | C187: 10.7 | D187: 11 | E187: 11.9 | F187: 11.8 | G187: 12.1 | H187: 13.2 | I187: 12.4 | J187: 12.6 | K187: 11.8 | L187: 12.6 | M187: 12.9 | N187: 12.9 | O187: 12.7
A188: 2013-04-15 | B188: 11 | C188: 10.9 | D188: 11.2 | E188: 12.1 | F188: 12 | G188: 12.3 | H188: 13.4 | I188: 12.5 | J188: 12.8 | K188: 12 | L188: 12.8 | M188: 13.1 | N188: 13.1 | O188: 12.9
A189: 2013-04-16 | B189: 11.2 | C189: 11.1 | D189: 11.4 | E189: 12.2 | F189: 12.2 | G189: 12.5 | H189: 13.6 | I189: 12.7 | J189: 13 | K189: 12.2 | L189: 13 | M189: 13.3 | N189: 13.3 | O189: 13.1
A190: 2013-04-17 | B190: 11.3 | C190: 11.3 | D190: 11.5 | E190: 12.4 | F190: 12.4 | G190: 12.6 | H190: 13.8 | I190: 12.9 | J190: 13.2 | K190: 12.4 | L190: 13.1 | M190: 13.5 | N190: 13.4 | O190: 13.3
A191: 2013-04-18 | B191: 11.5 | C191: 11.5 | D191: 11.7 | E191: 12.5 | F191: 12.6 | G191: 12.8 | H191: 14 | I191: 13.1 | J191: 13.4 | K191: 12.5 | L191: 13.3 | M191: 13.6 | N191: 13.6 | O191: 13.4
A192: 2013-04-19 | B192: 11.6 | C192: 11.7 | D192: 11.9 | E192: 12.7 | F192: 12.8 | G192: 13 | H192: 14.2 | I192: 13.2 | J192: 13.5 | K192: 12.7 | L192: 13.5 | M192: 13.8 | N192: 13.7 | O192: 13.6
A193: 2013-04-20 | B193: 11.8 | C193: 11.9 | D193: 12 | E193: 12.8 | F193: 12.9 | G193: 13.1 | H193: 14.3 | I193: 13.4 | J193: 13.7 | K193: 12.9 | L193: 13.6 | M193: 13.9 | N193: 13.9 | O193: 13.8
A194: 2013-04-21 | B194: 11.9 | C194: 12 | D194: 12.2 | E194: 13 | F194: 13.1 | G194: 13.3 | H194: 14.5 | I194: 13.6 | J194: 13.9 | K194: 13 | L194: 13.8 | M194: 14.1 | N194: 14 | O194: 14
A195: 2013-04-22 | B195: 12 | C195: 12.2 | D195: 12.4 | E195: 13.1 | F195: 13.3 | G195: 13.4 | H195: 14.7 | I195: 13.8 | J195: 14.1 | K195: 13.2 | L195: 13.9 | M195: 14.3 | N195: 14.2 | O195: 14.1
A196: 2013-04-23 | B196: 12.2 | C196: 12.4 | D196: 12.5 | E196: 13.2 | F196: 13.4 | G196: 13.6 | H196: 14.9 | I196: 14 | J196: 14.3 | K196: 13.3 | L196: 14.1 | M196: 14.5 | N196: 14.3 | O196: 14.3
A197: 2013-04-24 | B197: 12.3 | C197: 12.6 | D197: 12.7 | E197: 13.4 | F197: 13.6 | G197: 13.8 | H197: 15 | I197: 14.2 | J197: 14.4 | K197: 13.5 | L197: 14.3 | M197: 14.6 | N197: 14.5 | O197: 14.5
A198: 2013-04-25 | B198: 12.5 | C198: 12.8 | D198: 12.9 | E198: 13.6 | F198: 13.8 | G198: 14 | H198: 15.2 | I198: 14.4 | J198: 14.6 | K198: 13.7 | L198: 14.5 | M198: 14.8 | N198: 14.6 | O198: 14.7
A199: 2013-04-26 | B199: 12.7 | C199: 13 | D199: 13.1 | E199: 13.7 | F199: 14 | G199: 14.2 | H199: 15.4 | I199: 14.7 | J199: 14.8 | K199: 13.9 | L199: 14.6 | M199: 15 | N199: 14.8 | O199: 14.9
A200: 2013-04-27 | B200: 12.8 | C200: 13.2 | D200: 13.3 | E200: 13.9 | F200: 14.2 | G200: 14.4 | H200: 15.6 | I200: 14.9 | J200: 15 | K200: 14.1 | L200: 14.8 | M200: 15.2 | N200: 15 | O200: 15.1
A201: 2013-04-28 | B201: 13 | C201: 13.4 | D201: 13.5 | E201: 14.1 | F201: 14.4 | G201: 14.6 | H201: 15.8 | I201: 15.2 | J201: 15.2 | K201: 14.3 | L201: 15 | M201: 15.4 | N201: 15.2 | O201: 15.3
A202: 2013-04-29 | B202: 13.2 | C202: 13.6 | D202: 13.7 | E202: 14.3 | F202: 14.6 | G202: 14.8 | H202: 16 | I202: 15.5 | J202: 15.5 | K202: 14.5 | L202: 15.2 | M202: 15.6 | N202: 15.4 | O202: 15.5
... 448 more rows
